Trans Date,Supplier Name,Trans Ref/No,Net Amount,Expense Description,Service Code,Category
03/04/2018,A1 Electrics,658304,724.65,Equipment Tools And Materials,Livestock/Matford Centre,Supplies & Services
03/04/2018,Building Recruitment Co Ltd,654830,432.28,Temp.Contract-Agency Staff,Housing Advice,Pay
03/04/2018,Devon County Council,656971,2700,Member Training,Members Expenses,Supplies & Services
03/04/2018,Digital Id Picture Systems,657977,798.95,Stationery,Civic Centre,Supplies & Services
03/04/2018,G & L Consultancy Ltd,657985,1320,Asbestos Surveys,Asbestos,Premises
03/04/2018,G & L Consultancy Ltd,657995,1560,Asbestos Surveys,Asbestos,Premises
03/04/2018,G & L Consultancy Ltd,658002,860,Asbestos Surveys,Asbestos,Premises
03/04/2018,H & S Transport Ltd,657922,2473.5,Sub-Contractors,Land Drainage Water C - Assets,Premises
03/04/2018,H & S Transport Ltd,657923,548,Sub-Contractors,Land Drainage Water C - Assets,Premises
03/04/2018,I-Civils Ltd,658311,591,Contract Payments,Farmers Market Electricity Sup,Supplies & Services
03/04/2018,James Andrews Recruitment Solutions Ltd,658072,630.42,Temp.Contract-Agency Staff,Human Resources,Pay
03/04/2018,Jjc Design Ltd,655581,7590,Exeter Citizen & Insider,Communications & Marketing,Supplies & Services
03/04/2018,Jonathan Purt Revenues + Benefits Consultants,658010,15173.72,Project Work,Benefits Administration,Supplies & Services
03/04/2018,K S Fencing,658313,3730.41,Sub-Contractors,Countryside Man - Assets,Premises
03/04/2018,Kennall Consulting Limited,658305,5520,Consultants Fees,Procurement,Supplies & Services
03/04/2018,Mears Ltd,657951,434.57,Asbestos Removal,Asbestos,Premises
03/04/2018,Mears Ltd,657951,68.6,Blocks Of Flat Repairs,General Maintenance,Premises
03/04/2018,Mears Ltd,657954,62.23,Blocks Of Flat Repairs,General Maintenance,Premises
03/04/2018,Mears Ltd,657962,21.68,Blocks Of Flat Repairs,General Maintenance,Premises
03/04/2018,Mears Ltd,657976,21.68,Blocks Of Flat Repairs,General Maintenance,Premises
03/04/2018,Mears Ltd,657952,80.08,Contract Payments,Estate Improvements,Supplies & Services
03/04/2018,Mears Ltd,657957,147.93,Contract Payments,Estate Improvements,Supplies & Services
03/04/2018,Mears Ltd,657951,67.5,General Maintenance,Elec Testing/Reactive,Premises
03/04/2018,Mears Ltd,657957,43.41,General Maintenance,Elec Testing/Reactive,Premises
03/04/2018,Mears Ltd,657962,43.36,General Maintenance,Elec Testing/Reactive,Premises
03/04/2018,Mears Ltd,657964,21.68,General Maintenance,Elec Testing/Reactive,Premises
03/04/2018,Mears Ltd,657965,109.41,General Maintenance,Elec Testing/Reactive,Premises
03/04/2018,Mears Ltd,657970,103.92,General Maintenance,Elec Testing/Reactive,Premises
03/04/2018,Mears Ltd,657976,21.68,General Maintenance,Elec Testing/Reactive,Premises
03/04/2018,Mears Ltd,657951,1689.18,General Maintenance,General Maintenance,Premises
03/04/2018,Mears Ltd,657952,2566.57,General Maintenance,General Maintenance,Premises
03/04/2018,Mears Ltd,657954,1556.55,General Maintenance,General Maintenance,Premises
03/04/2018,Mears Ltd,657957,1084.91,General Maintenance,General Maintenance,Premises
03/04/2018,Mears Ltd,657962,782.65,General Maintenance,General Maintenance,Premises
03/04/2018,Mears Ltd,657964,1160.42,General Maintenance,General Maintenance,Premises
03/04/2018,Mears Ltd,657965,481.83,General Maintenance,General Maintenance,Premises
03/04/2018,Mears Ltd,657970,397.94,General Maintenance,General Maintenance,Premises
03/04/2018,Mears Ltd,657976,489.37,General Maintenance,General Maintenance,Premises
03/04/2018,Mears Ltd,657949,3988.28,General Maintenance,Repairs To Void Properties,Premises
03/04/2018,Mears Ltd,657959,4758.51,General Maintenance,Repairs To Void Properties,Premises
03/04/2018,Mears Ltd,657971,3530.74,General Maintenance,Repairs To Void Properties,Premises
03/04/2018,Mears Ltd,657962,370.28,Glazing,General Maintenance,Premises
03/04/2018,Mediaclash,657609,6288,Advertising,Comms & Marketing Activity,Supplies & Services
03/04/2018,Pmr Products Ltd,657607,2485,Equipment Tools And Materials,Business Crime Reduction Unit,Supplies & Services
03/04/2018,Robert Heath Heating Ltd,657359,527.92,Contract Payments,Boiler Replacement Programme,Supplies & Services
03/04/2018,Robert Heath Heating Ltd,657361,527.92,Contract Payments,Boiler Replacement Programme,Supplies & Services
03/04/2018,Robert Heath Heating Ltd,657363,527.92,Contract Payments,Boiler Replacement Programme,Supplies & Services
03/04/2018,Robert Heath Heating Ltd,657364,527.92,Contract Payments,Boiler Replacement Programme,Supplies & Services
03/04/2018,Robert Heath Heating Ltd,657366,527.92,Contract Payments,Boiler Replacement Programme,Supplies & Services
03/04/2018,Robert Heath Heating Ltd,657368,527.92,Contract Payments,Boiler Replacement Programme,Supplies & Services
03/04/2018,Schooling Building Contractor Ltd,658312,10733.25,Contract Payments,Ramm Roof,Supplies & Services
03/04/2018,Schooling Building Contractor Ltd,658312,162.12,Contract Payments,Ramm World Culture Galleries,Supplies & Services
03/04/2018,Take One Media,657388,450,Membership Contribution,Tourism,Supplies & Services
03/04/2018,The National Leaflet Company,658107,3955.18,Exeter Citizen & Insider,Communications & Marketing,Supplies & Services
03/04/2018,University College Of Estate Management,656942,1015,Staff Training,Learning & Development,Pay
04/04/2018,Bemrose Booth Paragon Ltd,657551,1281.9,Printing,Car Parks,Supplies & Services
04/04/2018,Glendale Grounds Management Ltd,658454,10961,Grounds Costs,Garden Assistance,Premises
04/04/2018,H & S Transport Ltd,657934,774,Hra Shrubs & Trees - Communal,Estate Maintenance,Premises
04/04/2018,Interserve Fs (Uk) Ltd,658100,500,Aim Service & Maintenance,Property Maintenance,Premises
04/04/2018,Mears Ltd,658328,247.55,Blocks Of Flat Repairs,General Maintenance,Premises
04/04/2018,Mears Ltd,658337,263.67,Blocks Of Flat Repairs,General Maintenance,Premises
04/04/2018,Mears Ltd,658341,72.28,Blocks Of Flat Repairs,General Maintenance,Premises
04/04/2018,Mears Ltd,658342,365.64,Blocks Of Flat Repairs,General Maintenance,Premises
04/04/2018,Mears Ltd,658333,1714.01,Decs For Elderly & Disabled,Internal Decoration Prog,Premises
04/04/2018,Mears Ltd,658338,40.8,General Maintenance,Elec Testing/Reactive,Premises
04/04/2018,Mears Ltd,658339,115.93,General Maintenance,Elec Testing/Reactive,Premises
04/04/2018,Mears Ltd,658341,35.69,General Maintenance,Elec Testing/Reactive,Premises
04/04/2018,Mears Ltd,658342,39.48,General Maintenance,Elec Testing/Reactive,Premises
04/04/2018,Mears Ltd,658328,876.3,General Maintenance,General Maintenance,Premises
04/04/2018,Mears Ltd,658337,6148.31,General Maintenance,General Maintenance,Premises
04/04/2018,Mears Ltd,658338,3229.49,General Maintenance,General Maintenance,Premises
04/04/2018,Mears Ltd,658339,1295.62,General Maintenance,General Maintenance,Premises
04/04/2018,Mears Ltd,658340,1321.16,General Maintenance,General Maintenance,Premises
04/04/2018,Mears Ltd,658341,552.34,General Maintenance,General Maintenance,Premises
04/04/2018,Mears Ltd,658342,805.06,General Maintenance,General Maintenance,Premises
04/04/2018,Mears Ltd,658331,4117.5,General Maintenance,Repairs To Void Properties,Premises
04/04/2018,Mears Ltd,658332,4341.95,General Maintenance,Repairs To Void Properties,Premises
04/04/2018,Mears Ltd,658335,2454.26,General Maintenance,Repairs To Void Properties,Premises
04/04/2018,Mears Ltd,658336,2389.01,General Maintenance,Repairs To Void Properties,Premises
04/04/2018,Mears Ltd,658338,57.37,Glazing,General Maintenance,Premises
04/04/2018,Morgan Hunt Uk Ltd,658079,581.72,Temp.Contract-Agency Staff,Revenues Recovery,Pay
04/04/2018,Morgan Hunt Uk Ltd,658084,1000.08,Temp.Contract-Agency Staff,Revenues Recovery,Pay
04/04/2018,Smurfit Kappa Recycling,658468,1622.4,Miscellaneous Recharge Income,Accountancy Services,Income
04/04/2018,Southern Electric,658051,505.46,Electricity,Customer Relations,Premises
05/04/2018,Andrew Hart Industrial Roofing Ltd,657945,1233,General Maintenance,General Maintenance,Premises
05/04/2018,Bristol Street Motors,656972,261.78,Reactive Repairs,Electricians,Transport
05/04/2018,Bristol Street Motors,656972,259.54,Routine Maintenance,Electricians,Transport
05/04/2018,Burrows-Hutchinson Ltd,657958,1860,Consultants Fees,Exeter City Grp Business Cases,Supplies & Services
05/04/2018,Craemer Uk Ltd,658512,11856,Bins & Recycling Boxes,Refuse Collection,Supplies & Services
05/04/2018,Devon Commercial Stationers Ltd,658620,1176,Contract Payments,Fire Risk Assessment Works,Supplies & Services
05/04/2018,Devondale Electrical Distributors Ltd,657318,532.48,Electrical Works - Communal,Prog'D Elec Re-Wiring General,Supplies & Services
05/04/2018,Exeter College,657956,20000,Contributions,Growth Projects,Supplies & Services
05/04/2018,Gale & Snowden,657148,2925,Consultants Fees,Heavitree (Cob Wave Iii),Supplies & Services
05/04/2018,Holt Jcb Ltd,654754,1062.6,Reactive Repairs,Materials Reclamation Facility,Transport
05/04/2018,James Andrews Recruitment Solutions Ltd,658074,965.42,Temp.Contract-Agency Staff,Housing Advice,Pay
05/04/2018,James Andrews Recruitment Solutions Ltd,658086,1042.5,Temp.Contract-Agency Staff,Housing Advice,Pay
05/04/2018,Masons Kings,657344,438.5,Routine Maintenance,Parks Operational Overheads,Transport
05/04/2018,Mears Ltd,658610,1488.97,Decs For Elderly & Disabled,Internal Decoration Prog,Premises
05/04/2018,Mears Ltd,658611,3267.1,General Maintenance,Repairs To Void Properties,Premises
05/04/2018,Morgan Hunt Uk Ltd,658092,3556.25,Temp.Contract-Agency Staff,Procurement,Pay
05/04/2018,Nute Plumbing Services Ltd,658482,6167.82,Contract Payments,Adaptations,Supplies & Services
05/04/2018,Robert Heath Heating Ltd,657369,512.27,Contract Payments,Boiler Replacement Programme,Supplies & Services
05/04/2018,Robert Heath Heating Ltd,657372,527.92,Contract Payments,Boiler Replacement Programme,Supplies & Services
05/04/2018,Select Manufacturing Ltd,658012,1132.19,Door Entry Systems,Service Contracts,Premises
05/04/2018,Select Manufacturing Ltd,658013,1057.54,Door Entry Systems,Service Contracts,Premises
05/04/2018,Wise Employment,658447,719.8,Casuals Waged-Agency Staff,Waste Agency Costs,Pay
06/04/2018,Barcham Trees Plc,658367,558,Hra Shrubs & Trees - Communal,Estate Maintenance,Premises
06/04/2018,Bidfood,658520,584.26,Food,Exeter Corn Exchange,Supplies & Services
06/04/2018,British Gas,658069,537.15,Gas,Shared House Psls,Premises
06/04/2018,Complete Water Solutions (Ltd),658688,2714.78,Sub-Contractors,Allotments - Assets,Premises
06/04/2018,Devon Tree Services Ltd (Do Not Use See 22174,658444,953.6,Contract Payments,Exwick Cemetery Ashes Section,Supplies & Services
06/04/2018,Devon Tree Services Ltd (Do Not Use See 22174,658862,2384,Hra Shrubs & Trees - Gardens,Estate Maintenance,Premises
06/04/2018,Filcris Ltd,656925,2898,Sub-Contractors,Signs & Sundries - Assets,Premises
06/04/2018,Guardian Security Company,658731,645,Contract Payments,Adaptations,Supplies & Services
06/04/2018,I-Civils Ltd,658326,26626.37,Contract Payments,Exwick Cemetery Ashes Section,Supplies & Services
06/04/2018,Morgan Hunt Uk Ltd,658090,1050,Temp.Contract-Agency Staff,Revenues Recovery,Pay
06/04/2018,Natural England,658525,1705,Special Works,Canal,Premises
06/04/2018,Patronus Security Uk Ltd,658016,539.5,Security Patrol,Customer Service Centre,Premises
06/04/2018,Patronus Security Uk Ltd,658018,1001,Security Patrol,Customer Service Centre,Premises
06/04/2018,Red House Hotel,658548,58240,Serviced Accommodation,Serviced Accommodation,Premises
06/04/2018,S Byrne,658005,630,Rents,Psl Properties,Premises
06/04/2018,South West Water Business,658021,1979.27,Water,Older Persons Accommodation,Premises
06/04/2018,Tolchards Ltd,658635,1010.27,Drinks,Exeter Corn Exchange,Supplies & Services
06/04/2018,West End Welding,658628,2000,Sub-Contractors,Signs & Sundries - Assets,Premises
06/04/2018,Whistl Uk Ltd,658475,728.91,Postage/Stamps,Mail,Supplies & Services
09/04/2018,A1 Electrics,658448,1225.56,Sub-Contractors,Childrens Play Areas - Assets,Premises
09/04/2018,Capita Business Services,657748,853.04,Conference/Seminars Costs,General Management,Supplies & Services
09/04/2018,Capita Business Services,657748,1279.56,Conference/Seminars Costs,Revenues Recovery,Supplies & Services
09/04/2018,Devon County Council,658534,3949.14,Special Works,Canal - Assets,Premises
09/04/2018,Leroy Funeral Service,658442,1063,Burial Expenses-Section 46,Community Inclusion & Involv'T,Supplies & Services
09/04/2018,Rose Removals & Storage,655576,517.08,Tenants Removal And Legal Exp,Lettings & Leasehold,Supplies & Services
09/04/2018,Sciprint Ltd,658657,24082.28,Postage/Stamps,District Council Elections,Supplies & Services
09/04/2018,Sciprint Ltd,658657,2182.47,Stationery,District Council Elections,Supplies & Services
09/04/2018,Secureforce Uk Ltd,658819,606.37,Security Patrol,Livestock/Matford Centre,Premises
09/04/2018,Shelter Training Ltd,656940,169.85,Other Expenses,Learning & Development,Supplies & Services
09/04/2018,Shelter Training Ltd,656940,890,Staff Training,Learning & Development,Pay
09/04/2018,Shield Environmental Services,658097,497,Aim Lease Requirements,Commercial Properties,Premises
09/04/2018,Shield Environmental Services,658095,418,Sub-Contractors,Ecqt Suspense,Premises
09/04/2018,Simon Bastone Associates Ltd,658445,3050,Aim Reactive Repairs,Property Maintenance,Premises
09/04/2018,Solace Group,658440,617.63,Professional Subscriptions,Strategic Directors,Pay
09/04/2018,Southern Electric,657668,1150.93,Electricity,Car Parks - Assets,Premises
09/04/2018,Southern Electric,657659,596.75,Electricity,Underground Passages,Premises
09/04/2018,St Petrocks (Exeter) Ltd,658539,1376,Safesleep,Bed And Breakfast,Supplies & Services
09/04/2018,Structurehaus Ltd,658691,2000,Grants Issued,Rennes House,Supplies & Services
09/04/2018,Symsrudd Ltd,654965,1175,Staff Training,Vehicles Licensing,Pay
09/04/2018,Tunstall Healthcare (Uk) Ltd,658898,1208.1,Home Call Alarm Equipment,Home Call Alarm Service,Supplies & Services
10/04/2018,Ashfords,658692,1735.5,Consultants Fees,Exeter City Grp Business Cases,Supplies & Services
10/04/2018,Concept Staffing Ltd,658553,522.23,Casuals Waged-Agency Staff,Materials Reclamation Facility,Pay
10/04/2018,Concept Staffing Ltd,658555,522.23,Casuals Waged-Agency Staff,Materials Reclamation Facility,Pay
10/04/2018,Concept Staffing Ltd,658680,522.23,Casuals Waged-Agency Staff,Materials Reclamation Facility,Pay
10/04/2018,Concept Staffing Ltd,658682,522.23,Casuals Waged-Agency Staff,Materials Reclamation Facility,Pay
10/04/2018,Concept Staffing Ltd,658558,548.17,Temp.Contract-Agency Staff,Planning,Pay
10/04/2018,Concept Staffing Ltd,658679,434.53,Temp.Contract-Agency Staff,Planning,Pay
10/04/2018,Devon County Council,658828,2220.8,Devon County Council Consult.,Land Charges,Supplies & Services
10/04/2018,Experian Ltd,658882,3268,Experian,Nndr Collection,Supplies & Services
10/04/2018,Girling Jones,658689,1652.47,Temp.Contract-Agency Staff,Serviced Accommodation,Pay
10/04/2018,Glen Cleaning,658713,6331.47,Cleaning,Civic Centre,Premises
10/04/2018,Gregory Distribution  Ltd,658712,2532.09,Paper Haulage Out,Materials & Goods For Resale,Transport
10/04/2018,Irrv,659091,1095,Publications/Leaflets,Council Tax Collection,Supplies & Services
10/04/2018,Local Government Association,658093,299,Conference/Seminars Costs,Executive Support Unit,Supplies & Services
10/04/2018,Local Government Association,658093,299,Conference/Seminars Costs,Members Expenses,Supplies & Services
10/04/2018,Mears Ltd,657978,140,General Maintenance,Elec Testing/Reactive,Premises
10/04/2018,Mears Ltd,657978,346.14,General Maintenance,General Maintenance,Premises
10/04/2018,P & P Lifts Limited,658507,480,Aim Reactive Repairs,Property Maintenance,Premises
10/04/2018,Pitney Bowes Finance Ltd,658481,665.29,Postage/Stamps,Mail,Supplies & Services
10/04/2018,Rd & E Nhs Foundation Trust,656960,2812.42,Medical Inspections,Human Resources,Pay
10/04/2018,Ridgewater Energy Ltd,658665,720,Grants Issued,Warm Up Exeter,Supplies & Services
10/04/2018,Robert Heath Heating Ltd,658678,527.92,Contract Payments,Boiler Replacement Programme,Supplies & Services
10/04/2018,Robert Heath Heating Ltd,658727,512.27,Contract Payments,Boiler Replacement Programme,Supplies & Services
10/04/2018,Robert Heath Heating Ltd,658728,512.27,Contract Payments,Boiler Replacement Programme,Supplies & Services
10/04/2018,Signs Express (Exeter),658980,560,Marketing,Comms & Marketing Activity,Supplies & Services
10/04/2018,Trucksmith T/A Really Trucks,658715,450,Paper Haulage Out,Materials & Goods For Resale,Transport
10/04/2018,Wsp Uk Ltd,657936,9924.27,Contract Payments,Bus Station Construction,Supplies & Services
11/04/2018,A1 Electrics,658870,740,Sub-Contractors,Civic Centre,Premises
11/04/2018,Apl Media,659097,750,Advertising,Visit Exeter,Supplies & Services
11/04/2018,Apse,659065,2358,Subscriptions,Corporate Costs,Supplies & Services
11/04/2018,Art Week Exeter Cic,658007,2000,Grants Issued,Comms & Marketing Activity,Supplies & Services
11/04/2018,Berry Recruitment,658493,432.51,Casuals Waged-Agency Staff,Cemeteries - Operational,Pay
11/04/2018,Berry Recruitment,659052,608.79,Casuals Waged-Agency Staff,Do Not Use - Use C059,Pay
11/04/2018,Berry Recruitment,659055,624.36,Casuals Waged-Agency Staff,Do Not Use - Use C059,Pay
11/04/2018,Berry Recruitment,658488,533.54,Casuals Waged-Agency Staff,Parks Operational Overheads,Pay
11/04/2018,Berry Recruitment,658495,593.89,Casuals Waged-Agency Staff,Public Conveniences,Pay
11/04/2018,Brook Street (Uk) Ltd,659038,1003.45,Temp.Contract-Agency Staff,Health & Safety Compliance,Pay
11/04/2018,Bt Redcare,659364,926.39,Data Line Rental,Cctv Control Room,Supplies & Services
11/04/2018,Building Recruitment Co Ltd,659048,1041.75,Consultants Fees,General Management,Supplies & Services
11/04/2018,Building Recruitment Co Ltd,659048,347.25,Consultants Fees,Housing Advice,Supplies & Services
11/04/2018,Building Recruitment Co Ltd,659051,705.23,Temp.Contract-Agency Staff,Bed And Breakfast,Pay
11/04/2018,Building Recruitment Co Ltd,659047,859.51,Temp.Contract-Agency Staff,Devon Home Choice,Pay
11/04/2018,Building Recruitment Co Ltd,659044,952.43,Temp.Contract-Agency Staff,Housing Advice,Pay
11/04/2018,Building Recruitment Co Ltd,659045,790.13,Temp.Contract-Agency Staff,Planned Works,Pay
11/04/2018,Cobwebs,658543,16122.82,Hra Routine Cleaning Contract,Customer Relations,Premises
11/04/2018,Concept Staffing Ltd,658561,418.84,Casuals Waged-Agency Staff,Bid Cleansing Project,Pay
11/04/2018,Concept Staffing Ltd,658676,249.04,Casuals Waged-Agency Staff,Bid Cleansing Project,Pay
11/04/2018,Concept Staffing Ltd,658561,85.43,Casuals Waged-Agency Staff,Car Park Sweeping,Pay
11/04/2018,Concept Staffing Ltd,658676,256.28,Casuals Waged-Agency Staff,Car Park Sweeping,Pay
11/04/2018,Concept Staffing Ltd,658561,444.21,Casuals Waged-Agency Staff,Cemeteries - Operational,Pay
11/04/2018,Concept Staffing Ltd,658676,444.21,Casuals Waged-Agency Staff,Cemeteries - Operational,Pay
11/04/2018,Concept Staffing Ltd,658561,622.27,Casuals Waged-Agency Staff,Childrens Play Areas,Pay
11/04/2018,Concept Staffing Ltd,658676,502.67,Casuals Waged-Agency Staff,Childrens Play Areas,Pay
11/04/2018,Concept Staffing Ltd,658561,1387.18,Casuals Waged-Agency Staff,Do Not Use - Use C059,Pay
11/04/2018,Concept Staffing Ltd,658676,1221.84,Casuals Waged-Agency Staff,Do Not Use - Use C059,Pay
11/04/2018,Concept Staffing Ltd,658561,757.69,Casuals Waged-Agency Staff,Other Street Sweeping,Pay
11/04/2018,Concept Staffing Ltd,658676,589.69,Casuals Waged-Agency Staff,Other Street Sweeping,Pay
11/04/2018,Concept Staffing Ltd,658687,444.21,Casuals Waged-Agency Staff,Parks And Playing Fields,Pay
11/04/2018,Concept Staffing Ltd,658561,407.2,Casuals Waged-Agency Staff,Public Conveniences,Pay
11/04/2018,Concept Staffing Ltd,658676,541.03,Casuals Waged-Agency Staff,Public Conveniences,Pay
11/04/2018,Devon County Council,656015,1000,Grants Issued,Transportation Initiatives,Supplies & Services
11/04/2018,Devon County Council,656015,5000,Other Initiatives,Transportation Initiatives,Supplies & Services
11/04/2018,Devon Tree Services Ltd (Do Not Use See 22174,659280,1668.8,Sub-Contractors,Arboricultural - Assets,Premises
11/04/2018,E.On   (Electricity),659355,5298.2,Electricity,Civic Centre,Premises
11/04/2018,E.On   (Electricity),659354,1628.88,Electricity,Materials Reclamation Facility,Premises
11/04/2018,E.On   (Electricity),659347,1972.19,Electricity,Street Lighting - Assets,Premises
11/04/2018,Exeter Cvs (Colab),659069,930,Miscellaneous Expenditure,Help For Single Homeless Fund,Supplies & Services
11/04/2018,Gap Personnel,658428,83.1,Casuals Waged-Agency Staff,Bid Cleansing Project,Pay
11/04/2018,Gap Personnel,658428,409.96,Casuals Waged-Agency Staff,Do Not Use - Use C059,Pay
11/04/2018,Gap Personnel,659041,759.71,Casuals Waged-Agency Staff,Do Not Use - Use C059,Pay
11/04/2018,Gap Personnel,658427,326.86,Casuals Waged-Agency Staff,Other Street Sweeping,Pay
11/04/2018,Gap Personnel,659037,332.4,Casuals Waged-Agency Staff,Other Street Sweeping,Pay
11/04/2018,Gap Personnel,658427,686.96,Casuals Waged-Agency Staff,Parks And Playing Fields,Pay
11/04/2018,Gap Personnel,659037,531.84,Casuals Waged-Agency Staff,Parks And Playing Fields,Pay
11/04/2018,Gap Personnel,658428,83.1,Casuals Waged-Agency Staff,Public Conveniences,Pay
11/04/2018,Gap Personnel,659041,327.68,Casuals Waged-Agency Staff,Public Conveniences,Pay
11/04/2018,Gregory Distribution  Ltd,659248,627.75,Paper Haulage Out,Materials & Goods For Resale,Transport
11/04/2018,Grenadier Hub Ltd,659092,650,Subscriptions,Exeter City Futures,Supplies & Services
11/04/2018,Inexeter Ltd,659287,2366.99,Contract Payments,Exeter Bid Company,Supplies & Services
11/04/2018,James Andrews Recruitment Solutions Ltd,659061,705,Temp.Contract-Agency Staff,Housing Advice,Pay
11/04/2018,James Andrews Recruitment Solutions Ltd,659062,464.21,Temp.Contract-Agency Staff,Planning,Pay
11/04/2018,Local World Ltd,659223,761.46,Public Notices,Car Parks,Supplies & Services
11/04/2018,Mears Ltd,658621,109.12,Asbestos Removal,Asbestos,Premises
11/04/2018,Mears Ltd,658621,85.71,Blocks Of Flat Repairs,Elec Testing/Reactive,Premises
11/04/2018,Mears Ltd,658614,21.68,Blocks Of Flat Repairs,General Maintenance,Premises
11/04/2018,Mears Ltd,658621,67.16,Blocks Of Flat Repairs,General Maintenance,Premises
11/04/2018,Mears Ltd,658623,76.19,Blocks Of Flat Repairs,General Maintenance,Premises
11/04/2018,Mears Ltd,658726,21.73,Blocks Of Flat Repairs,General Maintenance,Premises
11/04/2018,Mears Ltd,658614,260.5,General Maintenance,Elec Testing/Reactive,Premises
11/04/2018,Mears Ltd,658726,195.99,General Maintenance,Elec Testing/Reactive,Premises
11/04/2018,Mears Ltd,658614,1228.62,General Maintenance,General Maintenance,Premises
11/04/2018,Mears Ltd,658621,2512.25,General Maintenance,General Maintenance,Premises
11/04/2018,Mears Ltd,658622,3115.65,General Maintenance,General Maintenance,Premises
11/04/2018,Mears Ltd,658623,353.25,General Maintenance,General Maintenance,Premises
11/04/2018,Mears Ltd,658725,1248.2,General Maintenance,General Maintenance,Premises
11/04/2018,Mears Ltd,658726,1115.76,General Maintenance,General Maintenance,Premises
11/04/2018,Mears Ltd,658612,2386.63,General Maintenance,Repairs To Void Properties,Premises
11/04/2018,Mears Ltd,659239,2960.86,General Maintenance,Repairs To Void Properties,Premises
11/04/2018,Mears Ltd,658725,157.03,Knights Place Repairs & Maint,Knights Place,Premises
11/04/2018,Mears Ltd,658616,1240.66,Repairs To Void Properties,Psl Properties,Premises
11/04/2018,Mig Security & Events Ltd,659067,1822.5,Security Patrol,Car Parks,Premises
11/04/2018,Morgan Hunt Uk Ltd,659043,2845,Temp.Contract-Agency Staff,Procurement,Pay
11/04/2018,Plymouth City Council,659199,3164.74,Equipment Tools And Materials,Renaissance - Core Act - F088,Supplies & Services
11/04/2018,Plymouth City Council,659104,60280.17,Grant,Renaissance - Core Act - F088,Income
11/04/2018,Portakabin Ltd,659105,10559.89,Contract Payments,Belle Isle Temporary Facilitie,Supplies & Services
11/04/2018,Randall Simmonds,659254,1400,Consultants Fees,Leisure Complex - Build,Supplies & Services
11/04/2018,Randall Simmonds,659255,4220,Consultants Fees,Leisure Complex - Build,Supplies & Services
11/04/2018,Santander Corporate Bank,659200,485.82,Stationery,Income Recovery,Supplies & Services
11/04/2018,Stage By Stage,658878,1014,Event Promotion,Exeter Corn Exchange,Supplies & Services
11/04/2018,Strata Service Solutions Ltd,659359,6073.44,Payment To Strata,Mobile Device Chgs For Rechge,Supplies & Services
11/04/2018,The Best Connection Group Ltd,656668,352.32,Casuals Waged-Agency Staff,Parks And Playing Fields,Pay
11/04/2018,The Best Connection Group Ltd,656668,429.4,Casuals Waged-Agency Staff,Rechargeable Works,Pay
11/04/2018,The Exeter Northcott Theatre Company,659283,1293.25,Travel & Attraction Tickets,Exeter Visitor Information,Supplies & Services
11/04/2018,Tolchards Ltd,659227,1894.11,Drinks,Exeter Corn Exchange,Supplies & Services
11/04/2018,Venn Group Ltd,658550,395.93,Temp.Contract-Agency Staff,Planned Works,Pay
11/04/2018,Venn Group Ltd,658550,593.9,Temp.Contract-Agency Staff,Reactive Repairs,Pay
11/04/2018,W B Employment Ltd,658556,426.61,Casuals Waged-Agency Staff,Do Not Use - Use C059,Pay
11/04/2018,W B Employment Ltd,659242,426.61,Casuals Waged-Agency Staff,Do Not Use - Use C059,Pay
12/04/2018,British Gas,659439,597.38,Gas,Glencoe,Premises
12/04/2018,D R Jones (Yeovil) Ltd,659440,4627.04,Contract Payments,Bathroom Replacements,Supplies & Services
12/04/2018,D R Jones (Yeovil) Ltd,659441,5880.23,Contract Payments,Bathroom Replacements,Supplies & Services
12/04/2018,D R Jones (Yeovil) Ltd,659450,3059.46,Contract Payments,Bathroom Replacements,Supplies & Services
12/04/2018,D R Jones (Yeovil) Ltd,659452,3127.72,Contract Payments,Bathroom Replacements,Supplies & Services
12/04/2018,D R Jones (Yeovil) Ltd,659454,3277.32,Contract Payments,Bathroom Replacements,Supplies & Services
12/04/2018,D R Jones (Yeovil) Ltd,659456,3601.07,Contract Payments,Bathroom Replacements,Supplies & Services
12/04/2018,D R Jones (Yeovil) Ltd,659437,4142.95,Contract Payments,Kitchen Replacements,Supplies & Services
12/04/2018,D R Jones (Yeovil) Ltd,659442,4370.89,Contract Payments,Kitchen Replacements,Supplies & Services
12/04/2018,D R Jones (Yeovil) Ltd,659443,4368.62,Contract Payments,Kitchen Replacements,Supplies & Services
12/04/2018,D R Jones (Yeovil) Ltd,659444,4890.94,Contract Payments,Kitchen Replacements,Supplies & Services
12/04/2018,D R Jones (Yeovil) Ltd,659459,4293.28,Contract Payments,Kitchen Replacements,Supplies & Services
12/04/2018,Devon Tree Services Ltd (Do Not Use See 22174,659273,6198.4,Sub-Contractors,Arboricultural - Assets,Premises
12/04/2018,Dfr Roofing Ltd,658908,1582,General Maintenance,General Maintenance,Premises
12/04/2018,Dolphin Lifts South West,659428,4110,Grants Issued,Disabled Facilities Grants,Supplies & Services
12/04/2018,E.On   (Electricity),659351,2069.98,Electricity,Livestock/Matford Centre,Premises
12/04/2018,Edf Energy Customers Ltd,659365,627.45,Electricity,Commercial Properties,Premises
12/04/2018,European Asbestos Services Ltd,659558,7537.5,Asbestos Removal,Asbestos,Premises
12/04/2018,European Asbestos Services Ltd,659560,974.52,Asbestos Removal,Asbestos,Premises
12/04/2018,European Asbestos Services Ltd,659579,1046.3,Asbestos Removal,Asbestos,Premises
12/04/2018,European Asbestos Services Ltd,659553,974.52,Blocks Of Flat Repairs,General Maintenance,Premises
12/04/2018,F K Commercials Ltd,658317,1513.17,Reactive Repairs,Refuse Collection,Transport
12/04/2018,First Class Builders Ltd,659799,3262.66,Contract Payments,Adaptations,Supplies & Services
12/04/2018,First Class Builders Ltd,659497,9871.54,General Maintenance,General Maintenance,Premises
12/04/2018,Goldsworthy Heating,659430,3724,Grants Issued,Disabled Facilities Grants,Supplies & Services
12/04/2018,Jardine Lloyd Thompson Tenant Risk,659427,5784.63,Insurance - Contents Policy,Lettings & Leasehold,Premises
12/04/2018,Mears Ltd,659435,21.68,Blocks Of Flat Repairs,General Maintenance,Premises
12/04/2018,Mears Ltd,658615,418.29,General Maintenance,Elec Testing/Reactive,Premises
12/04/2018,Mears Ltd,658615,1516.85,General Maintenance,General Maintenance,Premises
12/04/2018,Mears Ltd,659432,1203.49,General Maintenance,General Maintenance,Premises
12/04/2018,Mears Ltd,659435,1304.99,General Maintenance,General Maintenance,Premises
12/04/2018,Mears Ltd,659436,2100.48,Repairs To Void Properties,Psl Properties,Premises
12/04/2018,Morgan Hunt Uk Ltd,659039,990.63,Temp.Contract-Agency Staff,Revenues Recovery,Pay
12/04/2018,Morgan Hunt Uk Ltd,659040,757.62,Temp.Contract-Agency Staff,Revenues Recovery,Pay
12/04/2018,Morgan Hunt Uk Ltd,659042,812.5,Temp.Contract-Agency Staff,Revenues Recovery,Pay
12/04/2018,Network Merchants Ltd (Formerly Creditcall),659493,752.44,Card Payment Charges,Car Parks,Supplies & Services
12/04/2018,Off The Kerb Productions Ltd,659877,900,Event Promotion,Exeter Corn Exchange,Supplies & Services
12/04/2018,Phil Aldridge Productions Ltd,659475,2241.13,Event Promotion,Exeter Corn Exchange,Supplies & Services
12/04/2018,Scott Horner,658528,500,Solicitors And Legal Fees/Lics,Vehicles Licensing,Supplies & Services
12/04/2018,Spektrix Ltd,659869,1248.48,Event Promotion,Exeter Corn Exchange,Supplies & Services
12/04/2018,Stagecoach Services Ltd,659486,2349,Public Transport,Green Travel Plan,Transport
12/04/2018,Therm-Eco Ewi Ltd,659820,1666.67,Grants Issued,Warm Up Exeter,Supplies & Services
12/04/2018,Westcountry Fire Protection Ltd,659507,3366,Emergency Light Testing,Service Contracts,Premises
12/04/2018,Wise Employment,658365,580.63,Temp.Contract-Agency Staff,Revenues Recovery,Pay
13/04/2018,A1 Electrics,658566,500,Aim Lease Requirements,Miscellaneous Properties,Premises
13/04/2018,Allstar Business Solutions,659961,71.47,Motor Fuel,Canal,Transport
13/04/2018,Allstar Business Solutions,659961,80.01,Motor Fuel,Car Park Sweeping,Transport
13/04/2018,Allstar Business Solutions,659961,255.24,Motor Fuel,Cash Collection,Transport
13/04/2018,Allstar Business Solutions,659961,491.05,Motor Fuel,Cemeteries - Operational,Transport
13/04/2018,Allstar Business Solutions,659961,268.48,Motor Fuel,Cleansing Overheads,Transport
13/04/2018,Allstar Business Solutions,659961,95.44,Motor Fuel,Development Team,Transport
13/04/2018,Allstar Business Solutions,659961,1434.71,Motor Fuel,Do Not Use - Use C059,Transport
13/04/2018,Allstar Business Solutions,659961,176.86,Motor Fuel,Dog Bins,Transport
13/04/2018,Allstar Business Solutions,659961,268.55,Motor Fuel,Electricians,Transport
13/04/2018,Allstar Business Solutions,659961,208.68,Motor Fuel,Graffiti Cleaning,Transport
13/04/2018,Allstar Business Solutions,659961,1686.7,Motor Fuel,Green Waste Collection Service,Transport
13/04/2018,Allstar Business Solutions,659961,87.11,Motor Fuel,Housing Cleansing Round,Transport
13/04/2018,Allstar Business Solutions,659961,221.82,Motor Fuel,Litter Bins,Transport
13/04/2018,Allstar Business Solutions,659961,203.49,Motor Fuel,Materials Reclamation Facility,Transport
13/04/2018,Allstar Business Solutions,659961,84.43,Motor Fuel,Mayoralty,Transport
13/04/2018,Allstar Business Solutions,659961,1454.45,Motor Fuel,Other Street Sweeping,Transport
13/04/2018,Allstar Business Solutions,659961,2375.3,Motor Fuel,Parks And Playing Fields,Transport
13/04/2018,Allstar Business Solutions,659961,365.03,Motor Fuel,Parks Operational Overheads,Transport
13/04/2018,Allstar Business Solutions,659961,240.15,Motor Fuel,Property Assets - Builders,Transport
13/04/2018,Allstar Business Solutions,659961,237.43,Motor Fuel,Public Conveniences,Transport
13/04/2018,Allstar Business Solutions,659961,91.1,Motor Fuel,Ramm,Transport
13/04/2018,Allstar Business Solutions,659961,378.09,Motor Fuel,Reactive Team,Transport
13/04/2018,Allstar Business Solutions,659961,114.43,Motor Fuel,Recycling Management /Strategy,Transport
13/04/2018,Allstar Business Solutions,659961,557.32,Motor Fuel,Recycling Round,Transport
13/04/2018,Allstar Business Solutions,659961,10192.23,Motor Fuel,Refuse Collection,Transport
13/04/2018,Allstar Business Solutions,659961,201.66,Motor Fuel,Special Collections,Transport
13/04/2018,Allstar Business Solutions,659961,2298.39,Motor Fuel,Trade Refuse & Recycling,Transport
13/04/2018,Andrew Hart Industrial Roofing Ltd,659855,46804.21,Contract Payments,Reroofing Works Shilhay,Supplies & Services
13/04/2018,Ashfords,659369,1104,Solicitors And Legal Fees/Lics,Leisure Complex - Build,Supplies & Services
13/04/2018,Avery Weigh-Tronix,659509,760,Equipment Tools And Materials,Materials Reclamation Facility,Supplies & Services
13/04/2018,Aw Jenkinson Transport Ltd,659370,1470,Comingled Haulage Out,Materials & Goods For Resale,Transport
13/04/2018,Aw Jenkinson Transport Ltd,659868,980,Comingled Haulage Out,Materials & Goods For Resale,Transport
13/04/2018,Building Recruitment Co Ltd,659050,866.84,Temp.Contract-Agency Staff,Planned Works,Pay
13/04/2018,Building Recruitment Co Ltd,659046,562.99,Temp.Contract-Agency Staff,Reactive Repairs,Pay
13/04/2018,D G Electrical Services,658503,498.6,Aim Reactive Repairs,Property Maintenance,Premises
13/04/2018,D G Electrical Services,658636,1039.8,Aim Reactive Repairs,Property Maintenance,Premises
13/04/2018,D R Jones (Yeovil) Ltd,659446,2933.34,Contract Payments,Bathroom Replacements,Supplies & Services
13/04/2018,D R Jones (Yeovil) Ltd,659448,3184.22,Contract Payments,Bathroom Replacements,Supplies & Services
13/04/2018,Devon Commercial Stationers Ltd,659517,512.4,Purchase Of Furniture,Benefits Administration,Supplies & Services
13/04/2018,E.On   (Electricity),659352,7672.34,Electricity,Ramm,Premises
13/04/2018,E.On   (Gas),659449,2074.47,Gas,Civic Centre,Premises
13/04/2018,E.On   (Gas),659463,502.06,Gas,Guildhall Chambers,Premises
13/04/2018,E.On   (Gas),659468,2953.67,Gas,Ramm,Premises
13/04/2018,Energyserv Uk Ltd,659810,1200.44,Gas & Central Heating,Service Contracts,Premises
13/04/2018,G & L Consultancy Ltd,659831,495,Asbestos Surveys,Asbestos,Premises
13/04/2018,G & L Consultancy Ltd,659832,990,Asbestos Surveys,Asbestos,Premises
13/04/2018,G & L Consultancy Ltd,659834,650,Asbestos Surveys,Asbestos,Premises
13/04/2018,G & L Consultancy Ltd,659835,1430,Asbestos Surveys,Asbestos,Premises
13/04/2018,Learning Nexus Ltd,656390,8800,Staff Training,Learning & Development,Pay
13/04/2018,Masons Kings,658511,26892.54,Plant Acquisitions,Parks And Playing Fields,Transport
13/04/2018,Mears Ltd,658723,270.27,General Maintenance,Elec Testing/Reactive,Premises
13/04/2018,Mears Ltd,658723,601.5,General Maintenance,General Maintenance,Premises
13/04/2018,Mears Ltd,658330,4126.24,General Maintenance,Repairs To Void Properties,Premises
13/04/2018,Mears Ltd,658723,66.14,Knights Place Repairs & Maint,Knights Place,Premises
13/04/2018,Mitie Technical Facilities Managment Ltd,658077,1285.33,Aim Service & Maintenance,Property Maintenance,Premises
13/04/2018,Mitie Technical Facilities Managment Ltd,658361,1285.33,Aim Service & Maintenance,Property Maintenance,Premises
13/04/2018,Premier Roofing Contractors Ltd,658655,5082.7,General Maintenance,General Maintenance,Premises
13/04/2018,Sampson Hall Ltd,485797,1400,Consultants Fees,Deputy Chief Executive,Supplies & Services
13/04/2018,Secureforce Uk Ltd,658813,698,Central Alarm Service,Ramm,Premises
13/04/2018,Secureforce Uk Ltd,658813,449,Central Alarm Service,"The Ark Museum Store, Exton Rd",Premises
13/04/2018,The Best Connection Group Ltd,659257,545.06,Casuals Waged-Agency Staff,Materials Reclamation Facility,Pay
13/04/2018,The Best Connection Group Ltd,659271,638.59,Casuals Waged-Agency Staff,Public Conveniences,Pay
13/04/2018,Trucksmith T/A Really Trucks,659368,450,Paper Haulage Out,Materials & Goods For Resale,Transport
13/04/2018,Trump Engineering Ltd,659286,2808,Maintenance Of Equipment,Materials Reclamation Facility,Supplies & Services
13/04/2018,W J Mathews (Exeter) Ltd,656894,480,Aim Reactive Repairs,Property Maintenance,Premises
16/04/2018,Arch,659886,2500,Subscriptions,General Management,Supplies & Services
16/04/2018,Bloom Procurement Services,659028,5363.2,Contract Payments,Heavitree (Cob Wave Iii),Supplies & Services
16/04/2018,Bristol Street Motors,659489,584.05,Reactive Repairs,Parks And Playing Fields,Transport
16/04/2018,Capita Business Services,659863,422.5,Academy ( Capita ) System,Benefits Administration,Supplies & Services
16/04/2018,Capita Business Services,659863,422.5,Academy ( Capita ) System,Council Tax Collection,Supplies & Services
16/04/2018,Devon Tree Services Ltd (Do Not Use See 22174,659992,953.6,Hra Shrubs & Trees - Communal,Estate Maintenance,Premises
16/04/2018,Devon Tree Services Ltd (Do Not Use See 22174,659275,2860.8,Special Works,Canal,Premises
16/04/2018,Devon Tree Services Ltd (Do Not Use See 22174,659990,1788,Sub-Contractors,Estate Maintenance,Premises
16/04/2018,Dodd Group (South) Ltd,659540,17013.47,Electrical Works - Domestic,Prog'D Elec Re-Wiring General,Supplies & Services
16/04/2018,Dwml Holdings Ltd,659076,2129.83,Green Waste Processing Costs,Parks And Playing Fields,Premises
16/04/2018,Envirovent Ltd,660045,1053.11,General Maintenance,Elec Testing/Reactive,Premises
16/04/2018,Envirovent Ltd,658633,1140.65,General Maintenance,General Maintenance,Premises
16/04/2018,Euromec Contracts Ltd,659803,423.52,Reactive Repairs,Bid Cleansing Project,Transport
16/04/2018,F K Commercials Ltd,658884,1565.68,Reactive Repairs,Refuse Collection,Transport
16/04/2018,F K Commercials Ltd,658885,423.22,Reactive Repairs,Refuse Collection,Transport
16/04/2018,Gae Smith Holdings Ltd T/A Casepak,659973,6437.12,Processing Comingled Materials,Materials & Goods For Resale,Supplies & Services
16/04/2018,Gemini Consultants Ltd,659495,5011.72,Mortgage Administration,Accountancy Services,Supplies & Services
16/04/2018,Gullivers Truck Hire Ltd,659526,625.44,Routine Maintenance,Recycling Round,Transport
16/04/2018,Hako Machines Ltd,658804,1835.61,Routine Maintenance,Do Not Use - Use C059,Transport
16/04/2018,Holt Jcb Ltd,658843,540.65,Reactive Repairs,Materials & Goods For Resale,Transport
16/04/2018,Hqn Ltd,659875,820,Subscriptions,General Management,Supplies & Services
16/04/2018,Marsh Ltd Uk,659826,1885.3,Liability Insurance Premiums,Public Liability Insurance,Pay
16/04/2018,Marsh Ltd Uk,659827,5000,Liability Insurance Premiums,Public Liability Insurance,Pay
16/04/2018,Marsh Ltd Uk,659828,93373.28,Liability Insurance Premiums,Public Liability Insurance,Pay
16/04/2018,Mears Ltd,659983,123.18,Blocks Of Flat Repairs,General Maintenance,Premises
16/04/2018,Mears Ltd,659985,59.62,Blocks Of Flat Repairs,General Maintenance,Premises
16/04/2018,Mears Ltd,659975,27.07,General Maintenance,Elec Testing/Reactive,Premises
16/04/2018,Mears Ltd,659985,35,General Maintenance,Elec Testing/Reactive,Premises
16/04/2018,Mears Ltd,660013,195.99,General Maintenance,Elec Testing/Reactive,Premises
16/04/2018,Mears Ltd,659975,1923.47,General Maintenance,General Maintenance,Premises
16/04/2018,Mears Ltd,659981,516.24,General Maintenance,General Maintenance,Premises
16/04/2018,Mears Ltd,659983,1956.25,General Maintenance,General Maintenance,Premises
16/04/2018,Mears Ltd,659985,1348.87,General Maintenance,General Maintenance,Premises
16/04/2018,Mears Ltd,660013,632.92,General Maintenance,General Maintenance,Premises
16/04/2018,Mears Ltd,660029,1222.78,Repairs To Void Properties,Psl Properties,Premises
16/04/2018,Pell Frischmann Consultants Ltd,659895,1402.5,Contract Payments,Common Area Footpth/Wall Imps,Supplies & Services
16/04/2018,Pinewood Technologies Plc,660186,2500,Equipment Tools And Materials,Transport Management,Supplies & Services
16/04/2018,Premier Roofing Contractors Ltd,658514,1153.1,General Maintenance,General Maintenance,Premises
16/04/2018,Renault Trucks Commercial Ltd,659088,3822.08,Reactive Repairs,Cemeteries - Operational,Transport
16/04/2018,Renault Trucks Commercial Ltd,658901,506.19,Reactive Repairs,Dog Bins,Transport
16/04/2018,Renault Trucks Commercial Ltd,658905,622.79,Reactive Repairs,Housing Cleansing Round,Transport
16/04/2018,Renault Trucks Commercial Ltd,658844,418.25,Reactive Repairs,Recycling Round,Transport
16/04/2018,Renault Trucks Commercial Ltd,659088,127.6,Routine Maintenance,Cemeteries - Operational,Transport
16/04/2018,Robert Heath Heating Ltd,659974,527.92,Contract Payments,Boiler Replacement Programme,Supplies & Services
16/04/2018,Robert Heath Heating Ltd,659979,527.92,Contract Payments,Boiler Replacement Programme,Supplies & Services
16/04/2018,Robert Heath Heating Ltd,660010,636.82,Contract Payments,Boiler Replacement Programme,Supplies & Services
16/04/2018,Robert Heath Heating Ltd,660011,512.27,Contract Payments,Boiler Replacement Programme,Supplies & Services
16/04/2018,Robert Heath Heating Ltd,659998,40973.66,Gas & Central Heating,Service Contracts,Premises
16/04/2018,Robert Heath Heating Ltd,660000,2864.42,Gas & Central Heating,Service Contracts,Premises
16/04/2018,Robert Heath Heating Ltd,660004,498.16,Service & Maint Agreements,Extralet,Premises
16/04/2018,Robert Heath Heating Ltd,659997,498.16,Service & Maint Agreements,Psl Properties,Premises
16/04/2018,Stonewater Ltd,659901,3668,Serviced Accommodation,Serviced Accommodation,Premises
16/04/2018,Venn Group Ltd,659836,427.86,Temp.Contract-Agency Staff,Planned Works,Pay
16/04/2018,Venn Group Ltd,659836,641.8,Temp.Contract-Agency Staff,Reactive Repairs,Pay
16/04/2018,Whistl Uk Ltd,659654,879.05,Postage/Stamps,Mail,Supplies & Services
16/04/2018,Young Devon,659838,2500,Grants Issued,The Exeter Strategic Board,Supplies & Services
17/04/2018,Absolute Pr + Marketing Ltd,659095,2000,Project Work,Visit Exeter,Supplies & Services
17/04/2018,Baker Ruff Hannon Llp,660236,4200,Consultants Fees,Bus Station Construction,Supplies & Services
17/04/2018,Baker Ruff Hannon Llp,660235,6000,Consultants Fees,Leisure Complex - Build,Supplies & Services
17/04/2018,Berry Recruitment,660257,635.9,Casuals Waged-Agency Staff,Do Not Use - Use C059,Pay
17/04/2018,Berry Recruitment,658489,444.46,Casuals Waged-Agency Staff,Waste Agency Costs,Pay
17/04/2018,Berry Recruitment,659059,450,Casuals Waged-Agency Staff,Waste Agency Costs,Pay
17/04/2018,Berry Recruitment,660252,462.36,Casuals Waged-Agency Staff,Waste Agency Costs,Pay
17/04/2018,Brook Street (Uk) Ltd,660225,903.1,Temp.Contract-Agency Staff,Health & Safety Compliance,Pay
17/04/2018,Building Recruitment Co Ltd,660221,772.4,Temp.Contract-Agency Staff,Housing Advice,Pay
17/04/2018,Building Recruitment Co Ltd,660253,458.79,Temp.Contract-Agency Staff,Housing Advice,Pay
17/04/2018,Building Recruitment Co Ltd,660254,959.4,Temp.Contract-Agency Staff,Housing Advice,Pay
17/04/2018,Building Recruitment Co Ltd,660251,442.47,Temp.Contract-Agency Staff,Planned Works,Pay
17/04/2018,Building Recruitment Co Ltd,660255,841.98,Temp.Contract-Agency Staff,Planned Works,Pay
17/04/2018,Building Recruitment Co Ltd,660218,906.1,Temp.Contract-Agency Staff,Reactive Repairs,Pay
17/04/2018,Concept Staffing Ltd,658559,1254.47,Casuals Waged-Agency Staff,Waste Agency Costs,Pay
17/04/2018,Concept Staffing Ltd,658677,1347.94,Casuals Waged-Agency Staff,Waste Agency Costs,Pay
17/04/2018,Concept Staffing Ltd,660180,763.51,Casuals Waged-Agency Staff,Waste Agency Costs,Pay
17/04/2018,Craemer Uk Ltd,659367,11960,Bins & Recycling Boxes,Refuse Collection,Supplies & Services
17/04/2018,Devon Tree Services Ltd (Do Not Use See 22174,659994,3337.6,Hra Shrubs & Trees - Communal,Estate Maintenance,Premises
17/04/2018,Devon Tree Services Ltd (Do Not Use See 22174,659995,864.2,Hra Shrubs & Trees - Communal,Estate Maintenance,Premises
17/04/2018,Devon Tree Services Ltd (Do Not Use See 22174,659991,3576,Hra Shrubs & Trees - Gardens,Estate Maintenance,Premises
17/04/2018,Exeter City Football Club Ltd,658895,1160,Staff Training,Learning & Development,Pay
17/04/2018,Florian Zumfelde,659887,800,Marketing,Comms & Marketing Activity,Supplies & Services
17/04/2018,Freight Transport Association,658552,750,Hgv Driver Training Programme,Refuse Collection,Pay
17/04/2018,Gap Personnel,660007,409.96,Casuals Waged-Agency Staff,Other Street Sweeping,Pay
17/04/2018,Gap Personnel,660256,346.63,Casuals Waged-Agency Staff,Other Street Sweeping,Pay
17/04/2018,Gap Personnel,660007,858.7,Casuals Waged-Agency Staff,Parks And Playing Fields,Pay
17/04/2018,Gap Personnel,660256,646.25,Casuals Waged-Agency Staff,Parks And Playing Fields,Pay
17/04/2018,James Andrews Recruitment Solutions Ltd,660063,1170,Temp.Contract-Agency Staff,Housing Advice,Pay
17/04/2018,James Andrews Recruitment Solutions Ltd,660065,971.99,Temp.Contract-Agency Staff,Housing Advice,Pay
17/04/2018,James Andrews Recruitment Solutions Ltd,659060,1245.83,Temp.Contract-Agency Staff,Human Resources,Pay
17/04/2018,Jeremy Benn Associates Ltd T/A Jba Consulting,659893,2870,Special Works,Canal,Premises
17/04/2018,Jeremy Benn Associates Ltd T/A Jba Consulting,660233,1275,Special Works,Canal - Assets,Premises
17/04/2018,Local World Ltd,659079,1000,Advertising,Comms & Marketing Activity,Supplies & Services
17/04/2018,Local World Ltd,659244,500,Advertising,Comms & Marketing Activity,Supplies & Services
17/04/2018,Local World Ltd,659245,600,Advertising,Comms & Marketing Activity,Supplies & Services
17/04/2018,Mediaclash,659096,4000,Advertising,Visit Exeter,Supplies & Services
17/04/2018,Morgan Hunt Uk Ltd,660042,3556.25,Temp.Contract-Agency Staff,Procurement,Pay
17/04/2018,Morgan Hunt Uk Ltd,659986,996.44,Temp.Contract-Agency Staff,Revenues Recovery,Pay
17/04/2018,Morgan Hunt Uk Ltd,660044,1000.89,Temp.Contract-Agency Staff,Revenues Recovery,Pay
17/04/2018,Morgan Hunt Uk Ltd,660259,1255.41,Temp.Contract-Agency Staff,Revenues Recovery,Pay
17/04/2018,P K Safety,658690,454.39,"Clothing, Laundry, & Uniforms",Cleansing Overheads,Supplies & Services
17/04/2018,Pcc Devon & Cornwall,660055,1500,Contributions,Premises Licensing,Supplies & Services
17/04/2018,Purchase Power,660185,3039,Postage/Stamps,Mail,Supplies & Services
17/04/2018,Royal Mail,660160,118.75,Postage/Stamps,Custom House Visitor Centre,Supplies & Services
17/04/2018,Royal Mail,660160,1290.02,Postage/Stamps,Exeter Visitor Information,Supplies & Services
17/04/2018,Royal Mail,660160,832.61,Postage/Stamps,Underground Passages,Supplies & Services
17/04/2018,South West Councils,659506,6255,Subscriptions,Democratic Costs,Supplies & Services
17/04/2018,Southern Electric,659897,1040.28,Electricity,Public Conveniences - Assets,Premises
17/04/2018,The Best Connection Group Ltd,649637,503.82,Casuals Waged-Agency Staff,Bid Cleansing Project,Pay
17/04/2018,The Best Connection Group Ltd,660034,721.28,Casuals Waged-Agency Staff,Materials Reclamation Facility,Pay
17/04/2018,The Best Connection Group Ltd,660040,1601.97,Casuals Waged-Agency Staff,Materials Reclamation Facility,Pay
17/04/2018,The Best Connection Group Ltd,660030,280.76,Casuals Waged-Agency Staff,Parks And Playing Fields,Pay
17/04/2018,The Best Connection Group Ltd,649637,407.38,Casuals Waged-Agency Staff,Public Conveniences,Pay
17/04/2018,The Best Connection Group Ltd,660030,429.4,Casuals Waged-Agency Staff,Rechargeable Works,Pay
17/04/2018,The Chelsea Magazines Company Ltd,659519,1035,Advertising,Visit Exeter,Supplies & Services
17/04/2018,Ultimate Cleaning South West,658681,530,Casuals Waged-Agency Staff,Cleansing Overheads,Pay
17/04/2018,Visit Devon Community Interest Company,659533,1500,Marketing,Visit Exeter,Supplies & Services
17/04/2018,W B Employment Ltd,658557,680.28,Casuals Waged-Agency Staff,Waste Agency Costs,Pay
17/04/2018,West End Welding,660183,675,Sub-Contractors,Car Parks,Premises
17/04/2018,West End Welding,660212,1225,Sub-Contractors,River Exe - Assets,Premises
17/04/2018,Whistl Uk Ltd,660250,873.71,Postage/Stamps,Mail,Supplies & Services
17/04/2018,Wider Plan Ltd,660237,28.36,Commission,Payroll,Supplies & Services
17/04/2018,Wireless Cctv Ltd,659649,2249,Equipment Tools And Materials,Community Safety Partnerships,Supplies & Services
17/04/2018,Wise Employment,658546,947.8,Casuals Waged-Agency Staff,Waste Agency Costs,Pay
17/04/2018,Wise Employment,660224,460.4,Temp.Contract-Agency Staff,Revenues Recovery,Pay
18/04/2018,3c Payment Uk Ltd,659582,1514,Card Payment Charges,Car Parks,Supplies & Services
18/04/2018,A S Mooring Services Ltd,658538,1854.7,Materials For Buoys,River Exe - Assets,Premises
18/04/2018,Airwave Solutions Ltd,660234,1005.65,Sia Licence Costs,Cctv Control Room,Pay
18/04/2018,Bloom Procurement Services,660213,13317.13,Consultants Fees,Exeter City Futures,Supplies & Services
18/04/2018,Building Recruitment Co Ltd,659049,895.46,Temp.Contract-Agency Staff,Reactive Repairs,Pay
18/04/2018,Building Recruitment Co Ltd,660220,908.82,Temp.Contract-Agency Staff,Reactive Repairs,Pay
18/04/2018,Castle Group Limited,660261,500,Routine Maintenance,Parks And Playing Fields,Transport
18/04/2018,Coolair Logan Ltd,659785,590,Routine Maintenance,Green Waste Collection Service,Transport
18/04/2018,Coolair Logan Ltd,659785,3245,Routine Maintenance,Refuse Collection,Transport
18/04/2018,Coolair Logan Ltd,659785,590,Routine Maintenance,Trade Refuse & Recycling,Transport
18/04/2018,Devon Norse Ltd,660408,474.85,Cleaning,Cctv Control Room,Premises
18/04/2018,F K Commercials Ltd,658320,768.39,Reactive Repairs,Refuse Collection,Transport
18/04/2018,Inform Cpi Ltd,659474,3975,Consultants Fees,Glencoe,Supplies & Services
18/04/2018,Inform Cpi Ltd,659471,1150,Consultants Fees,Nndr Collection,Supplies & Services
18/04/2018,Inform Cpi Ltd,659473,6750,Consultants Fees,Nndr Collection,Supplies & Services
18/04/2018,Inform Cpi Ltd,660211,10000,Consultants Fees,Nndr Collection,Supplies & Services
18/04/2018,Interwoven Productions,659811,8500,Grants Issued,Community Inclusion & Involv'T,Supplies & Services
18/04/2018,James Andrews Recruitment Solutions Ltd,658088,521.29,Temp.Contract-Agency Staff,Planning,Pay
18/04/2018,James Andrews Recruitment Solutions Ltd,660064,563.14,Temp.Contract-Agency Staff,Planning,Pay
18/04/2018,Julian House,660415,11893.09,Other Expenses,Rough Sleeping Grant,Supplies & Services
18/04/2018,Julian House,660414,37474.09,Street Outreach Team Main Cont,Resettlement Strategy,Supplies & Services
18/04/2018,Leamans Letting Agents Ltd,660511,695,Recharges,Bed And Breakfast,Income
18/04/2018,Local World Ltd,659246,430,Advertising,Comms & Marketing Activity,Supplies & Services
18/04/2018,Mauser Uk Ltd T/A Daniels Healthcare Ltd,659989,1186.4,Sharp Box,Refuse Collection,Supplies & Services
18/04/2018,Mitie Property Services,658619,960,Aim Reactive Repairs,Property Maintenance,Premises
18/04/2018,Morgan Hunt Uk Ltd,660219,849.75,Temp.Contract-Agency Staff,Benefits Administration,Pay
18/04/2018,Morgan Hunt Uk Ltd,660260,2930.36,Temp.Contract-Agency Staff,Procurement,Pay
18/04/2018,Morgan Hunt Uk Ltd,660041,1050,Temp.Contract-Agency Staff,Revenues Recovery,Pay
18/04/2018,Pattersons (Bristol) Ltd,660209,458.13,Cleaning Materials,Ramm,Premises
18/04/2018,Post Office Counters Ltd,660334,155,Vehicle Road Tax,Parks Operational Overheads,Transport
18/04/2018,Post Office Counters Ltd,660334,2400,Vehicle Road Tax,Refuse Collection,Transport
18/04/2018,Public Power Solutions,660509,700,Consultants Fees,Corporate Energy Team,Supplies & Services
18/04/2018,Sally Strachey Historic Conservation,659972,1552.45,Contract Payments,St Nicholas Priory,Supplies & Services
18/04/2018,Sciprint Ltd,659261,3291.5,Stationery,District Council Elections,Supplies & Services
18/04/2018,Shoreline Surveys,656489,2575,Special Works,River Exe,Premises
18/04/2018,Southern Electric,657677,507.96,Electricity,Canal - Assets,Premises
18/04/2018,Southern Electric,657680,424.62,Electricity,Canal - Assets,Premises
18/04/2018,Stuart Blaylock,658718,500,Consultants Fees,Afu Projects,Supplies & Services
18/04/2018,Teignbridge District Council,659064,2927.08,Grants Issued,Planning,Supplies & Services
18/04/2018,Teignmouth Harbour Commissions,659534,934.23,Marine Advice Contract,River Exe,Supplies & Services
18/04/2018,Tolchards Ltd,660230,798.3,Drinks,Exeter Corn Exchange,Supplies & Services
18/04/2018,Trowers & Hamlins Llp,658102,1230,Miscellaneous Expenditure,Revenues Recovery,Supplies & Services
18/04/2018,Venn Group Ltd,660397,325.69,Temp.Contract-Agency Staff,Planned Works,Pay
18/04/2018,Venn Group Ltd,660397,488.53,Temp.Contract-Agency Staff,Reactive Repairs,Pay
18/04/2018,W B Employment Ltd,660366,691.8,Casuals Waged-Agency Staff,Waste Agency Costs,Pay
18/04/2018,W B Employment Ltd,660370,853.22,Casuals Waged-Agency Staff,Waste Agency Costs,Pay
18/04/2018,Young Devon,660411,23867.75,Young Persons Prevention Serv,Resettlement Strategy,Supplies & Services
19/04/2018,Berry Recruitment,660258,576.74,Casuals Waged-Agency Staff,Car Park Sweeping,Pay
19/04/2018,Concept Staffing Ltd,660178,333.94,Casuals Waged-Agency Staff,Bid Cleansing Project,Pay
19/04/2018,Concept Staffing Ltd,660178,170.85,Casuals Waged-Agency Staff,Car Park Sweeping,Pay
19/04/2018,Concept Staffing Ltd,660178,364.48,Casuals Waged-Agency Staff,Cemeteries - Operational,Pay
19/04/2018,Concept Staffing Ltd,660178,273.36,Casuals Waged-Agency Staff,Childrens Play Areas,Pay
19/04/2018,Concept Staffing Ltd,660178,1356.8,Casuals Waged-Agency Staff,Do Not Use - Use C059,Pay
19/04/2018,Concept Staffing Ltd,660181,559.65,Casuals Waged-Agency Staff,Materials Reclamation Facility,Pay
19/04/2018,Concept Staffing Ltd,660178,1006.03,Casuals Waged-Agency Staff,Other Street Sweeping,Pay
19/04/2018,Concept Staffing Ltd,660178,421.43,Casuals Waged-Agency Staff,Public Conveniences,Pay
19/04/2018,Gap Personnel,660002,232.68,Casuals Waged-Agency Staff,Do Not Use - Use C059,Pay
19/04/2018,Gap Personnel,660006,409.96,Casuals Waged-Agency Staff,Do Not Use - Use C059,Pay
19/04/2018,Gap Personnel,660003,409.96,Casuals Waged-Agency Staff,Other Street Sweeping,Pay
19/04/2018,Gap Personnel,660228,364.25,Casuals Waged-Agency Staff,Other Street Sweeping,Pay
19/04/2018,Gap Personnel,660003,864.24,Casuals Waged-Agency Staff,Parks And Playing Fields,Pay
19/04/2018,Gap Personnel,660002,199.44,Casuals Waged-Agency Staff,Public Conveniences,Pay
19/04/2018,Gap Personnel,660006,459.43,Casuals Waged-Agency Staff,Public Conveniences,Pay
19/04/2018,Gap Personnel,660228,88.13,Casuals Waged-Agency Staff,Public Conveniences,Pay
19/04/2018,James Andrews Recruitment Solutions Ltd,660553,855,Temp.Contract-Agency Staff,Housing Advice,Pay
19/04/2018,James Andrews Recruitment Solutions Ltd,660559,937.5,Temp.Contract-Agency Staff,Housing Advice,Pay
19/04/2018,James Andrews Recruitment Solutions Ltd,660560,794.67,Temp.Contract-Agency Staff,Housing Advice,Pay
19/04/2018,James Andrews Recruitment Solutions Ltd,660556,483.24,Temp.Contract-Agency Staff,Planning,Pay
19/04/2018,Lower Exe Mooring Administration Ltd,658308,1482.25,Rents,River Exe,Premises
19/04/2018,Mears Ltd,659976,35,General Maintenance,Elec Testing/Reactive,Premises
19/04/2018,Mears Ltd,659976,746.04,General Maintenance,General Maintenance,Premises
19/04/2018,Newtown Community Association,660538,6100,Grants Issued,Newtown Community Centre S106,Supplies & Services
19/04/2018,Savills (Uk) Ltd,660581,424.55,Service Charges,Cctv Control Room,Premises
19/04/2018,The Best Connection Group Ltd,660032,580.84,Casuals Waged-Agency Staff,Bid Cleansing Project,Pay
19/04/2018,The Best Connection Group Ltd,660036,613.85,Casuals Waged-Agency Staff,Bid Cleansing Project,Pay
19/04/2018,The Best Connection Group Ltd,660018,465.23,Casuals Waged-Agency Staff,Public Conveniences,Pay
19/04/2018,Tobias Borthen Design,660551,4593.75,Consultants Fees,Communications & Marketing,Supplies & Services
19/04/2018,W B Employment Ltd,660368,426.61,Casuals Waged-Agency Staff,Do Not Use - Use C059,Pay
19/04/2018,West End Welding,660563,915,Sub-Contractors,River Exe - Assets,Premises
20/04/2018,Barcham Trees Plc,660679,1335,Hra Shrubs & Trees - Communal,Estate Maintenance,Premises
20/04/2018,C R Willcocks & Co Ltd,660574,769.3,Routine Maintenance,Cemeteries - Operational,Transport
20/04/2018,C R Willcocks & Co Ltd,660575,1707.26,Routine Maintenance,Cemeteries - Operational,Transport
20/04/2018,C R Willcocks & Co Ltd,660404,1212.52,Routine Maintenance,Parks And Playing Fields,Transport
20/04/2018,Complete Water Solutions (Ltd),660513,2593.92,Sub-Contractors,Car Parks,Premises
20/04/2018,Jo Sarsby Personal Management Ltd,660582,1200.79,Event Promotion,Exeter Corn Exchange,Supplies & Services
20/04/2018,Jocelyn + Deric King,660691,3255.09,Rents,Extralet,Premises
20/04/2018,Jtt Contracting Ltd,660056,681.8,Sub-Contractors,Signs & Sundries - Assets,Premises
20/04/2018,Mears Ltd,660721,44.3,Blocks Of Flat Repairs,General Maintenance,Premises
20/04/2018,Mears Ltd,660722,34.12,Blocks Of Flat Repairs,General Maintenance,Premises
20/04/2018,Mears Ltd,660723,147.72,Blocks Of Flat Repairs,General Maintenance,Premises
20/04/2018,Mears Ltd,660755,127.04,Blocks Of Flat Repairs,General Maintenance,Premises
20/04/2018,Mears Ltd,660757,89.4,Blocks Of Flat Repairs,General Maintenance,Premises
20/04/2018,Mears Ltd,660761,164.06,Blocks Of Flat Repairs,General Maintenance,Premises
20/04/2018,Mears Ltd,660762,43.74,Blocks Of Flat Repairs,General Maintenance,Premises
20/04/2018,Mears Ltd,660768,92.08,Blocks Of Flat Repairs,General Maintenance,Premises
20/04/2018,Mears Ltd,660769,21.68,Blocks Of Flat Repairs,General Maintenance,Premises
20/04/2018,Mears Ltd,660721,85.71,General Maintenance,Elec Testing/Reactive,Premises
20/04/2018,Mears Ltd,660722,57.61,General Maintenance,Elec Testing/Reactive,Premises
20/04/2018,Mears Ltd,660755,21.68,General Maintenance,Elec Testing/Reactive,Premises
20/04/2018,Mears Ltd,660757,21.68,General Maintenance,Elec Testing/Reactive,Premises
20/04/2018,Mears Ltd,660762,401.09,General Maintenance,Elec Testing/Reactive,Premises
20/04/2018,Mears Ltd,660768,47.4,General Maintenance,Elec Testing/Reactive,Premises
20/04/2018,Mears Ltd,660769,21.68,General Maintenance,Elec Testing/Reactive,Premises
20/04/2018,Mears Ltd,660721,1584.85,General Maintenance,General Maintenance,Premises
20/04/2018,Mears Ltd,660722,661.73,General Maintenance,General Maintenance,Premises
20/04/2018,Mears Ltd,660723,3573.61,General Maintenance,General Maintenance,Premises
20/04/2018,Mears Ltd,660755,1026.52,General Maintenance,General Maintenance,Premises
20/04/2018,Mears Ltd,660757,504.22,General Maintenance,General Maintenance,Premises
20/04/2018,Mears Ltd,660759,567.43,General Maintenance,General Maintenance,Premises
20/04/2018,Mears Ltd,660761,971.03,General Maintenance,General Maintenance,Premises
20/04/2018,Mears Ltd,660762,433.01,General Maintenance,General Maintenance,Premises
20/04/2018,Mears Ltd,660766,1207.49,General Maintenance,General Maintenance,Premises
20/04/2018,Mears Ltd,660768,984.44,General Maintenance,General Maintenance,Premises
20/04/2018,Mears Ltd,660769,896.21,General Maintenance,General Maintenance,Premises
20/04/2018,Mears Ltd,660764,5626.45,General Maintenance,Repairs To Void Properties,Premises
20/04/2018,Mears Ltd,660774,2494.21,General Maintenance,Repairs To Void Properties,Premises
20/04/2018,Mears Ltd,660761,185.14,Glazing,General Maintenance,Premises
20/04/2018,Mears Ltd,660768,241.18,Sanctuary Scheme,Resettlement Strategy,Supplies & Services
20/04/2018,Mr Hugh  Crabtree,660532,5500.39,Event Promotion,Exeter Corn Exchange,Supplies & Services
20/04/2018,Off The Kerb Productions Ltd,660562,4225.18,Event Promotion,Exeter Corn Exchange,Supplies & Services
20/04/2018,P & P Lifts Limited,658508,2300,Aim Reactive Repairs,Property Maintenance,Premises
20/04/2018,REDACTED PERSONAL DATA,660519,500,Tenants Removal And Legal Exp,Lettings & Leasehold,Supplies & Services
20/04/2018,Rose Removals & Storage,660564,1302.15,Tenants Removal And Legal Exp,Lettings & Leasehold,Supplies & Services
20/04/2018,Showbitz Ltd,660548,446.5,Event Promotion,Exeter Corn Exchange,Supplies & Services
20/04/2018,South West Water Business,659862,820.51,Electricity,Livestock/Matford Centre,Premises
20/04/2018,South West Water Business,659980,915.16,Water,Oakwood House,Premises
20/04/2018,Southern Electric,660729,675.14,Electricity,Extralet,Premises
20/04/2018,Subish Ltd,660557,2952.23,Event Promotion,Exeter Corn Exchange,Supplies & Services
20/04/2018,The Best Connection Group Ltd,660373,1732.83,Temp.Contract-Agency Staff,Materials & Goods For Resale,Pay
20/04/2018,Trucksmith T/A Really Trucks,660410,900,Paper Haulage Out,Materials & Goods For Resale,Transport
23/04/2018,Bloom Procurement Services,660540,4415,Contract Payments,St David'S (South Street),Supplies & Services
23/04/2018,Bloom Procurement Services,660540,5,Contract Payments,Whipton (Clifford Close),Supplies & Services
23/04/2018,Bloom Procurement Services,660540,4415,Contract Payments,Whipton (Vaughan Road),Supplies & Services
23/04/2018,Building Recruitment Co Ltd,660938,766.81,Temp.Contract-Agency Staff,Housing Advice,Pay
23/04/2018,Building Recruitment Co Ltd,660922,1052.82,Temp.Contract-Agency Staff,Planned Works,Pay
23/04/2018,Building Recruitment Co Ltd,660928,453.01,Temp.Contract-Agency Staff,Planned Works,Pay
23/04/2018,Building Recruitment Co Ltd,660920,1025.28,Temp.Contract-Agency Staff,Reactive Repairs,Pay
23/04/2018,Caresec Ltd,660804,3000,Consultants Fees,General Management,Supplies & Services
23/04/2018,First Class Builders Ltd,660961,675,General Maintenance,General Maintenance,Premises
23/04/2018,First Class Builders Ltd,660976,439,General Maintenance,General Maintenance,Premises
23/04/2018,Lions Club Of Exeter,660531,125.2,Paper Buy In,Materials & Goods For Resale,Supplies & Services
23/04/2018,Lions Club Of Exeter,660531,380.67,Recycling Credits,Materials & Goods For Resale,Supplies & Services
23/04/2018,M W Gozna Services Ltd,660974,2149.42,General Maintenance,General Maintenance,Premises
23/04/2018,Mears Ltd,660771,70,Blocks Of Flat Repairs,General Maintenance,Premises
23/04/2018,Mears Ltd,660917,187.38,Blocks Of Flat Repairs,General Maintenance,Premises
23/04/2018,Mears Ltd,660918,331.22,Blocks Of Flat Repairs,General Maintenance,Premises
23/04/2018,Mears Ltd,660919,32.88,Blocks Of Flat Repairs,General Maintenance,Premises
23/04/2018,Mears Ltd,660921,25.82,Blocks Of Flat Repairs,General Maintenance,Premises
23/04/2018,Mears Ltd,660923,51.09,Blocks Of Flat Repairs,General Maintenance,Premises
23/04/2018,Mears Ltd,660944,21.68,Blocks Of Flat Repairs,General Maintenance,Premises
23/04/2018,Mears Ltd,660946,41.44,Blocks Of Flat Repairs,General Maintenance,Premises
23/04/2018,Mears Ltd,660947,55.37,Blocks Of Flat Repairs,General Maintenance,Premises
23/04/2018,Mears Ltd,660953,98.28,Blocks Of Flat Repairs,General Maintenance,Premises
23/04/2018,Mears Ltd,660958,159.39,Blocks Of Flat Repairs,General Maintenance,Premises
23/04/2018,Mears Ltd,660923,32.6,Flat Roofs,General Maintenance,Premises
23/04/2018,Mears Ltd,660926,329.72,Flat Roofs,General Maintenance,Premises
23/04/2018,Mears Ltd,660919,138.57,General Maintenance,Elec Testing/Reactive,Premises
23/04/2018,Mears Ltd,660921,62.58,General Maintenance,Elec Testing/Reactive,Premises
23/04/2018,Mears Ltd,660923,46.64,General Maintenance,Elec Testing/Reactive,Premises
23/04/2018,Mears Ltd,660924,109.41,General Maintenance,Elec Testing/Reactive,Premises
23/04/2018,Mears Ltd,660946,89.56,General Maintenance,Elec Testing/Reactive,Premises
23/04/2018,Mears Ltd,660949,124.72,General Maintenance,Elec Testing/Reactive,Premises
23/04/2018,Mears Ltd,660953,32.97,General Maintenance,Elec Testing/Reactive,Premises
23/04/2018,Mears Ltd,660960,71.38,General Maintenance,Elec Testing/Reactive,Premises
23/04/2018,Mears Ltd,660771,792.02,General Maintenance,General Maintenance,Premises
23/04/2018,Mears Ltd,660917,696,General Maintenance,General Maintenance,Premises
23/04/2018,Mears Ltd,660918,882.74,General Maintenance,General Maintenance,Premises
23/04/2018,Mears Ltd,660919,670.58,General Maintenance,General Maintenance,Premises
23/04/2018,Mears Ltd,660921,820.82,General Maintenance,General Maintenance,Premises
23/04/2018,Mears Ltd,660923,867.18,General Maintenance,General Maintenance,Premises
23/04/2018,Mears Ltd,660924,935.86,General Maintenance,General Maintenance,Premises
23/04/2018,Mears Ltd,660926,1378.55,General Maintenance,General Maintenance,Premises
23/04/2018,Mears Ltd,660944,949.01,General Maintenance,General Maintenance,Premises
23/04/2018,Mears Ltd,660946,592.35,General Maintenance,General Maintenance,Premises
23/04/2018,Mears Ltd,660947,1792.14,General Maintenance,General Maintenance,Premises
23/04/2018,Mears Ltd,660949,633.52,General Maintenance,General Maintenance,Premises
23/04/2018,Mears Ltd,660953,414.77,General Maintenance,General Maintenance,Premises
23/04/2018,Mears Ltd,660958,1077.96,General Maintenance,General Maintenance,Premises
23/04/2018,Mears Ltd,660959,1314.49,General Maintenance,General Maintenance,Premises
23/04/2018,Mears Ltd,660960,1126.21,General Maintenance,General Maintenance,Premises
23/04/2018,Mears Ltd,660771,500.59,Glazing,General Maintenance,Premises
23/04/2018,Mears Ltd,660946,45.33,Knights Place Repairs & Maint,Knights Place,Premises
23/04/2018,Morgan Hunt Uk Ltd,660907,3662.95,Temp.Contract-Agency Staff,Procurement,Pay
23/04/2018,Morgan Hunt Uk Ltd,660905,1081.5,Temp.Contract-Agency Staff,Revenues Recovery,Pay
23/04/2018,Morgan Hunt Uk Ltd,660910,1040.65,Temp.Contract-Agency Staff,Revenues Recovery,Pay
23/04/2018,Morgan Hunt Uk Ltd,660916,1278.14,Temp.Contract-Agency Staff,Revenues Recovery,Pay
23/04/2018,Nute Plumbing Services Ltd,661072,2907.06,General Maintenance,General Maintenance,Premises
23/04/2018,Nute Plumbing Services Ltd,661082,587,General Maintenance,General Maintenance,Premises
23/04/2018,Plants Direct (South West) Ltd,660043,905,Other Expenses,Parks And Playing Fields,Supplies & Services
23/04/2018,Premier Roofing Contractors Ltd,660409,625.8,General Maintenance,General Maintenance,Premises
23/04/2018,Protective Wear Supplies Ltd,660348,522.6,"Clothing, Laundry, & Uniforms",Other Street Sweeping,Supplies & Services
23/04/2018,South Western Aid,660972,499.86,General Maintenance,General Maintenance,Premises
23/04/2018,Tolchards Ltd,661077,1462.45,Drinks,Exeter Corn Exchange,Supplies & Services
23/04/2018,Vodafone,658893,3343.09,Web Access Service / Swisp,Strata Susp - Inv Paid By Ecc,Supplies & Services
23/04/2018,West End Welding,660724,425,Sub-Contractors,River Exe - Assets,Premises
24/04/2018,Bloom Procurement Services,660539,11830,Contract Payments,Heavitree (Cob Wave Iii),Supplies & Services
24/04/2018,Bright Seeds,661067,1032,Materials,Parks And Playing Fields,Supplies & Services
24/04/2018,Brook Street (Uk) Ltd,661078,981.94,Temp.Contract-Agency Staff,Health & Safety Compliance,Pay
24/04/2018,Building Recruitment Co Ltd,654872,733.37,Temp.Contract-Agency Staff,Planned Works,Pay
24/04/2018,Building Recruitment Co Ltd,660929,995.67,Temp.Contract-Agency Staff,Planned Works,Pay
24/04/2018,C R Wood Electrical,661217,444.81,General Maintenance,Elec Testing/Reactive,Premises
24/04/2018,Devon County Council,660426,18304.09,Sub-Contractors,Street Lighting - Assets,Premises
24/04/2018,Devon Tree Services Ltd (Do Not Use See 22174,661327,480,Sub-Contractors,Arboricultural,Premises
24/04/2018,First Class Builders Ltd,661164,3707.98,General Maintenance,General Maintenance,Premises
24/04/2018,Link Treasury Services Ltd,660047,4250,Consultants Fees,Treasury Management,Supplies & Services
24/04/2018,Main Street Signs,660983,692.45,Sub-Contractors,Street Naming - Assets,Premises
24/04/2018,Protective Wear Supplies Ltd,661278,278.7,"Clothing, Laundry, & Uniforms",Car Park Sweeping,Supplies & Services
24/04/2018,Protective Wear Supplies Ltd,661278,139.35,"Clothing, Laundry, & Uniforms",Do Not Use - Use C059,Supplies & Services
24/04/2018,Ruyi'S,661122,2636.96,Service Recharges,Exeter Corn Exchange,Income
24/04/2018,Shaun Cosgrove,661329,2759.58,Event Promotion,Exeter Corn Exchange,Supplies & Services
24/04/2018,South West Water Business,660763,504.41,Trade Effluent Charges,Refuse Collection,Premises
24/04/2018,Strata Service Solutions Ltd,661086,17425.04,Payment To Strata,Hr System,Supplies & Services
24/04/2018,The Best Connection Group Ltd,660375,355.88,Casuals Waged-Agency Staff,Parks And Playing Fields,Pay
24/04/2018,The Best Connection Group Ltd,660372,424.76,Casuals Waged-Agency Staff,Public Conveniences,Pay
24/04/2018,The Best Connection Group Ltd,660375,355.88,Casuals Waged-Agency Staff,Rechargeable Works,Pay
24/04/2018,Vision Gelpack Ltd,660803,3864,Materials,Litter Bins,Supplies & Services
24/04/2018,Vision Gelpack Ltd,661070,2576,Materials,Litter Bins,Supplies & Services
24/04/2018,W B Employment Ltd,660387,426.61,Casuals Waged-Agency Staff,Parks And Playing Fields,Pay
24/04/2018,West End Welding,659500,700,Equipment Tools And Materials,Canal,Supplies & Services
24/04/2018,Westcountry Fire Protection Ltd,659511,1210,Fire Alarm Testing,Service Contracts,Premises
24/04/2018,Westcountry Fire Protection Ltd,661071,1050,Fire Alarm Testing,Service Contracts,Premises
24/04/2018,Whistl Uk Ltd,661255,674.02,Postage/Stamps,Mail,Supplies & Services
24/04/2018,Yelverton Properties Developments Ltd,661119,144674.3,Fees,St James Park - Stadium Imp,Income
25/04/2018,Aw Jenkinson Transport Ltd,660909,980,Comingled Haulage Out,Materials & Goods For Resale,Transport
25/04/2018,Aw Jenkinson Transport Ltd,660911,980,Comingled Haulage Out,Materials & Goods For Resale,Transport
25/04/2018,Aw Jenkinson Transport Ltd,660912,980,Comingled Haulage Out,Materials & Goods For Resale,Transport
25/04/2018,Daisi,661219,3200,Equipment Rental,Arts & Events,Supplies & Services
25/04/2018,Dcet Ltd,660800,746,Staff Training,Learning & Development,Pay
25/04/2018,Devon Tree Services Ltd (Do Not Use See 22174,661253,2026.4,Sub-Contractors,Arboricultural - Assets,Premises
25/04/2018,Environmental Husbandry Ltd,661221,8584.34,Sub-Contractors,Rechargeable Works,Premises
25/04/2018,F Clark,661317,589.96,Sub-Contractors,Countryside Recreation,Premises
25/04/2018,F K Commercials Ltd,660725,463.68,Reactive Repairs,Refuse Collection,Transport
25/04/2018,F K Commercials Ltd,660741,1193.94,Routine Maintenance,Green Waste Collection Service,Transport
25/04/2018,F K Commercials Ltd,660741,276.99,Routine Maintenance,Materials Reclamation Facility,Transport
25/04/2018,F K Commercials Ltd,660741,220.33,Routine Maintenance,Other Street Sweeping,Transport
25/04/2018,F K Commercials Ltd,660741,342.3,Routine Maintenance,Reactive Team,Transport
25/04/2018,F K Commercials Ltd,660741,7045.54,Routine Maintenance,Refuse Collection,Transport
25/04/2018,F K Commercials Ltd,660741,1170.6,Routine Maintenance,Trade Refuse & Recycling,Transport
25/04/2018,Fire Defence Servicing Ltd,658711,990,Aim Service & Maintenance,Property Maintenance,Premises
25/04/2018,Gregory Distribution  Ltd,660908,3241.07,Paper Haulage Out,Materials & Goods For Resale,Transport
25/04/2018,H & S Transport Ltd,661313,6768.22,Sub-Contractors,Bank Repairs & Stabilisation,Premises
25/04/2018,H & S Transport Ltd,661312,591,Sub-Contractors,Car Parks,Premises
25/04/2018,H & S Transport Ltd,661354,1829,Sub-Contractors,Land Drainage Water C - Assets,Premises
25/04/2018,Holt Jcb Ltd,660982,517.02,Reactive Repairs,Materials & Goods For Resale,Transport
25/04/2018,Morgan Hunt Uk Ltd,661275,1028.97,Temp.Contract-Agency Staff,Revenues Recovery,Pay
25/04/2018,Recruitment Solutions (Sw) Ltd,661080,510.6,Temp.Contract-Agency Staff,Human Resources,Pay
25/04/2018,Renault Trucks Commercial Ltd,660943,522.26,Reactive Repairs,Cemeteries - Operational,Transport
25/04/2018,Ross & Roberts,661355,0,Bailiffs Fees,Revenues Recovery,Supplies & Services
25/04/2018,South West Compactor Services,661084,491.55,Maintenance Of Equipment,Materials Reclamation Facility,Supplies & Services
25/04/2018,Trucksmith T/A Really Trucks,660935,450,Paper Haulage Out,Materials & Goods For Resale,Transport
25/04/2018,Trucksmith T/A Really Trucks,660936,450,Paper Haulage Out,Materials & Goods For Resale,Transport
26/04/2018,Ats Euromaster Ltd,661341,496.6,Reactive Repairs,Trade Refuse & Recycling,Transport
26/04/2018,Bristol Street Motors,661352,448.93,Reactive Repairs,Other Street Sweeping,Transport
26/04/2018,Burrows-Hutchinson Ltd,661806,2750,Consultants Fees,Affordable Housing Development,Supplies & Services
26/04/2018,Exeter Community Centre Trust Ltd,661411,50000,Grants Issued,Community Infrastructure Levy,Supplies & Services
26/04/2018,Gale & Snowden,660572,1000,Grants Issued,Rennes House,Supplies & Services
26/04/2018,Girling Jones,659889,783.16,Temp.Contract-Agency Staff,Affordable Housing Development,Pay
26/04/2018,H & S Transport Ltd,661304,2857,Hra Shrubs & Trees - Communal,Estate Maintenance,Premises
26/04/2018,Holt Jcb Ltd,661235,824.02,Reactive Repairs,Materials & Goods For Resale,Transport
26/04/2018,Interwoven Productions,661115,2000,Grants Issued,Arts & Events Grnts - Use M402,Supplies & Services
26/04/2018,James St Ville,661444,1122,Solicitors And Legal Fees/Lics,Tourism,Supplies & Services
26/04/2018,Jtt Contracting Ltd,661439,2568.05,Sub-Contractors,Bank Repairs & Stabilisation,Premises
26/04/2018,Jtt Contracting Ltd,661438,695,Sub-Contractors,Land Drainage Water C - Assets,Premises
26/04/2018,Lexis Nexis Uk,654171,2280.46,Publications/Leaflets,Legal Services,Supplies & Services
26/04/2018,Meridian Business Support,660543,789.85,Temp.Contract-Agency Staff,Affordable Housing Development,Pay
26/04/2018,Meridian Business Support,661297,509.99,Temp.Contract-Agency Staff,Affordable Housing Development,Pay
26/04/2018,Ministry Of Play,661477,9874.31,Contract Payments,Outdoor Leisure Facilities,Supplies & Services
26/04/2018,Professor Roy Light,659793,2200,Solicitors And Legal Fees/Lics,Vehicles Licensing,Supplies & Services
26/04/2018,Randall Simmonds,660573,2000,Grants Issued,Rennes House,Supplies & Services
26/04/2018,Renault Trucks Commercial Ltd,661432,478.94,Reactive Repairs,Parks And Playing Fields,Transport
26/04/2018,The Best Connection Group Ltd,661273,1650.25,Casuals Waged-Agency Staff,Materials Reclamation Facility,Pay
26/04/2018,Wildy & Sons Ltd,660016,647,Solicitors And Legal Fees/Lics,Legal Services,Supplies & Services
27/04/2018,Aa Environment,659842,1675,Special Works,Arboricultural - Assets,Premises
27/04/2018,Artifax Software Ltd,658815,2138.11,Licences,Ramm,Supplies & Services
27/04/2018,Berry Recruitment,661135,428.83,Casuals Waged-Agency Staff,Car Park Sweeping,Pay
27/04/2018,Berry Recruitment,661959,529.91,Casuals Waged-Agency Staff,Car Park Sweeping,Pay
27/04/2018,Berry Recruitment,661950,432.51,Casuals Waged-Agency Staff,Cemeteries - Operational,Pay
27/04/2018,Berry Recruitment,661121,428.83,Casuals Waged-Agency Staff,Do Not Use - Use C059,Pay
27/04/2018,Berry Recruitment,661138,428.83,Casuals Waged-Agency Staff,Do Not Use - Use C059,Pay
27/04/2018,Berry Recruitment,661145,428.83,Casuals Waged-Agency Staff,Other Street Sweeping,Pay
27/04/2018,Berry Recruitment,661147,661.7,Casuals Waged-Agency Staff,Other Street Sweeping,Pay
27/04/2018,Berry Recruitment,661133,452.01,Casuals Waged-Agency Staff,Parks And Playing Fields,Pay
27/04/2018,Berry Recruitment,661142,452.01,Casuals Waged-Agency Staff,Parks And Playing Fields,Pay
27/04/2018,Berry Recruitment,661957,432.51,Casuals Waged-Agency Staff,Parks And Playing Fields,Pay
27/04/2018,Berry Recruitment,661960,432.51,Casuals Waged-Agency Staff,Parks And Playing Fields,Pay
27/04/2018,Berry Recruitment,661966,432.51,Casuals Waged-Agency Staff,Parks And Playing Fields,Pay
27/04/2018,Berry Recruitment,661953,418.18,Casuals Waged-Agency Staff,Parks Operational Overheads,Pay
27/04/2018,Berry Recruitment,661961,443.6,Casuals Waged-Agency Staff,Public Conveniences,Pay
27/04/2018,Churchill Contract Services (Use 20780),659892,783.1,Aim Service & Maintenance,Property Maintenance,Premises
27/04/2018,Customworks Ltd,661417,600,Goods For Resale,Museum Shop,Supplies & Services
27/04/2018,D G Electrical Services,659890,4808.7,Aim Reactive Repairs,Property Maintenance,Premises
27/04/2018,Dickens Showrooms Ltd,661974,4249.8,Management,Queens Road,Supplies & Services
27/04/2018,Gap Personnel,660900,88.13,Casuals Waged-Agency Staff,Bid Cleansing Project,Pay
27/04/2018,Gap Personnel,660900,644.54,Casuals Waged-Agency Staff,Other Street Sweeping,Pay
27/04/2018,Gap Personnel,660904,352.5,Casuals Waged-Agency Staff,Other Street Sweeping,Pay
27/04/2018,Gap Personnel,660904,851.88,Casuals Waged-Agency Staff,Parks And Playing Fields,Pay
27/04/2018,Gap Personnel,660900,264.37,Casuals Waged-Agency Staff,Public Conveniences,Pay
27/04/2018,Harry Stillings (Advertising) Ltd,660576,694.6,Goods For Resale,Museum Shop,Supplies & Services
27/04/2018,Hvp Security Shutters Ltd,660770,1668.45,Service Charges,Commercial Properties,Premises
27/04/2018,John Kennard,661972,12197.15,Serviced Accommodation,Serviced Accommodation,Premises
27/04/2018,Mgb Plastics Ltd,661828,4695,Bins & Recycling Boxes,Refuse Collection,Supplies & Services
27/04/2018,Mr M N Hassan,661973,17688.46,Serviced Accommodation,Serviced Accommodation,Premises
27/04/2018,Portakabin Ltd,661835,1624.6,Contract Payments,Belle Isle Temporary Facilitie,Supplies & Services
27/04/2018,Scheidt & Bachmann (Uk) Ltd,661779,30010.29,Maintenance Of Equipment,Car Parks,Supplies & Services
27/04/2018,Simon Bastone Associates Ltd,660422,550,Planned Maintenance,Ramm,Premises
27/04/2018,The Best Connection Group Ltd,661282,608.44,Casuals Waged-Agency Staff,Do Not Use - Use C059,Pay
27/04/2018,The Best Connection Group Ltd,661279,447.72,Casuals Waged-Agency Staff,Parks And Playing Fields,Pay
27/04/2018,The Best Connection Group Ltd,661282,763.42,Casuals Waged-Agency Staff,Public Conveniences,Pay
27/04/2018,The Best Connection Group Ltd,661279,447.72,Casuals Waged-Agency Staff,Rechargeable Works,Pay
27/04/2018,The Pelican Project Exeter Cic,661118,6400,Grants Issued,Arts & Events Grnts - Use M402,Supplies & Services
30/04/2018,Berry Recruitment,661964,519.81,Casuals Waged-Agency Staff,Do Not Use - Use C059,Pay
30/04/2018,Berry Recruitment,661971,428.83,Casuals Waged-Agency Staff,Do Not Use - Use C059,Pay
30/04/2018,Berry Recruitment,662057,514.2,Casuals Waged-Agency Staff,Public Conveniences,Pay
30/04/2018,Berry Recruitment,661140,428.83,Casuals Waged-Agency Staff,Waste Agency Costs,Pay
30/04/2018,Building Recruitment Co Ltd,662073,1115.04,Temp.Contract-Agency Staff,Housing Advice,Pay
30/04/2018,Building Recruitment Co Ltd,662074,995.67,Temp.Contract-Agency Staff,Planned Works,Pay
30/04/2018,Building Recruitment Co Ltd,662077,1057.32,Temp.Contract-Agency Staff,Planned Works,Pay
30/04/2018,Building Recruitment Co Ltd,662076,966.24,Temp.Contract-Agency Staff,Reactive Repairs,Pay
30/04/2018,Cg Fry + Son Ltd,662070,66885.38,Grants Issued,Rennes House,Supplies & Services
30/04/2018,Contemporary Art Society,661293,1700,Subscriptions,Museum Npo,Supplies & Services
30/04/2018,Encounter Theatre + Therapy,661114,4000,Grants Issued,Arts & Events Grnts - Use M402,Supplies & Services
30/04/2018,Exeter Canal And Quay Trust,662021,713,Special Works,Canal - Assets,Premises
30/04/2018,Exeter Chamber Of Commerce,662067,650,Subscriptions,Growth Admin,Supplies & Services
30/04/2018,Exeter Community Radio (Phonic Fm),661116,4000,Grants Issued,Arts & Events Grnts - Use M402,Supplies & Services
30/04/2018,Goldsworthy Heating,662016,3729,Grants Issued,Disabled Facilities Grants,Supplies & Services
30/04/2018,Honeyscribe,661117,2000,Grants Issued,Arts & Events Grnts - Use M402,Supplies & Services
30/04/2018,James Andrews Recruitment Solutions Ltd,660552,1080.72,Temp.Contract-Agency Staff,Human Resources,Pay
30/04/2018,James Andrews Recruitment Solutions Ltd,662045,1110.74,Temp.Contract-Agency Staff,Human Resources,Pay
30/04/2018,James Andrews Recruitment Solutions Ltd,662078,551.73,Temp.Contract-Agency Staff,Planning,Pay
30/04/2018,Livewest Homes Ltd (Formerly Liverty),662162,10989.38,Serviced Accommodation,Serviced Accommodation,Premises
30/04/2018,Livewest Homes Ltd (Formerly Liverty),662164,10989.38,Serviced Accommodation,Serviced Accommodation,Premises
30/04/2018,Meridian Business Support,662072,483.76,Temp.Contract-Agency Staff,Affordable Housing Development,Pay
30/04/2018,Morgan Hunt Uk Ltd,662079,1033.7,Temp.Contract-Agency Staff,Revenues Recovery,Pay
30/04/2018,Music In Devon Initiative Cic,661123,2000,Grants Issued,Arts & Events Grnts - Use M402,Supplies & Services
30/04/2018,Paddleboat Theatre Company,661113,1600,Grants Issued,Arts & Events Grnts - Use M402,Supplies & Services
30/04/2018,Recruitment Solutions (Sw) Ltd,661079,604.1,Casuals Waged-Agency Staff,Waste Agency Costs,Pay
30/04/2018,REDACTED PERSONAL DATA,661247,1200,Grants Issued,Arts & Events Grnts - Use M402,Supplies & Services
30/04/2018,South West Water Business,660542,636.52,Water,Public Conveniences - Assets,Premises
30/04/2018,Southern Electric,661447,536.73,Electricity,Customer Relations,Premises
30/04/2018,Southern Electric,661691,1981.51,Electricity,Customer Relations,Premises
30/04/2018,Southern Electric,661292,1202.42,Electricity,Exeter Corn Exchange,Premises
30/04/2018,Southern Electric,661792,650.43,Electricity,Older Persons Accommodation,Premises
30/04/2018,St Thomas Community Association,661124,1200,Grants Issued,Arts & Events Grnts - Use M402,Supplies & Services
30/04/2018,Trump Engineering Ltd,661982,462.5,Maintenance Of Equipment,Materials Reclamation Facility,Supplies & Services
30/04/2018,Venn Group Ltd,662048,427.86,Temp.Contract-Agency Staff,Planned Works,Pay
30/04/2018,Venn Group Ltd,662048,641.8,Temp.Contract-Agency Staff,Reactive Repairs,Pay
30/04/2018,Westair Reproductions Ltd,662236,464.9,Goods For Resale,Museum Shop,Supplies & Services
30/04/2018,Wise Employment,660939,778.15,Casuals Waged-Agency Staff,Waste Agency Costs,Pay
01/05/2018,Arena Screen & Design Ltd,662017,540,"Clothing, Laundry, & Uniforms",Museum Projects,Supplies & Services
01/05/2018,Benchmark (Exeter) Ltd,661994,1800,Contract Payments,Zebcat Project,Supplies & Services
01/05/2018,Biogas Technology Limited,662177,695.83,Maintenance Of Equipment,Parks And Open Spaces M'Ment,Supplies & Services
01/05/2018,Concept Staffing Ltd,662038,526.16,Casuals Waged-Agency Staff,Materials Reclamation Facility,Pay
01/05/2018,Concept Staffing Ltd,662041,735.56,Casuals Waged-Agency Staff,Materials Reclamation Facility,Pay
01/05/2018,Concept Staffing Ltd,662046,1035.91,Casuals Waged-Agency Staff,Waste Agency Costs,Pay
01/05/2018,Concept Staffing Ltd,662225,556.47,Temp.Contract-Agency Staff,Planning,Pay
01/05/2018,Daisi,661416,1689,Project Work,Museum Projects,Supplies & Services
01/05/2018,Defensor Maintenance Ltd,662353,717,Maintenance Of Equipment,Ramm,Supplies & Services
01/05/2018,Devon Tree Services Ltd (Do Not Use See 22174,662219,6675.2,Hra Shrubs & Trees - Communal,Estate Maintenance,Premises
01/05/2018,Devon Tree Services Ltd (Do Not Use See 22174,662222,480,Sub-Contractors,Bank Repairs & Stabilisation,Premises
01/05/2018,Exeter Canal And Quay Trust,661986,1312.68,Commission,Canal,Supplies & Services
01/05/2018,First Class Builders Ltd,662351,5082.26,Contract Payments,Bathroom Replacements,Supplies & Services
01/05/2018,First Class Builders Ltd,662352,6995.8,General Maintenance,General Maintenance,Premises
01/05/2018,Girling Jones,662224,617.58,Temp.Contract-Agency Staff,Affordable Housing Development,Pay
01/05/2018,M W Gozna Services Ltd,662350,5115,Contract Payments,Adaptations,Supplies & Services
01/05/2018,R C Brady (Uk) Ltd,662197,517,Shop Purchases,Exeter Visitor Information,Supplies & Services
01/05/2018,Shrouds 14/18 Cic,660915,15000,Event Promotion,Comms & Marketing Activity,Supplies & Services
01/05/2018,South West Water Business,662028,3000.22,Water,Ramm,Premises
01/05/2018,The Purple Company (Uk) Ltd,662368,650,Marketing,Visit Exeter,Supplies & Services
01/05/2018,The Purple Company (Uk) Ltd,662403,1005,Marketing,Visit Exeter,Supplies & Services
01/05/2018,Tolchards Ltd,662089,1216.52,Drinks,Exeter Corn Exchange,Supplies & Services
01/05/2018,Twofold Ltd,662204,3020.5,Stationery,Civic Centre,Supplies & Services
01/05/2018,Twofold Ltd,662204,3020.5,Stationery,General Management,Supplies & Services
02/05/2018,Aquarius Solutions,662100,561.6,Materials,Graffiti Cleaning,Supplies & Services
02/05/2018,Berry Recruitment,662217,452.01,Casuals Waged-Agency Staff,Cemeteries - Operational,Pay
02/05/2018,Berry Recruitment,662215,428.83,Casuals Waged-Agency Staff,Do Not Use - Use C059,Pay
02/05/2018,Berry Recruitment,662210,428.83,Casuals Waged-Agency Staff,Other Street Sweeping,Pay
02/05/2018,Berry Recruitment,662209,452.01,Casuals Waged-Agency Staff,Parks And Playing Fields,Pay
02/05/2018,Berry Recruitment,662218,452.01,Casuals Waged-Agency Staff,Parks And Playing Fields,Pay
02/05/2018,Berry Recruitment,662208,428.83,Casuals Waged-Agency Staff,Public Conveniences,Pay
02/05/2018,Bristol Street Motors,662063,447.48,Reactive Repairs,Dog Bins,Transport
02/05/2018,Bristol Street Motors,662063,70,Routine Maintenance,Dog Bins,Transport
02/05/2018,Concept Staffing Ltd,662234,1160.24,Casuals Waged-Agency Staff,Materials Reclamation Facility,Pay
02/05/2018,Countess Wear Village Hall,662012,1200,Grants Issued,Community Infrastructure Levy,Supplies & Services
02/05/2018,Exeter Community Initiatives,662025,2040,Grants Issued,Community Infrastructure Levy,Supplies & Services
02/05/2018,Glen Cleaning,662532,6610.05,Cleaning,Civic Centre,Premises
02/05/2018,Guardian Security Company,660386,618.3,General Maintenance,General Maintenance,Premises
02/05/2018,Hays Accountancy Personnel,662401,611.98,Temp.Contract-Agency Staff,Accountancy Services,Pay
02/05/2018,Hbinfo Ltd,662568,530,Subscriptions,Benefits Administration,Supplies & Services
02/05/2018,Kennall Consulting Limited,662455,5520,Consultants Fees,Procurement,Supplies & Services
02/05/2018,Mears Ltd,662427,117.28,Asbestos Removal,Asbestos,Premises
02/05/2018,Mears Ltd,662360,105.59,Blocks Of Flat Repairs,General Maintenance,Premises
02/05/2018,Mears Ltd,662361,147.52,Blocks Of Flat Repairs,General Maintenance,Premises
02/05/2018,Mears Ltd,662383,150.62,Blocks Of Flat Repairs,General Maintenance,Premises
02/05/2018,Mears Ltd,662386,95.3,Blocks Of Flat Repairs,General Maintenance,Premises
02/05/2018,Mears Ltd,662388,43.41,Blocks Of Flat Repairs,General Maintenance,Premises
02/05/2018,Mears Ltd,662394,24.62,Blocks Of Flat Repairs,General Maintenance,Premises
02/05/2018,Mears Ltd,662409,439.21,Blocks Of Flat Repairs,General Maintenance,Premises
02/05/2018,Mears Ltd,662414,110.25,Blocks Of Flat Repairs,General Maintenance,Premises
02/05/2018,Mears Ltd,662427,71.84,Blocks Of Flat Repairs,General Maintenance,Premises
02/05/2018,Mears Ltd,662432,47.2,Blocks Of Flat Repairs,General Maintenance,Premises
02/05/2018,Mears Ltd,662450,102.04,Blocks Of Flat Repairs,General Maintenance,Premises
02/05/2018,Mears Ltd,662453,43.18,Blocks Of Flat Repairs,General Maintenance,Premises
02/05/2018,Mears Ltd,662411,301.16,Contract Payments,Fire Risk Assessment Works,Supplies & Services
02/05/2018,Mears Ltd,662448,21.73,Contract Payments,Fire Risk Assessment Works,Supplies & Services
02/05/2018,Mears Ltd,662373,1541.51,Decs For Elderly & Disabled,Internal Decoration Prog,Premises
02/05/2018,Mears Ltd,662360,104.78,General Maintenance,Elec Testing/Reactive,Premises
02/05/2018,Mears Ltd,662361,202.08,General Maintenance,Elec Testing/Reactive,Premises
02/05/2018,Mears Ltd,662369,403.11,General Maintenance,Elec Testing/Reactive,Premises
02/05/2018,Mears Ltd,662383,56.06,General Maintenance,Elec Testing/Reactive,Premises
02/05/2018,Mears Ltd,662386,64.36,General Maintenance,Elec Testing/Reactive,Premises
02/05/2018,Mears Ltd,662394,379.41,General Maintenance,Elec Testing/Reactive,Premises
02/05/2018,Mears Ltd,662409,693.27,General Maintenance,Elec Testing/Reactive,Premises
02/05/2018,Mears Ltd,662411,208.84,General Maintenance,Elec Testing/Reactive,Premises
02/05/2018,Mears Ltd,662412,21.68,General Maintenance,Elec Testing/Reactive,Premises
02/05/2018,Mears Ltd,662427,87.48,General Maintenance,Elec Testing/Reactive,Premises
02/05/2018,Mears Ltd,662429,683.21,General Maintenance,Elec Testing/Reactive,Premises
02/05/2018,Mears Ltd,662431,506.76,General Maintenance,Elec Testing/Reactive,Premises
02/05/2018,Mears Ltd,662432,107.35,General Maintenance,Elec Testing/Reactive,Premises
02/05/2018,Mears Ltd,662449,70.6,General Maintenance,Elec Testing/Reactive,Premises
02/05/2018,Mears Ltd,662450,120.49,General Maintenance,Elec Testing/Reactive,Premises
02/05/2018,Mears Ltd,662451,21.68,General Maintenance,Elec Testing/Reactive,Premises
02/05/2018,Mears Ltd,662452,106.81,General Maintenance,Elec Testing/Reactive,Premises
02/05/2018,Mears Ltd,662453,81.76,General Maintenance,Elec Testing/Reactive,Premises
02/05/2018,Mears Ltd,662358,688.74,General Maintenance,General Maintenance,Premises
02/05/2018,Mears Ltd,662360,741.69,General Maintenance,General Maintenance,Premises
02/05/2018,Mears Ltd,662361,234.23,General Maintenance,General Maintenance,Premises
02/05/2018,Mears Ltd,662362,1180.83,General Maintenance,General Maintenance,Premises
02/05/2018,Mears Ltd,662369,421.05,General Maintenance,General Maintenance,Premises
02/05/2018,Mears Ltd,662383,1098.98,General Maintenance,General Maintenance,Premises
02/05/2018,Mears Ltd,662386,1221.48,General Maintenance,General Maintenance,Premises
02/05/2018,Mears Ltd,662388,485.08,General Maintenance,General Maintenance,Premises
02/05/2018,Mears Ltd,662394,634.91,General Maintenance,General Maintenance,Premises
02/05/2018,Mears Ltd,662409,8308.4,General Maintenance,General Maintenance,Premises
02/05/2018,Mears Ltd,662410,2848.97,General Maintenance,General Maintenance,Premises
02/05/2018,Mears Ltd,662411,9371.47,General Maintenance,General Maintenance,Premises
02/05/2018,Mears Ltd,662412,1715.12,General Maintenance,General Maintenance,Premises
02/05/2018,Mears Ltd,662413,504,General Maintenance,General Maintenance,Premises
02/05/2018,Mears Ltd,662414,837.25,General Maintenance,General Maintenance,Premises
02/05/2018,Mears Ltd,662427,1008.46,General Maintenance,General Maintenance,Premises
02/05/2018,Mears Ltd,662429,495.39,General Maintenance,General Maintenance,Premises
02/05/2018,Mears Ltd,662430,1936.39,General Maintenance,General Maintenance,Premises
02/05/2018,Mears Ltd,662431,4537.15,General Maintenance,General Maintenance,Premises
02/05/2018,Mears Ltd,662432,1049.79,General Maintenance,General Maintenance,Premises
02/05/2018,Mears Ltd,662448,1068.95,General Maintenance,General Maintenance,Premises
02/05/2018,Mears Ltd,662449,789.75,General Maintenance,General Maintenance,Premises
02/05/2018,Mears Ltd,662450,799.23,General Maintenance,General Maintenance,Premises
02/05/2018,Mears Ltd,662451,961.28,General Maintenance,General Maintenance,Premises
02/05/2018,Mears Ltd,662452,651.92,General Maintenance,General Maintenance,Premises
02/05/2018,Mears Ltd,662453,941.81,General Maintenance,General Maintenance,Premises
02/05/2018,Mears Ltd,662522,948.91,General Maintenance,General Maintenance,Premises
02/05/2018,Mears Ltd,662364,615.09,General Maintenance,Repairs To Void Properties,Premises
02/05/2018,Mears Ltd,662374,2802.78,General Maintenance,Repairs To Void Properties,Premises
02/05/2018,Mears Ltd,662408,4915.3,General Maintenance,Repairs To Void Properties,Premises
02/05/2018,Mears Ltd,662436,2137.57,General Maintenance,Repairs To Void Properties,Premises
02/05/2018,Mears Ltd,662437,2956.26,General Maintenance,Repairs To Void Properties,Premises
02/05/2018,Mears Ltd,662427,111.92,Sanctuary Scheme,Resettlement Strategy,Supplies & Services
02/05/2018,Mears Ltd,662452,186.41,Sanctuary Scheme,Resettlement Strategy,Supplies & Services
02/05/2018,Meridian Business Support,662242,482.85,Temp.Contract-Agency Staff,Affordable Housing Development,Pay
02/05/2018,Meridian Business Support,662365,474.63,Temp.Contract-Agency Staff,Affordable Housing Development,Pay
02/05/2018,Meridian Business Support,662366,475.6,Temp.Contract-Agency Staff,Affordable Housing Development,Pay
02/05/2018,Morgan Hunt Uk Ltd,662241,3662.95,Temp.Contract-Agency Staff,Procurement,Pay
02/05/2018,National Portrait Gallery,660577,1825,Goods For Resale,Museum Shop,Supplies & Services
02/05/2018,St Sidwells Centre,662015,33618,Grants Issued,Community Infrastructure Levy,Supplies & Services
02/05/2018,Teignbridge District Council,662459,2971.2,Buy In - Plastics,Materials & Goods For Resale,Supplies & Services
02/05/2018,W B Employment Ltd,662051,453.99,Casuals Waged-Agency Staff,Do Not Use - Use C059,Pay
02/05/2018,W B Employment Ltd,662194,453.99,Casuals Waged-Agency Staff,Do Not Use - Use C059,Pay
02/05/2018,West End Welding,662389,725,Sub-Contractors,Car Parks,Premises
02/05/2018,Whistl Uk Ltd,662558,920.36,Postage/Stamps,Civic Centre,Supplies & Services
03/05/2018,Ashley House Printing Co Ltd,662447,4037,Stationery,District Council Elections,Supplies & Services
03/05/2018,Berry Recruitment,656103,432.51,Casuals Waged-Agency Staff,Childrens Play Areas,Pay
03/05/2018,Concept Staffing Ltd,662226,346.92,Casuals Waged-Agency Staff,Bid Cleansing Project,Pay
03/05/2018,Concept Staffing Ltd,662226,580.12,Casuals Waged-Agency Staff,Car Park Sweeping,Pay
03/05/2018,Concept Staffing Ltd,662226,380.16,Casuals Waged-Agency Staff,Cemeteries - Operational,Pay
03/05/2018,Concept Staffing Ltd,662226,320.76,Casuals Waged-Agency Staff,Childrens Play Areas,Pay
03/05/2018,Concept Staffing Ltd,662226,1314.24,Casuals Waged-Agency Staff,Do Not Use - Use C059,Pay
03/05/2018,Concept Staffing Ltd,662226,88.2,Casuals Waged-Agency Staff,Other Street Sweeping,Pay
03/05/2018,Concept Staffing Ltd,662226,740.25,Casuals Waged-Agency Staff,Public Conveniences,Pay
03/05/2018,Concept Staffing Ltd,662232,763.37,Casuals Waged-Agency Staff,Waste Agency Costs,Pay
03/05/2018,Devon Philharmonic Orchestra,662601,587.01,Travel & Attraction Tickets,Exeter Visitor Information,Supplies & Services
03/05/2018,Devon Tree Services Ltd (Do Not Use See 22174,662840,960,Sub-Contractors,Arboricultural,Premises
03/05/2018,Devon Tree Services Ltd (Do Not Use See 22174,662847,480,Sub-Contractors,Arboricultural,Premises
03/05/2018,Dodd Group (South) Ltd,662553,22493.23,Electrical Works - Domestic,Prog'D Elec Re-Wiring General,Supplies & Services
03/05/2018,Essa Technology,662640,1509,Maintenance Of Equipment,Cctv Control Room,Supplies & Services
03/05/2018,Exjet Services,662091,420,Blocks Of Flat Repairs,General Maintenance,Premises
03/05/2018,Freevacy,662761,1101.23,Staff Training,Learning & Development,Pay
03/05/2018,Gap Personnel,662243,176.25,Casuals Waged-Agency Staff,Bid Cleansing Project,Pay
03/05/2018,Gap Personnel,662243,434.75,Casuals Waged-Agency Staff,Other Street Sweeping,Pay
03/05/2018,Guardian Security Company,661130,1118.88,General Maintenance,General Maintenance,Premises
03/05/2018,Hqn Ltd,660746,1465.1,Staff Training,Learning & Development,Pay
03/05/2018,Ian Williams Ltd,656011,2024.5,Blocks Of Flat Repairs,General Maintenance,Premises
03/05/2018,Mears Ltd,662509,905.21,Asbestos Removal,Asbestos,Premises
03/05/2018,Mears Ltd,662497,115.16,Blocks Of Flat Repairs,General Maintenance,Premises
03/05/2018,Mears Ltd,662504,68.55,Blocks Of Flat Repairs,General Maintenance,Premises
03/05/2018,Mears Ltd,662505,233.45,Blocks Of Flat Repairs,General Maintenance,Premises
03/05/2018,Mears Ltd,662506,132.7,Blocks Of Flat Repairs,General Maintenance,Premises
03/05/2018,Mears Ltd,662508,130.46,Blocks Of Flat Repairs,General Maintenance,Premises
03/05/2018,Mears Ltd,662511,260.62,Blocks Of Flat Repairs,General Maintenance,Premises
03/05/2018,Mears Ltd,662517,91.92,Blocks Of Flat Repairs,General Maintenance,Premises
03/05/2018,Mears Ltd,662519,91.31,Blocks Of Flat Repairs,General Maintenance,Premises
03/05/2018,Mears Ltd,662521,43.36,Blocks Of Flat Repairs,General Maintenance,Premises
03/05/2018,Mears Ltd,662783,43.46,Blocks Of Flat Repairs,General Maintenance,Premises
03/05/2018,Mears Ltd,662784,46.35,Blocks Of Flat Repairs,General Maintenance,Premises
03/05/2018,Mears Ltd,662512,1243.19,Contract Payments,Adaptations,Supplies & Services
03/05/2018,Mears Ltd,662509,235.29,Contract Payments,Fire Prevention Work,Supplies & Services
03/05/2018,Mears Ltd,662508,1413.38,Contract Payments,Fire Risk Assessment Works,Supplies & Services
03/05/2018,Mears Ltd,662766,1743.4,Contract Payments,Fire Risk Assessment Works,Supplies & Services
03/05/2018,Mears Ltd,662774,1527.71,Decs For Elderly & Disabled,Internal Decoration Prog,Premises
03/05/2018,Mears Ltd,662503,54.07,Flat Roofs,General Maintenance,Premises
03/05/2018,Mears Ltd,662499,23.7,General Maintenance,Elec Testing/Reactive,Premises
03/05/2018,Mears Ltd,662504,95.2,General Maintenance,Elec Testing/Reactive,Premises
03/05/2018,Mears Ltd,662505,240.52,General Maintenance,Elec Testing/Reactive,Premises
03/05/2018,Mears Ltd,662506,130.85,General Maintenance,Elec Testing/Reactive,Premises
03/05/2018,Mears Ltd,662509,22.5,General Maintenance,Elec Testing/Reactive,Premises
03/05/2018,Mears Ltd,662510,23.7,General Maintenance,Elec Testing/Reactive,Premises
03/05/2018,Mears Ltd,662519,45.38,General Maintenance,Elec Testing/Reactive,Premises
03/05/2018,Mears Ltd,662783,22.5,General Maintenance,Elec Testing/Reactive,Premises
03/05/2018,Mears Ltd,662784,33.67,General Maintenance,Elec Testing/Reactive,Premises
03/05/2018,Mears Ltd,662497,302.72,General Maintenance,General Maintenance,Premises
03/05/2018,Mears Ltd,662499,1029.57,General Maintenance,General Maintenance,Premises
03/05/2018,Mears Ltd,662503,4304.5,General Maintenance,General Maintenance,Premises
03/05/2018,Mears Ltd,662504,1595.69,General Maintenance,General Maintenance,Premises
03/05/2018,Mears Ltd,662505,2439.37,General Maintenance,General Maintenance,Premises
03/05/2018,Mears Ltd,662506,471.15,General Maintenance,General Maintenance,Premises
03/05/2018,Mears Ltd,662508,2391.45,General Maintenance,General Maintenance,Premises
03/05/2018,Mears Ltd,662509,3161.32,General Maintenance,General Maintenance,Premises
03/05/2018,Mears Ltd,662510,1451.65,General Maintenance,General Maintenance,Premises
03/05/2018,Mears Ltd,662511,1114.73,General Maintenance,General Maintenance,Premises
03/05/2018,Mears Ltd,662517,2164.71,General Maintenance,General Maintenance,Premises
03/05/2018,Mears Ltd,662519,300.7,General Maintenance,General Maintenance,Premises
03/05/2018,Mears Ltd,662520,622.57,General Maintenance,General Maintenance,Premises
03/05/2018,Mears Ltd,662521,886.64,General Maintenance,General Maintenance,Premises
03/05/2018,Mears Ltd,662523,3381.38,General Maintenance,General Maintenance,Premises
03/05/2018,Mears Ltd,662605,595.96,General Maintenance,General Maintenance,Premises
03/05/2018,Mears Ltd,662766,1216,General Maintenance,General Maintenance,Premises
03/05/2018,Mears Ltd,662783,631.74,General Maintenance,General Maintenance,Premises
03/05/2018,Mears Ltd,662784,411.1,General Maintenance,General Maintenance,Premises
03/05/2018,Mears Ltd,662502,5259.02,General Maintenance,Repairs To Void Properties,Premises
03/05/2018,Mears Ltd,662513,863.17,General Maintenance,Repairs To Void Properties,Premises
03/05/2018,Mears Ltd,662514,468.48,General Maintenance,Repairs To Void Properties,Premises
03/05/2018,Mears Ltd,662515,2406.62,General Maintenance,Repairs To Void Properties,Premises
03/05/2018,Mears Ltd,662516,3704.09,General Maintenance,Repairs To Void Properties,Premises
03/05/2018,Mears Ltd,662524,3512.22,General Maintenance,Repairs To Void Properties,Premises
03/05/2018,Mears Ltd,662525,6858.31,General Maintenance,Repairs To Void Properties,Premises
03/05/2018,Mears Ltd,662526,8815.14,General Maintenance,Repairs To Void Properties,Premises
03/05/2018,Mears Ltd,662527,2731.29,General Maintenance,Repairs To Void Properties,Premises
03/05/2018,Mears Ltd,662528,3770.32,General Maintenance,Repairs To Void Properties,Premises
03/05/2018,Mears Ltd,662770,5135.47,General Maintenance,Repairs To Void Properties,Premises
03/05/2018,Mears Ltd,662771,7897.27,General Maintenance,Repairs To Void Properties,Premises
03/05/2018,Mears Ltd,662773,3421.17,General Maintenance,Repairs To Void Properties,Premises
03/05/2018,Mears Ltd,662775,827.65,General Maintenance,Repairs To Void Properties,Premises
03/05/2018,Mears Ltd,662776,1529.51,General Maintenance,Repairs To Void Properties,Premises
03/05/2018,Mears Ltd,662777,1809.85,General Maintenance,Repairs To Void Properties,Premises
03/05/2018,Mears Ltd,662778,6492.21,General Maintenance,Repairs To Void Properties,Premises
03/05/2018,Mears Ltd,662779,12952.6,General Maintenance,Repairs To Void Properties,Premises
03/05/2018,Mears Ltd,662781,3686.21,General Maintenance,Repairs To Void Properties,Premises
03/05/2018,Mears Ltd,662511,130.31,Glazing,General Maintenance,Premises
03/05/2018,Mears Ltd,662500,456.74,Repairs To Void Properties,Psl Properties,Premises
03/05/2018,Mears Ltd,662501,543.68,Repairs To Void Properties,Psl Properties,Premises
03/05/2018,Mears Ltd,662766,21.73,Revenue Repairs Contingency,General Maintenance,Premises
03/05/2018,Mrs Vivienne Arendal,662355,960,Sub-Contractors,Topsham Lock,Premises
03/05/2018,Off The Kerb Productions Ltd,662642,4160,Event Promotion,Exeter Corn Exchange,Supplies & Services
03/05/2018,Portakabin Ltd,661833,8441.21,Contract Payments,Belle Isle Temporary Facilitie,Supplies & Services
03/05/2018,Protective Wear Supplies Ltd,662443,640.8,"Clothing, Laundry, & Uniforms",Do Not Use - Use C059,Supplies & Services
03/05/2018,Rd & E Nhs Foundation Trust,662421,4258.03,Medical Inspections,Human Resources,Pay
03/05/2018,Robert Heath Heating Ltd,662554,527.92,Contract Payments,Boiler Replacement Programme,Supplies & Services
03/05/2018,Robert Heath Heating Ltd,662555,636.82,Contract Payments,Boiler Replacement Programme,Supplies & Services
03/05/2018,Select Manufacturing Ltd,662034,970.94,Door Entry Systems,Service Contracts,Premises
03/05/2018,Select Manufacturing Ltd,662036,1215.96,Door Entry Systems,Service Contracts,Premises
03/05/2018,West End Welding,662442,970,Sub-Contractors,Car Parks,Premises
03/05/2018,West End Welding,662441,450,Sub-Contractors,Footpaths Maint - Assets,Premises
04/05/2018,1010 Media Ltd,662611,500,Activities Web Site,Ramm,Supplies & Services
04/05/2018,1010 Media Ltd,662613,1000,Activities Web Site,Ramm,Supplies & Services
04/05/2018,A1 Electrics,662050,34.5,Aim Lease Requirements,Commercial Properties,Premises
04/05/2018,A1 Electrics,662050,161,Aim Lease Requirements,Miscellaneous Properties,Premises
04/05/2018,A1 Electrics,662050,2116,Pmf Compliance,Property Maintenance,Premises
04/05/2018,A1 Electrics,662050,92,Service Charges,Bradninch Place,Premises
04/05/2018,A1 Electrics,662050,23,Sub-Contractors,Ecqt Suspense,Premises
04/05/2018,Andrew Hart Industrial Roofing Ltd,662764,69522.81,Contract Payments,Reroofing Works Shilhay,Supplies & Services
04/05/2018,C R Wood Electrical,662846,1405,Equipment Tools And Materials,Older Persons Accommodation,Supplies & Services
04/05/2018,Cobwebs,662907,16122.82,Hra Routine Cleaning Contract,Customer Relations,Premises
04/05/2018,Concept Staffing Ltd,662866,542.73,Temp.Contract-Agency Staff,Planning,Pay
04/05/2018,D R Jones (Yeovil) Ltd,662799,2793.35,Contract Payments,Bathroom Replacements,Supplies & Services
04/05/2018,D R Jones (Yeovil) Ltd,662805,3355.01,Contract Payments,Bathroom Replacements,Supplies & Services
04/05/2018,D R Jones (Yeovil) Ltd,662806,2955.6,Contract Payments,Bathroom Replacements,Supplies & Services
04/05/2018,D R Jones (Yeovil) Ltd,662807,3210.99,Contract Payments,Bathroom Replacements,Supplies & Services
04/05/2018,D R Jones (Yeovil) Ltd,662808,3371.34,Contract Payments,Bathroom Replacements,Supplies & Services
04/05/2018,D R Jones (Yeovil) Ltd,662813,3233.22,Contract Payments,Bathroom Replacements,Supplies & Services
04/05/2018,D R Jones (Yeovil) Ltd,662814,2950.93,Contract Payments,Bathroom Replacements,Supplies & Services
04/05/2018,D R Jones (Yeovil) Ltd,662815,5236.53,Contract Payments,Bathroom Replacements,Supplies & Services
04/05/2018,D R Jones (Yeovil) Ltd,662794,5825.76,Contract Payments,Kitchen Replacements,Supplies & Services
04/05/2018,D R Jones (Yeovil) Ltd,662796,4712.36,Contract Payments,Kitchen Replacements,Supplies & Services
04/05/2018,D R Jones (Yeovil) Ltd,662801,5996.76,Contract Payments,Kitchen Replacements,Supplies & Services
04/05/2018,D R Jones (Yeovil) Ltd,662802,4007.66,Contract Payments,Kitchen Replacements,Supplies & Services
04/05/2018,D R Jones (Yeovil) Ltd,662803,3982.66,Contract Payments,Kitchen Replacements,Supplies & Services
04/05/2018,D R Jones (Yeovil) Ltd,662804,4278.1,Contract Payments,Kitchen Replacements,Supplies & Services
04/05/2018,D R Jones (Yeovil) Ltd,662809,4880.43,Contract Payments,Kitchen Replacements,Supplies & Services
04/05/2018,D R Jones (Yeovil) Ltd,662810,5498.37,Contract Payments,Kitchen Replacements,Supplies & Services
04/05/2018,D R Jones (Yeovil) Ltd,662811,5442.55,Contract Payments,Kitchen Replacements,Supplies & Services
04/05/2018,D R Jones (Yeovil) Ltd,662812,4657.96,Contract Payments,Kitchen Replacements,Supplies & Services
04/05/2018,Daax Ltd,663035,995,Maintenance Of Equipment,Conservation Laboratory,Supplies & Services
04/05/2018,Devon Commercial Stationers Ltd,662648,553.28,Printing,District Council Elections,Supplies & Services
04/05/2018,Devon Tree Services Ltd (Do Not Use See 22174,662850,715.2,Hra Shrubs & Trees - Communal,Estate Maintenance,Premises
04/05/2018,Devon Tree Services Ltd (Do Not Use See 22174,662851,480,Sub-Contractors,Arboricultural - Assets,Premises
04/05/2018,Ems Waste Services Ltd,661224,428,Skips,Property Assets - Builders,Supplies & Services
04/05/2018,Glendale Grounds Management Ltd,662831,435,Initial Cultivations - Housing,Garden Assistance,Premises
04/05/2018,Ian Williams Ltd,662763,70694.46,General Maintenance,Low Maint & Painting Flats,Premises
04/05/2018,Inform Cpi Ltd,662869,6900,Consultants Fees,Nndr Collection,Supplies & Services
04/05/2018,James Andrews Recruitment Solutions Ltd,662789,540.31,Temp.Contract-Agency Staff,Planning,Pay
04/05/2018,Ks Engineering,661316,97.33,Aim Lease Requirements,Miscellaneous Properties,Premises
04/05/2018,Ks Engineering,661316,778.64,Aim Service & Maintenance,Property Maintenance,Premises
04/05/2018,M W Gozna Services Ltd,662844,900,Contract Payments,Adaptations,Supplies & Services
04/05/2018,Mears Ltd,662606,35,General Maintenance,Elec Testing/Reactive,Premises
04/05/2018,Mears Ltd,662835,85.71,General Maintenance,Elec Testing/Reactive,Premises
04/05/2018,Mears Ltd,662606,383.08,General Maintenance,General Maintenance,Premises
04/05/2018,Mears Ltd,662830,722.53,General Maintenance,General Maintenance,Premises
04/05/2018,Mears Ltd,662835,1438.22,General Maintenance,General Maintenance,Premises
04/05/2018,Oriel Services Limited,662880,7287.28,Aim Lease Requirements,Livestock/Matford Centre,Premises
04/05/2018,P & P Lifts Limited,660793,500,Aim Lease Requirements,Miscellaneous Properties,Premises
04/05/2018,Robert Heath Heating Ltd,662825,527.92,Contract Payments,Boiler Replacement Programme,Supplies & Services
04/05/2018,Robert Heath Heating Ltd,662826,527.92,Contract Payments,Boiler Replacement Programme,Supplies & Services
04/05/2018,Robert Heath Heating Ltd,662829,527.92,Contract Payments,Boiler Replacement Programme,Supplies & Services
04/05/2018,Robert Heath Heating Ltd,662832,527.92,Contract Payments,Boiler Replacement Programme,Supplies & Services
04/05/2018,Robert Heath Heating Ltd,662834,527.92,Contract Payments,Boiler Replacement Programme,Supplies & Services
04/05/2018,Robert Heath Heating Ltd,662836,527.92,Contract Payments,Boiler Replacement Programme,Supplies & Services
04/05/2018,Robert Heath Heating Ltd,662839,527.92,Contract Payments,Boiler Replacement Programme,Supplies & Services
04/05/2018,Robert Heath Heating Ltd,662842,527.92,Contract Payments,Boiler Replacement Programme,Supplies & Services
04/05/2018,Royal Mail,662750,120.3,Postage/Stamps,Custom House Visitor Centre,Supplies & Services
04/05/2018,Royal Mail,662750,1293.12,Postage/Stamps,Exeter Visitor Information,Supplies & Services
04/05/2018,Royal Mail,662750,834.16,Postage/Stamps,Underground Passages,Supplies & Services
04/05/2018,Shield Environmental Services,662101,490,Aim Lease Requirements,Miscellaneous Properties,Premises
04/05/2018,Shield Environmental Services,661775,485,Pmf Compliance,Property Maintenance,Premises
04/05/2018,South West Water Business,660933,1826.9,Water,River Exe,Premises
04/05/2018,Southern Electric,661336,1323.82,Electricity,Car Parks - Assets,Premises
04/05/2018,Stq Vantage,659289,835,Pmf Compliance,Property Maintenance,Premises
04/05/2018,Teignmouth Harbour Commissions,662569,934.23,Marine Advice Contract,River Exe,Supplies & Services
04/05/2018,Thirty8 Digital Ltd,662616,2400,Activities Web Site,Ramm,Supplies & Services
04/05/2018,Trinity Fire & Security Systems,631753,1752.16,Aim Lease Requirements,Bradninch Place,Premises
04/05/2018,Venn Group Ltd,662853,293.76,Temp.Contract-Agency Staff,Planned Works,Pay
04/05/2018,Venn Group Ltd,662853,440.63,Temp.Contract-Agency Staff,Reactive Repairs,Pay
04/05/2018,W J Mathews (Exeter) Ltd,656866,937.85,Aim Reactive Repairs,Property Maintenance,Premises
08/05/2018,A L Chislett,662998,625,Rents,Psl Properties,Premises
08/05/2018,Advanced Business Solutions,662762,4061,Software Licences/Support,Strata Susp - Inv Paid By Ecc,Supplies & Services
08/05/2018,Ashton Cleaning Services (Sw) Ltd,662652,652.5,Cleaning,Glencoe,Premises
08/05/2018,British Gas,661167,574.96,Electricity,Glencoe,Premises
08/05/2018,British Gas,661167,707.69,Gas,Glencoe,Premises
08/05/2018,Brook Street (Uk) Ltd,663036,1204.14,Temp.Contract-Agency Staff,Health & Safety Compliance,Pay
08/05/2018,Building Recruitment Co Ltd,663007,995.02,Temp.Contract-Agency Staff,Bed And Breakfast,Pay
08/05/2018,Building Recruitment Co Ltd,663008,719.82,Temp.Contract-Agency Staff,Bed And Breakfast,Pay
08/05/2018,Building Recruitment Co Ltd,663010,638.83,Temp.Contract-Agency Staff,Bed And Breakfast,Pay
08/05/2018,Building Recruitment Co Ltd,663006,1066.23,Temp.Contract-Agency Staff,Planned Works,Pay
08/05/2018,Building Recruitment Co Ltd,663011,995.67,Temp.Contract-Agency Staff,Planned Works,Pay
08/05/2018,Building Recruitment Co Ltd,663009,570.69,Temp.Contract-Agency Staff,Reactive Repairs,Pay
08/05/2018,Burrows-Hutchinson Ltd,663029,1800,Consultants Fees,Exeter City Grp Business Cases,Supplies & Services
08/05/2018,Carbon Green Consulting Ltd,663031,810.72,Aim Lease Requirements,Commercial Properties,Premises
08/05/2018,Crown Fine Art Ltd,661277,5668,Museum Display Expenses,Museum Projects,Supplies & Services
08/05/2018,D R Jones (Yeovil) Ltd,663078,3232.47,Contract Payments,Bathroom Replacements,Supplies & Services
08/05/2018,D R Jones (Yeovil) Ltd,663079,2831.7,Contract Payments,Bathroom Replacements,Supplies & Services
08/05/2018,D R Jones (Yeovil) Ltd,663077,4187.14,Contract Payments,Kitchen Replacements,Supplies & Services
08/05/2018,D R Jones (Yeovil) Ltd,663080,4648.18,Contract Payments,Kitchen Replacements,Supplies & Services
08/05/2018,D R Jones (Yeovil) Ltd,663081,4865.5,Contract Payments,Kitchen Replacements,Supplies & Services
08/05/2018,D R Jones (Yeovil) Ltd,663082,4857.45,Contract Payments,Kitchen Replacements,Supplies & Services
08/05/2018,D R Jones (Yeovil) Ltd,663083,4104.77,Contract Payments,Kitchen Replacements,Supplies & Services
08/05/2018,D R Jones (Yeovil) Ltd,663084,5266.33,Contract Payments,Kitchen Replacements,Supplies & Services
08/05/2018,Dcet Ltd,660777,700,Staff Training,Learning & Development,Pay
08/05/2018,Dcet Ltd,660792,746,Staff Training,Learning & Development,Pay
08/05/2018,Dolphin Lifts South West,663002,2520,Contract Payments,Adaptations,Supplies & Services
08/05/2018,Edp Environmental Ltd,663055,1070,Contract Payments,Belle Isle Temporary Facilitie,Supplies & Services
08/05/2018,Envirovent Ltd,661298,944.06,General Maintenance,General Maintenance,Premises
08/05/2018,Exeter Arts Trading Services Ltd,662623,1715.48,Electricity,Ramm,Premises
08/05/2018,Exeter Arts Trading Services Ltd,662623,843.06,Gas,Ramm,Premises
08/05/2018,Exeter Arts Trading Services Ltd,662623,678.86,Water,Ramm,Premises
08/05/2018,Exeter Phoenix,661112,36800,Grants Issued,Grants And Contributions,Supplies & Services
08/05/2018,Experian Ltd,663032,545,Experian,Nndr Collection,Supplies & Services
08/05/2018,First Class Builders Ltd,663001,6364,Contract Payments,Bathroom Replacements,Supplies & Services
08/05/2018,Glendale Grounds Management Ltd,663022,10473,Grounds Costs,Garden Assistance,Premises
08/05/2018,Ian Williams Ltd,662562,2938.25,Contract Payments,Communal Door & Screens,Supplies & Services
08/05/2018,Ian Williams Ltd,662656,1820.91,General Maintenance,General Maintenance,Premises
08/05/2018,James Andrews Recruitment Solutions Ltd,662788,997.5,Temp.Contract-Agency Staff,Bed And Breakfast,Pay
08/05/2018,James Andrews Recruitment Solutions Ltd,662790,1011.4,Temp.Contract-Agency Staff,Bed And Breakfast,Pay
08/05/2018,James Andrews Recruitment Solutions Ltd,662791,585,Temp.Contract-Agency Staff,Bed And Breakfast,Pay
08/05/2018,James Andrews Recruitment Solutions Ltd,662363,945.63,Temp.Contract-Agency Staff,Human Resources,Pay
08/05/2018,James Andrews Recruitment Solutions Ltd,662792,1110.74,Temp.Contract-Agency Staff,Human Resources,Pay
08/05/2018,Jenkins Hansford Partnership,662884,3790,Contract Payments,Energy Saving Projects,Supplies & Services
08/05/2018,Jtt Contracting Ltd,662565,5169.36,Sub-Contractors,Footpaths Maint - Assets,Premises
08/05/2018,Mears Ltd,662416,197.23,Blocks Of Flat Repairs,General Maintenance,Premises
08/05/2018,Mears Ltd,662518,134.38,Blocks Of Flat Repairs,General Maintenance,Premises
08/05/2018,Mears Ltd,662416,35,General Maintenance,Elec Testing/Reactive,Premises
08/05/2018,Mears Ltd,662767,23.7,General Maintenance,Elec Testing/Reactive,Premises
08/05/2018,Mears Ltd,662416,1223.64,General Maintenance,General Maintenance,Premises
08/05/2018,Mears Ltd,662518,694.49,General Maintenance,General Maintenance,Premises
08/05/2018,Mears Ltd,662767,537.79,General Maintenance,General Maintenance,Premises
08/05/2018,Mears Ltd,662518,66.14,Knights Place Repairs & Maint,Knights Place,Premises
08/05/2018,Meridian Business Support,663012,518.74,Temp.Contract-Agency Staff,Affordable Housing Development,Pay
08/05/2018,Miss A E Kirkin,663268,723.6,Event Promotion,Exeter Corn Exchange,Supplies & Services
08/05/2018,Morgan Hunt Uk Ltd,663015,3662.95,Temp.Contract-Agency Staff,Procurement,Pay
08/05/2018,Museums Association (Membership),662193,1613,Subscriptions,Ramm,Supplies & Services
08/05/2018,Nute Plumbing Services Ltd,663047,4882,General Maintenance,General Maintenance,Premises
08/05/2018,Rics,662898,465,Professional Subscriptions,Estate Services,Pay
08/05/2018,Rics,661435,558,Staff Training,Learning & Development,Pay
08/05/2018,Robert Heath Heating Ltd,663018,622.92,Contract Payments,Boiler Replacement Programme,Supplies & Services
08/05/2018,Robert Heath Heating Ltd,663020,2376.26,Contract Payments,Central Heating Programme,Supplies & Services
08/05/2018,Shademakers Uk Carnival Club Cic,661290,12305,Project Work,Museum Projects,Supplies & Services
08/05/2018,Symsrudd Ltd,661985,2175,Staff Training,Vehicles Licensing,Pay
08/05/2018,Thomson Reuters,663058,700,Subscriptions,Environmental Quality Team,Supplies & Services
08/05/2018,Thomson Reuters,663058,700,Subscriptions,Premises Licensing,Supplies & Services
08/05/2018,Thomson Reuters,663058,700,Subscriptions,Vehicles Licensing,Supplies & Services
08/05/2018,Tolchards Ltd,663048,1404.37,Drinks,Exeter Corn Exchange,Supplies & Services
08/05/2018,Yandell Publishing Ltd,663057,500,Marketing,Visit Exeter,Supplies & Services
09/05/2018,Ashfords,663308,2660,Consultants Fees,Exeter City Grp Business Cases,Supplies & Services
09/05/2018,Baker Ruff Hannon Llp,663303,4800,Consultants Fees,Bus Station Construction,Supplies & Services
09/05/2018,Baker Ruff Hannon Llp,663306,5400,Consultants Fees,Leisure Complex - Build,Supplies & Services
09/05/2018,British Destinations,661984,550,Marketing,Visit Exeter,Supplies & Services
09/05/2018,Celador Radio Ltd,662785,2000,Event Promotion,Comms & Marketing Activity,Supplies & Services
09/05/2018,D R Jones (Yeovil) Ltd,663278,3945.66,Contract Payments,Kitchen Replacements,Supplies & Services
09/05/2018,Devon Arts In Schools  (Do Not Use See 2742),661089,5600,Grants Issued,Grants And Contributions,Supplies & Services
09/05/2018,Double Elephant Print Workshop,661088,6800,Grants Issued,Grants And Contributions,Supplies & Services
09/05/2018,Edf Energy Customers Ltd,663297,568.94,Electricity,Commercial Properties,Premises
09/05/2018,First Class Builders Ltd,663241,796,Contract Payments,Adaptations,Supplies & Services
09/05/2018,Kaleider Ltd,661109,6400,Grants Issued,Grants And Contributions,Supplies & Services
09/05/2018,M W Gozna Services Ltd,663234,450,Contract Payments,Adaptations,Supplies & Services
09/05/2018,Mears Ltd,662782,86.7,General Maintenance,Elec Testing/Reactive,Premises
09/05/2018,Mears Ltd,662782,749.31,General Maintenance,General Maintenance,Premises
09/05/2018,Mig Security & Events Ltd,663270,1890,Security Patrol,Car Parks,Premises
09/05/2018,Mrs M J Hutchings,658451,1016.9,Membership Contribution,Tourism,Supplies & Services
09/05/2018,Mrs M J Hutchings,662595,3162.24,Membership Contribution,Tourism,Supplies & Services
09/05/2018,Peter Jones,662198,8850,Consultants Fees,Comms & Marketing Activity,Supplies & Services
09/05/2018,South West Water,663231,966.83,Water,Capital payment,Premises
09/05/2018,South West Water,663232,966.83,Water,Extralet,Premises
09/05/2018,South West Water Business,661425,3692.37,Water,Public Conveniences - Assets,Premises
09/05/2018,Stagecoach Services Ltd,663228,5104.17,Public Transport,Green Travel Plan,Transport
09/05/2018,The Exeter Northcott Theatre Company,661111,52000,Grants Issued,Grants And Contributions,Supplies & Services
09/05/2018,The South West Research Company,661303,572,Project Work,Visit Exeter,Supplies & Services
09/05/2018,Theatre Alibi,661110,12288,Grants Issued,Grants And Contributions,Supplies & Services
09/05/2018,Thirsty Work Ltd,663264,618,Hospitality,Livestock/Matford Centre,Supplies & Services
09/05/2018,Ultimate Cleaning South West,662639,530,Cleaning,Cleansing Overheads,Premises
10/05/2018,A1 Electrics,663490,600,Reactive Repairs To Property,Extralet,Premises
10/05/2018,Age Uk Exeter,663457,5000,Grants Issued,Grants And Contributions,Supplies & Services
10/05/2018,Berry Recruitment,663023,428.83,Casuals Waged-Agency Staff,Car Park Sweeping,Pay
10/05/2018,Berry Recruitment,663244,452.01,Casuals Waged-Agency Staff,Cemeteries - Operational,Pay
10/05/2018,Berry Recruitment,662339,428.83,Casuals Waged-Agency Staff,Do Not Use - Use C059,Pay
10/05/2018,Berry Recruitment,663019,428.83,Casuals Waged-Agency Staff,Do Not Use - Use C059,Pay
10/05/2018,Berry Recruitment,663021,428.83,Casuals Waged-Agency Staff,Do Not Use - Use C059,Pay
10/05/2018,Berry Recruitment,663025,428.83,Casuals Waged-Agency Staff,Do Not Use - Use C059,Pay
10/05/2018,Berry Recruitment,663248,428.83,Casuals Waged-Agency Staff,Other Street Sweeping,Pay
10/05/2018,Berry Recruitment,663024,452.01,Casuals Waged-Agency Staff,Parks And Playing Fields,Pay
10/05/2018,Berry Recruitment,663246,452.01,Casuals Waged-Agency Staff,Parks And Playing Fields,Pay
10/05/2018,Berry Recruitment,663027,428.83,Casuals Waged-Agency Staff,Public Conveniences,Pay
10/05/2018,Berry Recruitment,662340,428.83,Casuals Waged-Agency Staff,Waste Agency Costs,Pay
10/05/2018,Berry Recruitment,663261,428.83,Casuals Waged-Agency Staff,Waste Agency Costs,Pay
10/05/2018,Citizens Advice Bureau,663454,84000,Grants Issued,Grants And Contributions,Supplies & Services
10/05/2018,Concept Staffing Ltd,662863,435.12,Casuals Waged-Agency Staff,Bid Cleansing Project,Pay
10/05/2018,Concept Staffing Ltd,662863,178.2,Casuals Waged-Agency Staff,Car Park Sweeping,Pay
10/05/2018,Concept Staffing Ltd,662863,463.32,Casuals Waged-Agency Staff,Childrens Play Areas,Pay
10/05/2018,Concept Staffing Ltd,662863,879.12,Casuals Waged-Agency Staff,Do Not Use - Use C059,Pay
10/05/2018,Concept Staffing Ltd,662856,504.92,Casuals Waged-Agency Staff,Materials Reclamation Facility,Pay
10/05/2018,Concept Staffing Ltd,662858,1019.68,Casuals Waged-Agency Staff,Materials Reclamation Facility,Pay
10/05/2018,Concept Staffing Ltd,662863,435.12,Casuals Waged-Agency Staff,Parks Operational Overheads,Pay
10/05/2018,Concept Staffing Ltd,662863,439.56,Casuals Waged-Agency Staff,Public Conveniences,Pay
10/05/2018,Concept Staffing Ltd,662861,435.12,Casuals Waged-Agency Staff,Waste Agency Costs,Pay
10/05/2018,D R Jones (Yeovil) Ltd,663535,466.5,General Maintenance,General Maintenance,Premises
10/05/2018,District Councils Network,662902,500,Other Expenses,Marketing,Supplies & Services
10/05/2018,European Asbestos Services Ltd,662551,665,Countryside Management,Countryside Recreation,Premises
10/05/2018,Exeter Community Transport Assoc,663460,17240,Grants Issued,Grants And Contributions,Supplies & Services
10/05/2018,Exeter Sports Fund,663456,6000,Grants Issued,Grants And Contributions,Supplies & Services
10/05/2018,Flogas,663068,838.34,Other Fuels (Including Oil),Belle Isle Depot Costs,Premises
10/05/2018,Gap Personnel,662244,434.75,Casuals Waged-Agency Staff,Other Street Sweeping,Pay
10/05/2018,Gap Personnel,663287,434.75,Casuals Waged-Agency Staff,Other Street Sweeping,Pay
10/05/2018,Gap Personnel,662244,916.5,Casuals Waged-Agency Staff,Parks And Playing Fields,Pay
10/05/2018,Gap Personnel,663285,458.25,Casuals Waged-Agency Staff,Parks And Playing Fields,Pay
10/05/2018,Gap Personnel,663287,916.5,Casuals Waged-Agency Staff,Parks And Playing Fields,Pay
10/05/2018,Gap Personnel,663285,176.25,Casuals Waged-Agency Staff,Public Conveniences,Pay
10/05/2018,Glendale Countryside Ltd,662379,3425,Sub-Contractors,Countryside Man - Assets,Premises
10/05/2018,Glendale Countryside Ltd,662385,540,Sub-Contractors,Countryside Recreation,Premises
10/05/2018,Gregory Distribution  Ltd,662376,644.5,Paper Haulage Out,Materials & Goods For Resale,Transport
10/05/2018,Gregory Distribution  Ltd,663037,1293.64,Paper Haulage Out,Materials & Goods For Resale,Transport
10/05/2018,Magic Carpet,663455,1500,Grants Issued,Grants And Contributions,Supplies & Services
10/05/2018,Mears Ltd,663088,95.54,Blocks Of Flat Repairs,General Maintenance,Premises
10/05/2018,Mears Ltd,663512,506.68,Blocks Of Flat Repairs,General Maintenance,Premises
10/05/2018,Mears Ltd,663516,74.49,Blocks Of Flat Repairs,General Maintenance,Premises
10/05/2018,Mears Ltd,663521,132.88,Blocks Of Flat Repairs,General Maintenance,Premises
10/05/2018,Mears Ltd,663530,135.03,Blocks Of Flat Repairs,General Maintenance,Premises
10/05/2018,Mears Ltd,663043,47.4,General Maintenance,Elec Testing/Reactive,Premises
10/05/2018,Mears Ltd,663088,21.68,General Maintenance,Elec Testing/Reactive,Premises
10/05/2018,Mears Ltd,663090,45.84,General Maintenance,Elec Testing/Reactive,Premises
10/05/2018,Mears Ltd,663516,452.51,General Maintenance,Elec Testing/Reactive,Premises
10/05/2018,Mears Ltd,663521,125.69,General Maintenance,Elec Testing/Reactive,Premises
10/05/2018,Mears Ltd,663530,38.49,General Maintenance,Elec Testing/Reactive,Premises
10/05/2018,Mears Ltd,663043,815.53,General Maintenance,General Maintenance,Premises
10/05/2018,Mears Ltd,663088,1408.38,General Maintenance,General Maintenance,Premises
10/05/2018,Mears Ltd,663090,1708.66,General Maintenance,General Maintenance,Premises
10/05/2018,Mears Ltd,663512,421.59,General Maintenance,General Maintenance,Premises
10/05/2018,Mears Ltd,663516,978.94,General Maintenance,General Maintenance,Premises
10/05/2018,Mears Ltd,663521,996.33,General Maintenance,General Maintenance,Premises
10/05/2018,Mears Ltd,663524,1485.86,General Maintenance,General Maintenance,Premises
10/05/2018,Mears Ltd,663530,441.68,General Maintenance,General Maintenance,Premises
10/05/2018,Mears Ltd,663088,121.95,Glazing,General Maintenance,Premises
10/05/2018,Mears Ltd,663530,29.36,Glazing,General Maintenance,Premises
10/05/2018,Merry Go Round Toy & Leisure Libra,663459,5000,Grants Issued,Grants And Contributions,Supplies & Services
10/05/2018,Merry Go Round Toy & Leisure Libra,663461,1000,Grants Issued,Grants And Contributions,Supplies & Services
10/05/2018,Morgan Hunt Uk Ltd,662202,808.55,Temp.Contract-Agency Staff,Revenues Recovery,Pay
10/05/2018,Morgan Hunt Uk Ltd,662203,1107.25,Temp.Contract-Agency Staff,Revenues Recovery,Pay
10/05/2018,Morgan Hunt Uk Ltd,663013,950.04,Temp.Contract-Agency Staff,Revenues Recovery,Pay
10/05/2018,Morgan Hunt Uk Ltd,663014,1107.25,Temp.Contract-Agency Staff,Revenues Recovery,Pay
10/05/2018,Morgan Hunt Uk Ltd,663017,1033.7,Temp.Contract-Agency Staff,Revenues Recovery,Pay
10/05/2018,Parkwood Leisure Ltd,651499,3347.34,Leisure Management Contract,Clifton Hill Sports Centre,Supplies & Services
10/05/2018,Parkwood Leisure Ltd,651499,1472.51,Leisure Management Contract,Exeter Arena,Supplies & Services
10/05/2018,Parkwood Leisure Ltd,651499,1850.79,Leisure Management Contract,Isca Centre,Supplies & Services
10/05/2018,Parkwood Leisure Ltd,651499,1428.52,Leisure Management Contract,Northbrook Golf Course,Supplies & Services
10/05/2018,Parkwood Leisure Ltd,651499,1431.72,Leisure Management Contract,Northbrook Pool,Supplies & Services
10/05/2018,Parkwood Leisure Ltd,651499,3536.76,Leisure Management Contract,Pyramids Swim & Leisure Centre,Supplies & Services
10/05/2018,Parkwood Leisure Ltd,651499,24149.55,Leisure Management Contract,Riverside Leisure Centre,Supplies & Services
10/05/2018,Parkwood Leisure Ltd,651499,2309.4,Leisure Management Contract,Wonford Sports Centre,Supplies & Services
10/05/2018,Patronus Security Uk Ltd,663333,960,Security Patrol,Vehicles Licensing,Premises
10/05/2018,Plymouth City Council,663764,2073.96,Museum Display Expenses,Museum Projects,Supplies & Services
10/05/2018,Recruitment Solutions (Sw) Ltd,663040,680.35,Casuals Waged-Agency Staff,Waste Agency Costs,Pay
10/05/2018,Recruitment Solutions (Sw) Ltd,663265,1081.06,Casuals Waged-Agency Staff,Waste Agency Costs,Pay
10/05/2018,Recruitment Solutions (Sw) Ltd,663269,1049.93,Casuals Waged-Agency Staff,Waste Agency Costs,Pay
10/05/2018,Ross & Roberts,662406,0,Bailiffs Fees,Revenues Recovery,Supplies & Services
10/05/2018,Scheidt & Bachmann (Uk) Ltd,663323,4975,Equipment Tools And Materials,Car Parks,Supplies & Services
10/05/2018,South West Water Business,660914,2881.57,Water,Public Conveniences - Assets,Premises
10/05/2018,Southern Electric,661259,910.45,Electricity,Car Parks - Assets,Premises
10/05/2018,Southern Electric,661261,1234.45,Electricity,Car Parks - Assets,Premises
10/05/2018,Southern Electric,661266,777.81,Electricity,Car Parks - Assets,Premises
10/05/2018,The Best Connection Group Ltd,662538,542.43,Casuals Waged-Agency Staff,Do Not Use - Use C059,Pay
10/05/2018,The Best Connection Group Ltd,663551,562.52,Casuals Waged-Agency Staff,Do Not Use - Use C059,Pay
10/05/2018,The Best Connection Group Ltd,663552,1205.4,Casuals Waged-Agency Staff,Materials Reclamation Facility,Pay
10/05/2018,The Best Connection Group Ltd,662538,109.06,Casuals Waged-Agency Staff,Other Street Sweeping,Pay
10/05/2018,The Best Connection Group Ltd,662540,424.76,Casuals Waged-Agency Staff,Other Street Sweeping,Pay
10/05/2018,The Best Connection Group Ltd,663551,344.4,Casuals Waged-Agency Staff,Other Street Sweeping,Pay
10/05/2018,The Best Connection Group Ltd,662539,367.36,Casuals Waged-Agency Staff,Parks And Playing Fields,Pay
10/05/2018,The Best Connection Group Ltd,662538,1116.43,Casuals Waged-Agency Staff,Public Conveniences,Pay
10/05/2018,The Best Connection Group Ltd,663551,866.74,Casuals Waged-Agency Staff,Public Conveniences,Pay
10/05/2018,The Best Connection Group Ltd,662539,447.72,Casuals Waged-Agency Staff,Rechargeable Works,Pay
10/05/2018,Turntable Furniture Project,663458,6250,Grants Issued,Grants And Contributions,Supplies & Services
10/05/2018,W B Employment Ltd,662647,453.99,Casuals Waged-Agency Staff,Do Not Use - Use C059,Pay
10/05/2018,W B Employment Ltd,663331,631.91,Casuals Waged-Agency Staff,Waste Agency Costs,Pay
10/05/2018,Whistl Uk Ltd,663533,763.84,Postage/Stamps,Mail,Supplies & Services
10/05/2018,Wise Employment,663041,692.83,Casuals Waged-Agency Staff,Waste Agency Costs,Pay
11/05/2018,3c Payment Uk Ltd,663673,1619.68,Card Payment Charges,Car Parks,Supplies & Services
11/05/2018,A1 Electrics,663736,731,Service & Maint Agreements,Shared House Psls,Premises
11/05/2018,A1 Electrics,663737,571.5,Service & Maint Agreements,Shared House Psls,Premises
11/05/2018,Adt Fire And Security,663583,586.5,Equipment Tools And Materials,Underground Passages,Supplies & Services
11/05/2018,Allstar Business Solutions,663671,106.64,Motor Fuel,Canal,Transport
11/05/2018,Allstar Business Solutions,663671,237.74,Motor Fuel,Cash Collection,Transport
11/05/2018,Allstar Business Solutions,663671,97.34,Motor Fuel,Cemeteries - Operational,Transport
11/05/2018,Allstar Business Solutions,663671,196.58,Motor Fuel,Cleansing Overheads,Transport
11/05/2018,Allstar Business Solutions,663671,45.83,Motor Fuel,Countryside Recreation,Transport
11/05/2018,Allstar Business Solutions,663671,54.01,Motor Fuel,Development Team,Transport
11/05/2018,Allstar Business Solutions,663671,1358.01,Motor Fuel,Do Not Use - Use C059,Transport
11/05/2018,Allstar Business Solutions,663671,104.13,Motor Fuel,Dog Bins,Transport
11/05/2018,Allstar Business Solutions,663671,79.17,Motor Fuel,Electricians,Transport
11/05/2018,Allstar Business Solutions,663671,258.98,Motor Fuel,Graffiti Cleaning,Transport
11/05/2018,Allstar Business Solutions,663671,1788.19,Motor Fuel,Green Waste Collection Service,Transport
11/05/2018,Allstar Business Solutions,663671,81.26,Motor Fuel,Housing Cleansing Round,Transport
11/05/2018,Allstar Business Solutions,663671,173.34,Motor Fuel,Litter Bins,Transport
11/05/2018,Allstar Business Solutions,663671,305.23,Motor Fuel,Materials Reclamation Facility,Transport
11/05/2018,Allstar Business Solutions,663671,93.46,Motor Fuel,Mayoralty,Transport
11/05/2018,Allstar Business Solutions,663671,1663.91,Motor Fuel,Other Street Sweeping,Transport
11/05/2018,Allstar Business Solutions,663671,2252.75,Motor Fuel,Parks And Playing Fields,Transport
11/05/2018,Allstar Business Solutions,663671,478.71,Motor Fuel,Parks Operational Overheads,Transport
11/05/2018,Allstar Business Solutions,663671,83.53,Motor Fuel,Property Assets - Builders,Transport
11/05/2018,Allstar Business Solutions,663671,218.8,Motor Fuel,Public Conveniences,Transport
11/05/2018,Allstar Business Solutions,663671,164.5,Motor Fuel,Ramm,Transport
11/05/2018,Allstar Business Solutions,663671,415,Motor Fuel,Reactive Team,Transport
11/05/2018,Allstar Business Solutions,663671,29.49,Motor Fuel,Recycling Management /Strategy,Transport
11/05/2018,Allstar Business Solutions,663671,400.67,Motor Fuel,Recycling Round,Transport
11/05/2018,Allstar Business Solutions,663671,9588.98,Motor Fuel,Refuse Collection,Transport
11/05/2018,Allstar Business Solutions,663671,216.67,Motor Fuel,Special Collections,Transport
11/05/2018,Allstar Business Solutions,663671,2009.13,Motor Fuel,Trade Refuse & Recycling,Transport
11/05/2018,Building Recruitment Co Ltd,663699,867.95,Temp.Contract-Agency Staff,Bed And Breakfast,Pay
11/05/2018,Building Recruitment Co Ltd,663700,1115.04,Temp.Contract-Agency Staff,Bed And Breakfast,Pay
11/05/2018,Building Recruitment Co Ltd,663757,995.67,Temp.Contract-Agency Staff,Planned Works,Pay
11/05/2018,Building Recruitment Co Ltd,663701,775.62,Temp.Contract-Agency Staff,Reactive Repairs,Pay
11/05/2018,D R Jones (Yeovil) Ltd,663732,3276.47,Contract Payments,Bathroom Replacements,Supplies & Services
11/05/2018,Dickens Showrooms Ltd,663765,625,Tenant Decant Costs,Planned Works,Supplies & Services
11/05/2018,E.On Connecting Energies Ltd,661125,6750.2,Miscellaneous Expenditure,General Management,Supplies & Services
11/05/2018,Franks And Franks,663693,4000,Marketing,Comms & Marketing Activity,Supplies & Services
11/05/2018,James Andrews Recruitment Solutions Ltd,663721,978.56,Temp.Contract-Agency Staff,Bed And Breakfast,Pay
11/05/2018,Lex Autolease,662637,4399.92,Car Leasing,Mayoralty,Transport
11/05/2018,Maker Coating Systems Ltd,662039,495.84,Materials,Childrens Play Areas,Supplies & Services
11/05/2018,Mears Ltd,663725,4962.95,Decs For Elderly & Disabled,Internal Decoration Prog,Premises
11/05/2018,Mears Ltd,663245,2000.06,General Maintenance,General Maintenance,Premises
11/05/2018,Mears Ltd,663728,1185.46,General Maintenance,General Maintenance,Premises
11/05/2018,Mears Ltd,663734,1026.64,General Maintenance,General Maintenance,Premises
11/05/2018,Morgan Hunt Uk Ltd,663697,3662.95,Temp.Contract-Agency Staff,Procurement,Pay
11/05/2018,Network Merchants Ltd (Formerly Creditcall),663576,797.26,Card Payment Charges,Car Parks,Supplies & Services
11/05/2018,Post Office Counters Ltd,663670,650,Vehicle Road Tax,Green Waste Collection Service,Transport
11/05/2018,Recruitment Solutions (Sw) Ltd,663038,514.05,Temp.Contract-Agency Staff,Human Resources,Pay
11/05/2018,Smurfit Kappa Recycling,659993,991.44,Miscellaneous Recharge Income,Accountancy Services,Income
11/05/2018,Smurfit Kappa Recycling,663716,601.44,Miscellaneous Recharge Income,Accountancy Services,Income
11/05/2018,South West Water Business,659858,754.44,Water,Oakwood House,Premises
11/05/2018,South West Water Business,662167,1727.2,Water,Older Persons Accommodation,Premises
11/05/2018,St John'S Chambers,663026,1600,Solicitors And Legal Fees/Lics,Vehicles Licensing,Supplies & Services
11/05/2018,Strata Service Solutions Ltd,663674,5953.76,Payment To Strata,Mobile Device Chgs For Rechge,Supplies & Services
11/05/2018,The Best Connection Group Ltd,663548,424.76,Casuals Waged-Agency Staff,Parks And Playing Fields,Pay
11/05/2018,Venn Group Ltd,663738,478.95,Temp.Contract-Agency Staff,Planned Works,Pay
11/05/2018,Venn Group Ltd,663738,718.43,Temp.Contract-Agency Staff,Reactive Repairs,Pay
11/05/2018,Westcountry Fire Protection Ltd,662530,3723,Emergency Light Testing,Service Contracts,Premises
14/05/2018,Bidfood,663563,1022.9,Food,Exeter Corn Exchange,Supplies & Services
14/05/2018,Big Wave Media Ltd,663666,549,Other Expenses,Active & Healthy Staff Costs,Supplies & Services
14/05/2018,Building Recruitment Co Ltd,663759,1058.13,Temp.Contract-Agency Staff,Planned Works,Pay
14/05/2018,Concept Staffing Ltd,663914,732.77,Casuals Waged-Agency Staff,Waste Agency Costs,Pay
14/05/2018,Concept Staffing Ltd,663911,528.99,Temp.Contract-Agency Staff,Planning,Pay
14/05/2018,Devon County Council,659215,73274.93,Waste Disposal,Refuse Collection,Supplies & Services
14/05/2018,First Class Builders Ltd,663903,5096.11,Contract Payments,Adaptations,Supplies & Services
14/05/2018,Flat Vision Products Ltd,663332,1721.28,Equipment Tools And Materials,Museum Projects,Supplies & Services
14/05/2018,Hays Accountancy Personnel,664028,625.43,Temp.Contract-Agency Staff,Accountancy Services,Pay
14/05/2018,K S Fencing,663931,1735.26,Sub-Contractors,Countryside Man - Assets,Premises
14/05/2018,Local Government Association,659878,545,Conference/Seminars Costs,Chief Executive & Growth Dir,Supplies & Services
14/05/2018,Local Government Association,660535,10450,Subscriptions,Democratic Costs,Supplies & Services
14/05/2018,Mears Ltd,663847,164.34,Blocks Of Flat Repairs,General Maintenance,Premises
14/05/2018,Mears Ltd,663847,188.74,General Maintenance,Elec Testing/Reactive,Premises
14/05/2018,Mears Ltd,663848,39.42,General Maintenance,Elec Testing/Reactive,Premises
14/05/2018,Mears Ltd,663846,701.96,General Maintenance,General Maintenance,Premises
14/05/2018,Mears Ltd,663847,279.82,General Maintenance,General Maintenance,Premises
14/05/2018,Mears Ltd,663848,1790.89,General Maintenance,General Maintenance,Premises
14/05/2018,Mears Ltd,663909,3412.9,General Maintenance,Repairs To Void Properties,Premises
14/05/2018,Mears Ltd,663910,10657.79,General Maintenance,Repairs To Void Properties,Premises
14/05/2018,Mears Ltd,663848,34.45,Knights Place Repairs & Maint,Knights Place,Premises
14/05/2018,Mears Ltd,663905,1551.75,Repairs To Void Properties,Extralet,Premises
14/05/2018,Mike Shelston,663928,792,Countryside Topping/Cutting,Countryside Man - Assets,Premises
14/05/2018,P & P Lifts Limited,654137,3120,Aim Reactive Repairs,Property Maintenance,Premises
14/05/2018,Royal Mail,662566,6405.04,Postage/Stamps,Electoral Registration,Supplies & Services
14/05/2018,Sciprint Ltd,663852,642.77,Postage/Stamps,District Council Elections,Supplies & Services
14/05/2018,Sciprint Ltd,663852,259,Stationery,District Council Elections,Supplies & Services
14/05/2018,Wise Employment,663845,859.35,Casuals Waged-Agency Staff,Waste Agency Costs,Pay
14/05/2018,Wise Employment,663896,902.8,Casuals Waged-Agency Staff,Waste Agency Costs,Pay
14/05/2018,Wise Employment,663897,892.73,Casuals Waged-Agency Staff,Waste Agency Costs,Pay
15/05/2018,Ashton Cleaning Services (Sw) Ltd,663917,683.37,Cleaning,Psl Properties,Premises
15/05/2018,British Institute Of Facilities Management,664159,998.14,Staff Training,Learning & Development,Pay
15/05/2018,Building Recruitment Co Ltd,663758,859.51,Temp.Contract-Agency Staff,Bed And Breakfast,Pay
15/05/2018,Colt International Limited,663833,618,General Maintenance,General Maintenance,Premises
15/05/2018,Concept Staffing Ltd,663849,492.27,Casuals Waged-Agency Staff,Materials Reclamation Facility,Pay
15/05/2018,Concept Staffing Ltd,663915,492.27,Casuals Waged-Agency Staff,Materials Reclamation Facility,Pay
15/05/2018,Cordant People Ltd (Previously Prime Time Rec,664291,596.96,Casuals Waged-Agency Staff,Waste Agency Costs,Pay
15/05/2018,D R Jones (Yeovil) Ltd,664137,1065,General Maintenance,General Maintenance,Premises
15/05/2018,Devon County Council,664048,2698.8,Devon County Council Consult.,Land Charges,Supplies & Services
15/05/2018,Energyserv Uk Ltd,664169,1373.16,Gas & Central Heating,Service Contracts,Premises
15/05/2018,Exeter Respect Cic,663451,16000,Contingency,Respect Festival,Supplies & Services
15/05/2018,Glendale Grounds Management Ltd,664166,672,Initial Cultivations - Housing,Garden Assistance,Premises
15/05/2018,Mears Ltd,663733,156.49,Blocks Of Flat Repairs,General Maintenance,Premises
15/05/2018,Mears Ltd,664119,131.05,Blocks Of Flat Repairs,General Maintenance,Premises
15/05/2018,Mears Ltd,663733,663.89,General Maintenance,Elec Testing/Reactive,Premises
15/05/2018,Mears Ltd,664119,21.73,General Maintenance,Elec Testing/Reactive,Premises
15/05/2018,Mears Ltd,663733,1331.55,General Maintenance,General Maintenance,Premises
15/05/2018,Mears Ltd,664119,805.14,General Maintenance,General Maintenance,Premises
15/05/2018,Mears Ltd,664162,1563.13,General Maintenance,Repairs To Void Properties,Premises
15/05/2018,Mears Ltd,664163,757.86,Repairs To Hand Back Prop,Psl Properties,Premises
15/05/2018,Robert Heath Heating Ltd,664164,841.7,Reactive Repairs To Property,Extralet,Premises
15/05/2018,Secureforce Uk Ltd,664154,508.37,Security Patrol,Livestock/Matford Centre,Premises
15/05/2018,South West Water,663508,748.14,Water,Older Persons Accommodation,Premises
15/05/2018,South West Water Business,664155,605.19,Water,Livestock/Matford Centre,Premises
15/05/2018,Southern Electric,663752,1340.29,Electricity,Car Parks - Assets,Premises
15/05/2018,St Petrocks (Exeter) Ltd,664134,820,Spend To Save,Bed And Breakfast,Supplies & Services
15/05/2018,Steve Reed Tourism Ltd,664065,425,Marketing,Visit Exeter,Supplies & Services
15/05/2018,Stonewater Ltd,663898,3652.8,Spend To Save,Bed And Breakfast,Supplies & Services
15/05/2018,The Blinking Lamp Co Ltd T/A Blc Construction,663916,605.24,"Clothing, Laundry, & Uniforms",Materials Reclamation Facility,Supplies & Services
15/05/2018,Western Power Distribution,664027,90715.95,Contract Payments,Leisure Complex - Build,Supplies & Services
15/05/2018,Yelverton Properties Developments Ltd,663834,235388.96,Fees,St James Park - Stadium Imp,Income
16/05/2018,Devon Development Education,664612,510,Goods For Resale,Museum Shop,Supplies & Services
16/05/2018,European Asbestos Services Ltd,664357,913.02,Asbestos Removal,Asbestos,Premises
16/05/2018,European Asbestos Services Ltd,664463,1506.18,Asbestos Removal,Asbestos,Premises
16/05/2018,European Asbestos Services Ltd,664465,1058.37,Asbestos Removal,Asbestos,Premises
16/05/2018,European Asbestos Services Ltd,664331,508.65,Blocks Of Flat Repairs,General Maintenance,Premises
16/05/2018,European Asbestos Services Ltd,664346,675,Blocks Of Flat Repairs,General Maintenance,Premises
16/05/2018,G & L Consultancy Ltd,664468,1130,Asbestos Surveys,Asbestos,Premises
16/05/2018,Hays Accountancy Personnel,660565,8165,Advertising Of Posts,Procurement,Pay
16/05/2018,Inexeter Ltd,663067,259518.77,Contract Payments,Exeter Bid Company,Supplies & Services
16/05/2018,Repeat Repeat Ltd,664696,980.4,Goods For Resale,Museum Shop,Supplies & Services
16/05/2018,Roadform Civil Engineering Ltd,662921,7948.26,Aim Reactive Repairs,Property Maintenance,Premises
16/05/2018,Tam Marketing Ltd,664491,752.3,Materials,Public Conveniences,Supplies & Services
16/05/2018,Tomra Sorting Ltd,663913,4640,Maintenance Of Equipment,Materials Reclamation Facility,Supplies & Services
17/05/2018,D R Jones (Yeovil) Ltd,664629,3161.62,Contract Payments,Bathroom Replacements,Supplies & Services
17/05/2018,D R Jones (Yeovil) Ltd,664630,2947.7,Contract Payments,Bathroom Replacements,Supplies & Services
17/05/2018,D R Jones (Yeovil) Ltd,664631,2891.86,Contract Payments,Bathroom Replacements,Supplies & Services
17/05/2018,D R Jones (Yeovil) Ltd,664633,2835.98,Contract Payments,Bathroom Replacements,Supplies & Services
17/05/2018,D R Jones (Yeovil) Ltd,664627,6540.85,Contract Payments,Kitchen Replacements,Supplies & Services
17/05/2018,D R Jones (Yeovil) Ltd,664636,4125.72,Contract Payments,Kitchen Replacements,Supplies & Services
17/05/2018,D R Jones (Yeovil) Ltd,664640,6061.53,Contract Payments,Kitchen Replacements,Supplies & Services
17/05/2018,Goldsworthy Heating,661284,1390,Grants Issued,Disabled Facilities Grants,Supplies & Services
17/05/2018,Goldsworthy Heating,661285,3988,Grants Issued,Disabled Facilities Grants,Supplies & Services
17/05/2018,Grenadier Hub Ltd,664135,650,Subscriptions,Exeter City Futures,Supplies & Services
17/05/2018,Hays Accountancy Personnel,664315,941.52,Temp.Contract-Agency Staff,Accountancy Services,Pay
17/05/2018,Heritage Books,664697,1580.52,Goods For Resale,Museum Shop,Supplies & Services
17/05/2018,James Andrews Recruitment Solutions Ltd,663750,1110.74,Temp.Contract-Agency Staff,Human Resources,Pay
17/05/2018,Jtt Contracting Ltd,662564,1663.29,Sub-Contractors,Mallison Bridge,Premises
17/05/2018,Meridian Business Support,664673,664.81,Temp.Contract-Agency Staff,Affordable Housing Development,Pay
17/05/2018,Nla Media Access Limited,664617,1182,Licences,Communications & Marketing,Supplies & Services
17/05/2018,Ove Arup & Partners Ltd,664367,13656.89,Consultants Fees,Bus Station Construction,Supplies & Services
17/05/2018,Ove Arup & Partners Ltd,664564,10000,Consultants Fees,Bus Station Construction,Supplies & Services
17/05/2018,Peake (Gb) Limited,664458,4549.93,Sub-Contractors,Public Conveniences,Premises
17/05/2018,Raven Dragon Ltd,663722,2000,Staff Training,Learning & Development,Pay
17/05/2018,Regional Publications Ltd,664378,500,Sub-Contractors,Cemeteries - Operational,Premises
17/05/2018,Rh Environmental Ltd,664312,600,Subscriptions,Business Regulation Team,Supplies & Services
17/05/2018,Rh Environmental Ltd,664312,600,Subscriptions,Environmental Quality Team,Supplies & Services
17/05/2018,Rh Environmental Ltd,664312,600,Subscriptions,Monitoring Private Housing,Supplies & Services
17/05/2018,Rh Environmental Ltd,664312,600,Subscriptions,Premises Licensing,Supplies & Services
17/05/2018,Rh Environmental Ltd,664312,600,Subscriptions,Vehicles Licensing,Supplies & Services
17/05/2018,Secureforce Uk Ltd,663743,1995.86,Central Alarm Service,"The Ark Museum Store, Exton Rd",Premises
17/05/2018,Sound Events Ltd,664140,10713.5,Sub-Contractors,District Council Elections,Premises
17/05/2018,Sound Events Ltd,664142,775,Sub-Contractors,District Council Elections,Premises
17/05/2018,Southern Electric,664100,677.22,Electricity,Oakwood House,Premises
17/05/2018,Southern Electric,664101,761.86,Electricity,Oakwood House,Premises
17/05/2018,Southern Electric,664102,692.54,Electricity,Oakwood House,Premises
17/05/2018,Southern Electric,664103,731.02,Electricity,Oakwood House,Premises
17/05/2018,Southern Electric,664131,622.97,Electricity,Oakwood House,Premises
17/05/2018,Southern Electric,664132,762.3,Electricity,Oakwood House,Premises
17/05/2018,Southern Electric,664133,762.41,Electricity,Oakwood House,Premises
17/05/2018,Southern Electric,664136,669.96,Electricity,Oakwood House,Premises
17/05/2018,Southern Electric,664138,747.11,Electricity,Oakwood House,Premises
17/05/2018,Strata Service Solutions Ltd,664605,10905.83,Payment To Strata,Strata Contract Payment,Supplies & Services
17/05/2018,The Exeter Northcott Theatre Company,664565,859.9,Travel & Attraction Tickets,Exeter Visitor Information,Supplies & Services
17/05/2018,Westcountry Fire Protection Ltd,662531,1800.75,Fire Alarm Testing,Service Contracts,Premises
17/05/2018,Zep Uk,664057,960,Materials,Graffiti Cleaning,Supplies & Services
18/05/2018,Arque Ltd,664830,554,Contract Payments,Structural Repairs,Supplies & Services
18/05/2018,Arque Ltd,664828,500,General Maintenance,General Maintenance,Premises
18/05/2018,Ashfords,664805,700.5,Consultants Fees,Exeter City Grp Business Cases,Supplies & Services
18/05/2018,Brook Street (Uk) Ltd,664635,1196.97,Temp.Contract-Agency Staff,Health & Safety Compliance,Pay
18/05/2018,Building Recruitment Co Ltd,664594,859.51,Temp.Contract-Agency Staff,Bed And Breakfast,Pay
18/05/2018,Building Recruitment Co Ltd,664597,859.51,Temp.Contract-Agency Staff,Bed And Breakfast,Pay
18/05/2018,Building Recruitment Co Ltd,664661,1097.62,Temp.Contract-Agency Staff,Bed And Breakfast,Pay
18/05/2018,Building Recruitment Co Ltd,664671,947.21,Temp.Contract-Agency Staff,Bed And Breakfast,Pay
18/05/2018,Building Recruitment Co Ltd,664676,1045.35,Temp.Contract-Agency Staff,Bed And Breakfast,Pay
18/05/2018,Building Recruitment Co Ltd,664592,927.08,Temp.Contract-Agency Staff,Planned Works,Pay
18/05/2018,Building Recruitment Co Ltd,664593,895.46,Temp.Contract-Agency Staff,Planned Works,Pay
18/05/2018,Building Recruitment Co Ltd,664596,1060.04,Temp.Contract-Agency Staff,Planned Works,Pay
18/05/2018,Building Recruitment Co Ltd,664658,758.52,Temp.Contract-Agency Staff,Planned Works,Pay
18/05/2018,Building Recruitment Co Ltd,664668,1077.87,Temp.Contract-Agency Staff,Planned Works,Pay
18/05/2018,Building Recruitment Co Ltd,664595,798.16,Temp.Contract-Agency Staff,Reactive Repairs,Pay
18/05/2018,Building Recruitment Co Ltd,664672,821.09,Temp.Contract-Agency Staff,Reactive Repairs,Pay
18/05/2018,Concept Staffing Ltd,664860,556.47,Temp.Contract-Agency Staff,Planning,Pay
18/05/2018,Dickens Showrooms Ltd,664479,4249.8,Management,Queens Road,Supplies & Services
18/05/2018,E.On   (Electricity),663519,1911.74,Electricity,Street Lighting - Assets,Premises
18/05/2018,First Class Builders Ltd,664800,4109.64,General Maintenance,General Maintenance,Premises
18/05/2018,First Class Builders Ltd,664802,598.67,General Maintenance,General Maintenance,Premises
18/05/2018,First Class Builders Ltd,664825,528,General Maintenance,General Maintenance,Premises
18/05/2018,Guardian Security Company,664857,575,Contract Payments,Adaptations,Supplies & Services
18/05/2018,Hays Accountancy Personnel,664464,5500,Advertising Of Posts,Procurement,Pay
18/05/2018,James Andrews Recruitment Solutions Ltd,664806,682.5,Temp.Contract-Agency Staff,Housing Advice,Pay
18/05/2018,James Andrews Recruitment Solutions Ltd,664571,1110.74,Temp.Contract-Agency Staff,Human Resources,Pay
18/05/2018,James Andrews Recruitment Solutions Ltd,664854,502.26,Temp.Contract-Agency Staff,Planning,Pay
18/05/2018,John Kennard,664478,12197.15,Serviced Accommodation,Serviced Accommodation,Premises
18/05/2018,Jtt Contracting Ltd,664460,647,Sub-Contractors,Kings Arms Bridge,Premises
18/05/2018,Mears Ltd,664795,84.28,Blocks Of Flat Repairs,General Maintenance,Premises
18/05/2018,Mears Ltd,664797,49.09,Blocks Of Flat Repairs,General Maintenance,Premises
18/05/2018,Mears Ltd,664838,71.84,Blocks Of Flat Repairs,General Maintenance,Premises
18/05/2018,Mears Ltd,664840,308.97,Blocks Of Flat Repairs,General Maintenance,Premises
18/05/2018,Mears Ltd,664836,34.34,Contract Payments,Fire Risk Assessment Works,Supplies & Services
18/05/2018,Mears Ltd,664797,198.01,General Maintenance,Elec Testing/Reactive,Premises
18/05/2018,Mears Ltd,664836,46.2,General Maintenance,Elec Testing/Reactive,Premises
18/05/2018,Mears Ltd,664838,39.42,General Maintenance,Elec Testing/Reactive,Premises
18/05/2018,Mears Ltd,664840,153.72,General Maintenance,Elec Testing/Reactive,Premises
18/05/2018,Mears Ltd,664795,3000.19,General Maintenance,General Maintenance,Premises
18/05/2018,Mears Ltd,664797,2049.83,General Maintenance,General Maintenance,Premises
18/05/2018,Mears Ltd,664836,775.47,General Maintenance,General Maintenance,Premises
18/05/2018,Mears Ltd,664838,1877.85,General Maintenance,General Maintenance,Premises
18/05/2018,Mears Ltd,664840,2049.29,General Maintenance,General Maintenance,Premises
18/05/2018,Mears Ltd,664836,23.14,Knights Place Repairs & Maint,Knights Place,Premises
18/05/2018,Mr M N Hassan,664297,17688.46,Serviced Accommodation,Serviced Accommodation,Premises
18/05/2018,Nute Plumbing Services Ltd,664986,3788,Grants Issued,Disabled Facilities Grants,Supplies & Services
18/05/2018,Recruitment Solutions (Sw) Ltd,664647,455.4,Temp.Contract-Agency Staff,Human Resources,Pay
18/05/2018,Reed Construction & Developments Ltd,664791,620,Spend To Save,Bed And Breakfast,Supplies & Services
18/05/2018,South West Water Business,663560,1133.63,Water,Public Conveniences - Assets,Premises
18/05/2018,Southern Electric,664694,1369.59,Electricity,Car Parks - Assets,Premises
18/05/2018,Venn Group Ltd,664861,191.58,Temp.Contract-Agency Staff,Planned Works,Pay
18/05/2018,Venn Group Ltd,664861,287.37,Temp.Contract-Agency Staff,Reactive Repairs,Pay
18/05/2018,Zurich Insurance Plc,664450,8000,Liability Insurance Premiums,Public Liability Insurance,Pay
21/05/2018,Awcock Ward Partnership,664121,2850,Sub-Contractors,Mallison Bridge,Premises
21/05/2018,Clearpoint Recycling Ltd,664056,1812.4,Processing Comingled Materials,Materials & Goods For Resale,Supplies & Services
21/05/2018,Cmp Entertainment,665020,5834.38,Event Promotion,Exeter Corn Exchange,Supplies & Services
21/05/2018,D R Jones (Yeovil) Ltd,665039,5602.01,Contract Payments,Kitchen Replacements,Supplies & Services
21/05/2018,D R Jones (Yeovil) Ltd,665040,5860.36,Contract Payments,Kitchen Replacements,Supplies & Services
21/05/2018,Devon Mediation Service,664157,1000,Family Mediation Service,Community Safety Partnerships,Supplies & Services
21/05/2018,Devon Norse Ltd,664692,474.85,Cleaning,Cctv Control Room,Premises
21/05/2018,Dolphin Lifts South West,664970,1261.05,Grants Issued,Disabled Facilities Grants,Supplies & Services
21/05/2018,Emma Brunjes Productions Ltd,663724,2988.05,Event Promotion,Exeter Corn Exchange,Supplies & Services
21/05/2018,Envirocon Ltd,664405,880.4,Processing Comingled Materials,Materials & Goods For Resale,Supplies & Services
21/05/2018,European Asbestos Services Ltd,665035,1376.99,Asbestos Surveys,Asbestos,Premises
21/05/2018,Gae Smith Holdings Ltd T/A Casepak,664420,1838.72,Processing Comingled Materials,Materials & Goods For Resale,Supplies & Services
21/05/2018,Goldsworthy Heating,665024,4866.96,Grants Issued,Disabled Facilities Grants,Supplies & Services
21/05/2018,Hays Accountancy Personnel,665032,659.06,Temp.Contract-Agency Staff,Accountancy Services,Pay
21/05/2018,Mears Ltd,664989,185.73,Blocks Of Flat Repairs,General Maintenance,Premises
21/05/2018,Mears Ltd,665027,2738.22,Blocks Of Flat Repairs,General Maintenance,Premises
21/05/2018,Mears Ltd,664987,55.45,General Maintenance,Elec Testing/Reactive,Premises
21/05/2018,Mears Ltd,664988,91.61,General Maintenance,Elec Testing/Reactive,Premises
21/05/2018,Mears Ltd,664794,1608.89,General Maintenance,General Maintenance,Premises
21/05/2018,Mears Ltd,664987,1783.73,General Maintenance,General Maintenance,Premises
21/05/2018,Mears Ltd,664988,901.97,General Maintenance,General Maintenance,Premises
21/05/2018,Mears Ltd,664989,1091.11,General Maintenance,General Maintenance,Premises
21/05/2018,Mears Ltd,665027,2298.42,General Maintenance,General Maintenance,Premises
21/05/2018,Off The Kerb Productions Ltd,663748,900,Event Promotion,Exeter Corn Exchange,Supplies & Services
21/05/2018,Off The Kerb Productions Ltd,665022,4643.33,Event Promotion,Exeter Corn Exchange,Supplies & Services
21/05/2018,Otis Ltd,664490,892.17,Aim Service & Maintenance,Property Maintenance,Premises
21/05/2018,Policy In Practice,664156,9880,Other Expenses,Local Welfare Support,Supplies & Services
21/05/2018,Robert Heath Heating Ltd,664995,527.92,Contract Payments,Boiler Replacement Programme,Supplies & Services
21/05/2018,Robert Heath Heating Ltd,665036,697,Contract Payments,Boiler Replacement Programme,Supplies & Services
21/05/2018,Robert Heath Heating Ltd,665037,636.82,Contract Payments,Boiler Replacement Programme,Supplies & Services
21/05/2018,Robert Heath Heating Ltd,665038,1120.84,Contract Payments,Boiler Replacement Programme,Supplies & Services
21/05/2018,Robert Heath Heating Ltd,665042,527.92,Contract Payments,Boiler Replacement Programme,Supplies & Services
21/05/2018,Robert Heath Heating Ltd,665043,527.92,Contract Payments,Boiler Replacement Programme,Supplies & Services
21/05/2018,Saddles And Paddles Exeter Limited,664815,1126.22,Rent Dep,Ecc Balance Sheet,Long Term Liabilities
21/05/2018,Sally Morgan Entertainments,664867,2467.87,Event Promotion,Exeter Corn Exchange,Supplies & Services
21/05/2018,Showbitz Ltd,665030,650,Event Promotion,Exeter Corn Exchange,Supplies & Services
21/05/2018,Snowline Media,663452,5382.25,Event Promotion,Exeter Corn Exchange,Supplies & Services
21/05/2018,So Television Ltd,663892,3287.37,Event Promotion,Exeter Corn Exchange,Supplies & Services
21/05/2018,South West Councils,664638,3685,Staff Training,Learning & Development,Pay
21/05/2018,The Blinking Lamp Co Ltd T/A Blc Construction,664043,1078.58,"Clothing, Laundry, & Uniforms",Materials Reclamation Facility,Supplies & Services
21/05/2018,The Peoples Theatre Company,665023,467.25,Event Promotion,Exeter Corn Exchange,Supplies & Services
21/05/2018,The Willocks Practice Ltd,663311,600,Aim Reactive Repairs,Property Maintenance,Premises
21/05/2018,Tolchards Ltd,663912,1955.51,Drinks,Exeter Corn Exchange,Supplies & Services
21/05/2018,Tolchards Ltd,664968,1059.82,Drinks,Exeter Corn Exchange,Supplies & Services
21/05/2018,West Coast Windows,663762,720,Aim Lease Requirements,Bradninch Place,Premises
22/05/2018,African Fabric Shop Ltd,664839,712,Goods For Resale,Museum Shop,Supplies & Services
22/05/2018,Citizens Advice Bureau,662624,17593,Consultants Fees,Local Welfare Support,Supplies & Services
22/05/2018,D R Jones (Yeovil) Ltd,665131,5758.3,Contract Payments,Bathroom Replacements,Supplies & Services
22/05/2018,D R Jones (Yeovil) Ltd,665142,2950.56,Contract Payments,Bathroom Replacements,Supplies & Services
22/05/2018,D R Jones (Yeovil) Ltd,665132,4144.17,Contract Payments,Kitchen Replacements,Supplies & Services
22/05/2018,D R Jones (Yeovil) Ltd,665143,5711.13,Contract Payments,Kitchen Replacements,Supplies & Services
22/05/2018,D R Jones (Yeovil) Ltd,665144,5245.35,Contract Payments,Kitchen Replacements,Supplies & Services
22/05/2018,European Asbestos Services Ltd,665187,625.16,Asbestos Removal,Asbestos,Premises
22/05/2018,European Asbestos Services Ltd,665188,624.81,Asbestos Removal,Asbestos,Premises
22/05/2018,European Asbestos Services Ltd,665189,4610.19,Asbestos Removal,Asbestos,Premises
22/05/2018,Freeline Graphics,665196,1000,Equipment Tools And Materials,Underground Passages,Supplies & Services
22/05/2018,Geocast Tv Ltd,665003,2000,Marketing,Visit Exeter,Supplies & Services
22/05/2018,Gmc Publications,664634,547.47,Goods For Resale,Museum Shop,Supplies & Services
22/05/2018,J Sleigh T/A Change Your Space,665334,960,Consultants Fees,General Management,Supplies & Services
22/05/2018,James Andrews Recruitment Solutions Ltd,664855,814.37,Temp.Contract-Agency Staff,Bed And Breakfast,Pay
22/05/2018,Keycraft,665013,1213.48,Goods For Resale,Museum Shop,Supplies & Services
22/05/2018,Lifestyle Ltd T/A House Of Disaster,663275,421.01,Goods For Resale,Museum Shop,Supplies & Services
22/05/2018,Mears Ltd,665139,3000.56,Decs For Elderly & Disabled,Internal Decoration Prog,Premises
22/05/2018,Mears Ltd,665138,793.75,General Maintenance,Repairs To Void Properties,Premises
22/05/2018,Mears Ltd,665140,432.76,General Maintenance,Repairs To Void Properties,Premises
22/05/2018,Mears Ltd,665192,1331.63,General Maintenance,Repairs To Void Properties,Premises
22/05/2018,Mears Ltd,665193,1847.86,General Maintenance,Repairs To Void Properties,Premises
22/05/2018,Mears Ltd,665191,860.11,Repairs To Void Properties,Psl Properties,Premises
22/05/2018,Morgan Hunt Uk Ltd,663698,933.08,Temp.Contract-Agency Staff,Nndr Collection,Pay
22/05/2018,Morgan Hunt Uk Ltd,663695,1107.25,Temp.Contract-Agency Staff,Revenues Recovery,Pay
22/05/2018,Morgan Hunt Uk Ltd,663696,1031.19,Temp.Contract-Agency Staff,Revenues Recovery,Pay
22/05/2018,Patronus Security Uk Ltd,663672,520,Security Patrol,Customer Service Centre,Premises
22/05/2018,Patronus Security Uk Ltd,665016,435.5,Security Patrol,Customer Service Centre,Premises
22/05/2018,Ross & Roberts,663893,0,Bailiffs Fees,Revenues Recovery,Supplies & Services
22/05/2018,Ross & Roberts,663894,0,Bailiffs Fees,Revenues Recovery,Supplies & Services
22/05/2018,Streetmaster (South Wales) Ltd,662918,1108,Contract Payments,Exwick Cemetery Ashes Section,Supplies & Services
22/05/2018,Toucan Graphic Design Ltd,664869,6900,Project Work,Comms & Marketing Activity,Supplies & Services
22/05/2018,Woodford Lake T/A Artstat,664841,552.06,Goods For Resale,Museum Shop,Supplies & Services
23/05/2018,Berry Recruitment,664639,168.05,Casuals Waged-Agency Staff,Bid Cleansing Project,Pay
23/05/2018,Berry Recruitment,664639,260.78,Casuals Waged-Agency Staff,Car Park Sweeping,Pay
23/05/2018,Berry Recruitment,664641,80.3,Casuals Waged-Agency Staff,Do Not Use - Use C059,Pay
23/05/2018,Berry Recruitment,664644,428.83,Casuals Waged-Agency Staff,Do Not Use - Use C059,Pay
23/05/2018,Berry Recruitment,664651,540.34,Casuals Waged-Agency Staff,Do Not Use - Use C059,Pay
23/05/2018,Berry Recruitment,664677,428.83,Casuals Waged-Agency Staff,Do Not Use - Use C059,Pay
23/05/2018,Berry Recruitment,664669,446.22,Casuals Waged-Agency Staff,Other Street Sweeping,Pay
23/05/2018,Berry Recruitment,664641,452.01,Casuals Waged-Agency Staff,Parks And Playing Fields,Pay
23/05/2018,Berry Recruitment,664642,452.01,Casuals Waged-Agency Staff,Parks And Playing Fields,Pay
23/05/2018,Berry Recruitment,664675,428.83,Casuals Waged-Agency Staff,Public Conveniences,Pay
23/05/2018,Brook Street (Uk) Ltd,665422,981.94,Temp.Contract-Agency Staff,Health & Safety Compliance,Pay
23/05/2018,Building Recruitment Co Ltd,665349,629.58,Temp.Contract-Agency Staff,Bed And Breakfast,Pay
23/05/2018,Building Recruitment Co Ltd,665350,760.78,Temp.Contract-Agency Staff,Bed And Breakfast,Pay
23/05/2018,Building Recruitment Co Ltd,665396,944.69,Temp.Contract-Agency Staff,Bed And Breakfast,Pay
23/05/2018,Building Recruitment Co Ltd,665397,740.02,Temp.Contract-Agency Staff,Planned Works,Pay
23/05/2018,Concept Staffing Ltd,663851,435.12,Casuals Waged-Agency Staff,Bid Cleansing Project,Pay
23/05/2018,Concept Staffing Ltd,664824,478.75,Casuals Waged-Agency Staff,Bid Cleansing Project,Pay
23/05/2018,Concept Staffing Ltd,663851,89.1,Casuals Waged-Agency Staff,Car Park Sweeping,Pay
23/05/2018,Concept Staffing Ltd,664824,248.48,Casuals Waged-Agency Staff,Car Park Sweeping,Pay
23/05/2018,Concept Staffing Ltd,663851,463.32,Casuals Waged-Agency Staff,Cemeteries - Operational,Pay
23/05/2018,Concept Staffing Ltd,664824,463.32,Casuals Waged-Agency Staff,Cemeteries - Operational,Pay
23/05/2018,Concept Staffing Ltd,663851,463.32,Casuals Waged-Agency Staff,Childrens Play Areas,Pay
23/05/2018,Concept Staffing Ltd,664824,463.32,Casuals Waged-Agency Staff,Childrens Play Areas,Pay
23/05/2018,Concept Staffing Ltd,663851,879.12,Casuals Waged-Agency Staff,Do Not Use - Use C059,Pay
23/05/2018,Concept Staffing Ltd,664824,754.38,Casuals Waged-Agency Staff,Do Not Use - Use C059,Pay
23/05/2018,Concept Staffing Ltd,663851,463.32,Casuals Waged-Agency Staff,Parks And Playing Fields,Pay
23/05/2018,Concept Staffing Ltd,664824,463.32,Casuals Waged-Agency Staff,Parks And Playing Fields,Pay
23/05/2018,Concept Staffing Ltd,663851,435.12,Casuals Waged-Agency Staff,Parks Operational Overheads,Pay
23/05/2018,Concept Staffing Ltd,664824,435.12,Casuals Waged-Agency Staff,Parks Operational Overheads,Pay
23/05/2018,Concept Staffing Ltd,663851,439.56,Casuals Waged-Agency Staff,Public Conveniences,Pay
23/05/2018,Concept Staffing Ltd,664824,439.56,Casuals Waged-Agency Staff,Public Conveniences,Pay
23/05/2018,Cornflower Ltd,665011,450,Goods For Resale,Museum Shop,Supplies & Services
23/05/2018,Cornflower Ltd,665012,450,Goods For Resale,Museum Shop,Supplies & Services
23/05/2018,E.On   (Electricity),665380,1387.1,Electricity,Livestock/Matford Centre,Premises
23/05/2018,E.On   (Gas),664321,2358.35,Gas,Ramm,Premises
23/05/2018,G & L Consultancy Ltd,665393,480,Blocks Of Flat Repairs,General Maintenance,Premises
23/05/2018,Gap Personnel,664654,434.75,Casuals Waged-Agency Staff,Other Street Sweeping,Pay
23/05/2018,Gap Personnel,664655,364.25,Casuals Waged-Agency Staff,Other Street Sweeping,Pay
23/05/2018,Gap Personnel,664654,869.5,Casuals Waged-Agency Staff,Parks And Playing Fields,Pay
23/05/2018,Gap Personnel,664655,393.63,Casuals Waged-Agency Staff,Parks And Playing Fields,Pay
23/05/2018,H & S Transport Ltd,665385,520.5,Sub-Contractors,Bank Repairs & Stabilisation,Premises
23/05/2018,H & S Transport Ltd,665353,3566.5,Sub-Contractors,Land Drainage Water C - Assets,Premises
23/05/2018,H & S Transport Ltd,665387,1041,Sub-Contractors,Topsham Lock,Premises
23/05/2018,Haymarket Media  Ltd,665008,1460,Advertising Of Posts,Planning,Pay
23/05/2018,Is + Lj Cardwell,665374,1026.52,Rents,Psl Properties,Premises
23/05/2018,Jim Wileman,665009,1500,Photographic Contract/Work,Museum Projects,Supplies & Services
23/05/2018,Kerrilea And Robert Wayland,665375,1958.05,Rents,Psl Properties,Premises
23/05/2018,Mears Ltd,665410,339.84,Blocks Of Flat Repairs,General Maintenance,Premises
23/05/2018,Mears Ltd,665408,2594.95,General Maintenance,General Maintenance,Premises
23/05/2018,Mears Ltd,665410,913.45,General Maintenance,General Maintenance,Premises
23/05/2018,Morgan Hunt Uk Ltd,665425,2930.36,Temp.Contract-Agency Staff,Procurement,Pay
23/05/2018,National Portrait Gallery,664456,442,Goods For Resale,Museum Shop,Supplies & Services
23/05/2018,Room Service,665336,599.8,Equipment Tools And Materials,Car Parks,Supplies & Services
23/05/2018,Secureforce Uk Ltd,663742,435.5,Central Alarm Service,Ramm,Premises
23/05/2018,The Best Connection Group Ltd,664653,459.2,Casuals Waged-Agency Staff,Bid Cleansing Project,Pay
23/05/2018,The Best Connection Group Ltd,664653,545.3,Casuals Waged-Agency Staff,Do Not Use - Use C059,Pay
23/05/2018,The Best Connection Group Ltd,664653,424.76,Casuals Waged-Agency Staff,Other Street Sweeping,Pay
23/05/2018,The Best Connection Group Ltd,649651,302.78,Casuals Waged-Agency Staff,Parks And Playing Fields,Pay
23/05/2018,The Best Connection Group Ltd,664650,437.66,Casuals Waged-Agency Staff,Parks And Playing Fields,Pay
23/05/2018,The Best Connection Group Ltd,664653,424.76,Casuals Waged-Agency Staff,Public Conveniences,Pay
23/05/2018,The Best Connection Group Ltd,649651,159.65,Casuals Waged-Agency Staff,Rechargeable Works,Pay
23/05/2018,The Best Connection Group Ltd,664650,456.33,Casuals Waged-Agency Staff,Rechargeable Works,Pay
23/05/2018,W B Employment Ltd,664608,582.83,Casuals Waged-Agency Staff,Do Not Use - Use C059,Pay
24/05/2018,Asd Lighting Plc,665587,1200,Electrical Works - Communal,Prog'D Elec Re-Wiring General,Supplies & Services
24/05/2018,Churchill Contract Services (Use 20780),664045,476.4,Aim Lease Requirements,Miscellaneous Properties,Premises
24/05/2018,Churchill Contract Services (Use 20780),664045,1876.4,Pmf Compliance,Property Maintenance,Premises
24/05/2018,D G Electrical Services,664105,556,Aim Lease Requirements,Miscellaneous Properties,Premises
24/05/2018,D R Jones (Yeovil) Ltd,665000,3235.5,Aim Lease Requirements,Commercial Properties,Premises
24/05/2018,Energyserv Uk Ltd,665588,1200.44,Gas & Central Heating,Service Contracts,Premises
24/05/2018,F Clark,665535,525,Sub-Contractors,Countryside Recreation,Premises
24/05/2018,First Class Builders Ltd,665578,610,General Maintenance,General Maintenance,Premises
24/05/2018,G & L Consultancy Ltd,663328,795,Rechargeable Repairs,Civic Centre,Premises
24/05/2018,Mears Ltd,665536,32.82,Asbestos Removal,Asbestos,Premises
24/05/2018,Mears Ltd,665204,21.73,Blocks Of Flat Repairs,General Maintenance,Premises
24/05/2018,Mears Ltd,665525,21.68,Blocks Of Flat Repairs,General Maintenance,Premises
24/05/2018,Mears Ltd,665538,510.72,Blocks Of Flat Repairs,General Maintenance,Premises
24/05/2018,Mears Ltd,665524,2922.54,Decs For Elderly & Disabled,Internal Decoration Prog,Premises
24/05/2018,Mears Ltd,665204,379.41,General Maintenance,Elec Testing/Reactive,Premises
24/05/2018,Mears Ltd,665523,263.35,General Maintenance,Elec Testing/Reactive,Premises
24/05/2018,Mears Ltd,665525,37.49,General Maintenance,Elec Testing/Reactive,Premises
24/05/2018,Mears Ltd,665538,69.75,General Maintenance,Elec Testing/Reactive,Premises
24/05/2018,Mears Ltd,665204,441.89,General Maintenance,General Maintenance,Premises
24/05/2018,Mears Ltd,665523,2642.24,General Maintenance,General Maintenance,Premises
24/05/2018,Mears Ltd,665525,992.3,General Maintenance,General Maintenance,Premises
24/05/2018,Mears Ltd,665534,921.27,General Maintenance,General Maintenance,Premises
24/05/2018,Mears Ltd,665536,1185.45,General Maintenance,General Maintenance,Premises
24/05/2018,Mears Ltd,665538,546.09,General Maintenance,General Maintenance,Premises
24/05/2018,Mears Ltd,665538,130.31,Glazing,General Maintenance,Premises
24/05/2018,Otis Ltd,654500,63.71,Aim Lease Requirements,Commercial Properties,Premises
24/05/2018,Otis Ltd,664402,63.71,Aim Lease Requirements,Commercial Properties,Premises
24/05/2018,Otis Ltd,664403,63.71,Aim Lease Requirements,Commercial Properties,Premises
24/05/2018,Otis Ltd,664404,63.71,Aim Lease Requirements,Commercial Properties,Premises
24/05/2018,Otis Ltd,664406,63.71,Aim Lease Requirements,Commercial Properties,Premises
24/05/2018,Otis Ltd,664407,63.71,Aim Lease Requirements,Commercial Properties,Premises
24/05/2018,Otis Ltd,654500,52.15,Aim Lease Requirements,Miscellaneous Properties,Premises
24/05/2018,Otis Ltd,664402,52.15,Aim Lease Requirements,Miscellaneous Properties,Premises
24/05/2018,Otis Ltd,664403,52.15,Aim Lease Requirements,Miscellaneous Properties,Premises
24/05/2018,Otis Ltd,664404,52.15,Aim Lease Requirements,Miscellaneous Properties,Premises
24/05/2018,Otis Ltd,664406,52.15,Aim Lease Requirements,Miscellaneous Properties,Premises
24/05/2018,Otis Ltd,664407,52.15,Aim Lease Requirements,Miscellaneous Properties,Premises
24/05/2018,Otis Ltd,654500,1002.7,Aim Service & Maintenance,Property Maintenance,Premises
24/05/2018,Otis Ltd,664402,1002.7,Aim Service & Maintenance,Property Maintenance,Premises
24/05/2018,Otis Ltd,664403,1002.7,Aim Service & Maintenance,Property Maintenance,Premises
24/05/2018,Otis Ltd,664404,1002.7,Aim Service & Maintenance,Property Maintenance,Premises
24/05/2018,Otis Ltd,664406,1002.7,Aim Service & Maintenance,Property Maintenance,Premises
24/05/2018,Otis Ltd,664407,1002.7,Aim Service & Maintenance,Property Maintenance,Premises
24/05/2018,Otis Ltd,654500,85,Lift Maintenance,Knights Place,Premises
24/05/2018,Otis Ltd,664402,85,Lift Maintenance,Knights Place,Premises
24/05/2018,Otis Ltd,664403,85,Lift Maintenance,Knights Place,Premises
24/05/2018,Otis Ltd,664404,85,Lift Maintenance,Knights Place,Premises
24/05/2018,Otis Ltd,664406,85,Lift Maintenance,Knights Place,Premises
24/05/2018,Otis Ltd,664407,85,Lift Maintenance,Knights Place,Premises
24/05/2018,Otis Ltd,654500,541.56,Lift Maintenance,Service Contracts,Premises
24/05/2018,Otis Ltd,664402,541.56,Lift Maintenance,Service Contracts,Premises
24/05/2018,Otis Ltd,664403,541.56,Lift Maintenance,Service Contracts,Premises
24/05/2018,Otis Ltd,664404,541.56,Lift Maintenance,Service Contracts,Premises
24/05/2018,Otis Ltd,664406,541.56,Lift Maintenance,Service Contracts,Premises
24/05/2018,Otis Ltd,664407,541.56,Lift Maintenance,Service Contracts,Premises
24/05/2018,Otis Ltd,654500,63.71,Service Charges,Bradninch Place,Premises
24/05/2018,Otis Ltd,664402,63.71,Service Charges,Bradninch Place,Premises
24/05/2018,Otis Ltd,664403,63.71,Service Charges,Bradninch Place,Premises
24/05/2018,Otis Ltd,664404,63.71,Service Charges,Bradninch Place,Premises
24/05/2018,Otis Ltd,664406,63.71,Service Charges,Bradninch Place,Premises
24/05/2018,Otis Ltd,664407,63.71,Service Charges,Bradninch Place,Premises
24/05/2018,Paddock Print Ltd,665556,1280,Printing,Tourism,Supplies & Services
24/05/2018,Protective Wear Supplies Ltd,664409,762.3,"Clothing, Laundry, & Uniforms",Cleansing Overheads,Supplies & Services
24/05/2018,Robert Heath Heating Ltd,665521,58533.8,Gas & Central Heating,Service Contracts,Premises
24/05/2018,Robert Heath Heating Ltd,665531,2739.88,Gas & Central Heating,Service Contracts,Premises
24/05/2018,Robert Heath Heating Ltd,665522,622.7,Service & Maint Agreements,Extralet,Premises
24/05/2018,Rt Screen & Design Ltd,664052,5450,Printing,Car Parks,Supplies & Services
24/05/2018,The Best Connection Group Ltd,655084,396.36,Casuals Waged-Agency Staff,Bid Cleansing Project,Pay
24/05/2018,The Best Connection Group Ltd,655084,176.16,Casuals Waged-Agency Staff,Public Conveniences,Pay
25/05/2018,Concept Staffing Ltd,664821,475.2,Casuals Waged-Agency Staff,Materials Reclamation Facility,Pay
25/05/2018,Concept Staffing Ltd,664823,463.32,Casuals Waged-Agency Staff,Materials Reclamation Facility,Pay
25/05/2018,G & L Consultancy Ltd,665782,1141,Asbestos Surveys,Asbestos,Premises
25/05/2018,J & J Crump & Son Ltd,665894,2000,Grants Issued,Disabled Facilities Grants,Supplies & Services
25/05/2018,J & J Crump & Son Ltd,665896,965,Grants Issued,Disabled Facilities Grants,Supplies & Services
25/05/2018,J & J Crump & Son Ltd,665897,2000,Grants Issued,Disabled Facilities Grants,Supplies & Services
25/05/2018,J & J Crump & Son Ltd,665900,2000,Grants Issued,Disabled Facilities Grants,Supplies & Services
25/05/2018,Lifestyle Solutions,665670,3906,Grants Issued,Disabled Facilities Grants,Supplies & Services
25/05/2018,Mears Ltd,665711,46.16,Blocks Of Flat Repairs,General Maintenance,Premises
25/05/2018,Mears Ltd,665713,160.47,Blocks Of Flat Repairs,General Maintenance,Premises
25/05/2018,Mears Ltd,665734,33.4,Blocks Of Flat Repairs,General Maintenance,Premises
25/05/2018,Mears Ltd,665741,176.71,Blocks Of Flat Repairs,General Maintenance,Premises
25/05/2018,Mears Ltd,665739,80.08,Contract Payments,Estate Improvements,Supplies & Services
25/05/2018,Mears Ltd,665739,596.56,Contract Payments,Fire Prevention Work,Supplies & Services
25/05/2018,Mears Ltd,665711,43.92,General Maintenance,Elec Testing/Reactive,Premises
25/05/2018,Mears Ltd,665734,147.58,General Maintenance,Elec Testing/Reactive,Premises
25/05/2018,Mears Ltd,665711,1009.05,General Maintenance,General Maintenance,Premises
25/05/2018,Mears Ltd,665712,774.96,General Maintenance,General Maintenance,Premises
25/05/2018,Mears Ltd,665713,637.24,General Maintenance,General Maintenance,Premises
25/05/2018,Mears Ltd,665734,1141.51,General Maintenance,General Maintenance,Premises
25/05/2018,Mears Ltd,665737,62.82,General Maintenance,General Maintenance,Premises
25/05/2018,Mears Ltd,665739,3178.05,General Maintenance,General Maintenance,Premises
25/05/2018,Mears Ltd,665741,922.65,General Maintenance,General Maintenance,Premises
25/05/2018,Mears Ltd,665710,13885.96,General Maintenance,Repairs To Void Properties,Premises
25/05/2018,Mears Ltd,665737,447.64,Reactive Repairs To Property,Psl Properties,Premises
25/05/2018,Mears Ltd,665737,169.22,Repairs To Hand Back Prop,Psl Properties,Premises
25/05/2018,Mid Devon District Council,659527,8250,Consultants Fees,Transport Management,Supplies & Services
25/05/2018,Morgan Hunt Uk Ltd,665395,1028.97,Temp.Contract-Agency Staff,Revenues Recovery,Pay
25/05/2018,Morgan Hunt Uk Ltd,665427,669.5,Temp.Contract-Agency Staff,Revenues Recovery,Pay
25/05/2018,New Mind,664851,1687.5,Project Work,Comms & Marketing Activity,Supplies & Services
25/05/2018,Nute Plumbing Services Ltd,665723,5274,Contract Payments,Adaptations,Supplies & Services
25/05/2018,Paddock Print Ltd,665554,2082,Printing,Tourism,Supplies & Services
25/05/2018,Patronus Security Uk Ltd,665577,455,Security Patrol,Customer Service Centre,Premises
25/05/2018,Rln Music,665141,7139.85,Event Promotion,Exeter Corn Exchange,Supplies & Services
25/05/2018,Robert Heath Heating Ltd,665719,200,Contract Payments,Adaptations,Supplies & Services
25/05/2018,Robert Heath Heating Ltd,665719,1216.67,Gas Equip Replacement,General Maintenance,Premises
25/05/2018,Robert Heath Heating Ltd,665719,776.73,General Maintenance,General Maintenance,Premises
25/05/2018,Robert Heath Heating Ltd,665719,101.42,General Maintenance,Repairs To Void Properties,Premises
25/05/2018,Robert Heath Heating Ltd,665719,48.97,Glazing,General Maintenance,Premises
25/05/2018,South West Geotechnical,665541,1150,Sub-Contractors,Heavitree (Cob Wave Iii),Premises
25/05/2018,Teignbridge Dist Council(Do Not Use See 2128),664689,350.76,Aluminium & Steel Buy In,Materials & Goods For Resale,Supplies & Services
25/05/2018,Teignbridge Dist Council(Do Not Use See 2128),664689,389.4,Buy In - Plastics,Materials & Goods For Resale,Supplies & Services
25/05/2018,Teignbridge Dist Council(Do Not Use See 2128),664690,2609.6,Buy In - Plastics,Materials & Goods For Resale,Supplies & Services
25/05/2018,Teignbridge Dist Council(Do Not Use See 2128),664691,14.11,Glass Buy In,Materials & Goods For Resale,Supplies & Services
25/05/2018,Teignbridge Dist Council(Do Not Use See 2128),664691,1771.92,Paper Buy In,Materials & Goods For Resale,Supplies & Services
25/05/2018,Teignbridge District Council,665898,1562,Buy In - Plastics,Materials & Goods For Resale,Supplies & Services
25/05/2018,The Best Connection Group Ltd,662646,1044.68,Casuals Waged-Agency Staff,Materials Reclamation Facility,Pay
25/05/2018,The Best Connection Group Ltd,665696,665.84,Casuals Waged-Agency Staff,Materials Reclamation Facility,Pay
25/05/2018,The Sandwich Shop T/A Exe Catering,664863,570,Civic Hospitality,Public Celebrations & Twinning,Supplies & Services
25/05/2018,Therm-Eco Ewi Ltd,665903,1550,Grants Issued,Disabled Facilities Grants,Supplies & Services
29/05/2018,Adler & Allan Ltd,665178,963,Sub-Contractors,River Exe,Premises
29/05/2018,Alphington Community Association,665913,1000,Supplies And Equipment,Community Safety Partnerships,Supplies & Services
29/05/2018,Berry Recruitment,665706,462.36,Casuals Waged-Agency Staff,Waste Agency Costs,Pay
29/05/2018,Brook Street (Uk) Ltd,665992,1024.95,Temp.Contract-Agency Staff,Health & Safety Compliance,Pay
29/05/2018,Building Recruitment Co Ltd,665758,442.11,Temp.Contract-Agency Staff,Housing Advice,Pay
29/05/2018,Building Recruitment Co Ltd,665760,900.51,Temp.Contract-Agency Staff,Housing Advice,Pay
29/05/2018,Building Recruitment Co Ltd,665763,674.83,Temp.Contract-Agency Staff,Housing Advice,Pay
29/05/2018,Building Recruitment Co Ltd,665776,842.61,Temp.Contract-Agency Staff,Housing Advice,Pay
29/05/2018,Building Recruitment Co Ltd,665771,1067.13,Temp.Contract-Agency Staff,Planned Works,Pay
29/05/2018,Building Recruitment Co Ltd,665773,995.67,Temp.Contract-Agency Staff,Planned Works,Pay
29/05/2018,Building Recruitment Co Ltd,665765,705.74,Temp.Contract-Agency Staff,Reactive Repairs,Pay
29/05/2018,Catherine Macdonald,665732,570,Course Fees,Training,Supplies & Services
29/05/2018,Complete Water Solutions (Ltd),665888,897.55,Knights Place Repairs & Maint,Knights Place,Premises
29/05/2018,Concept Staffing Ltd,664859,997.37,Casuals Waged-Agency Staff,Waste Agency Costs,Pay
29/05/2018,Concept Staffing Ltd,665910,480.9,Temp.Contract-Agency Staff,Planning,Pay
29/05/2018,Exeter College,665967,840,Fees,Lord Mayors Charity,Income
29/05/2018,Faac (Uk) Ltd,665965,450,Maintenance Of Equipment,Car Parks,Supplies & Services
29/05/2018,Hays Accountancy Personnel,665899,867.53,Temp.Contract-Agency Staff,Accountancy Services,Pay
29/05/2018,James Andrews Recruitment Solutions Ltd,665784,997.5,Temp.Contract-Agency Staff,Housing Advice,Pay
29/05/2018,James Andrews Recruitment Solutions Ltd,665785,939.15,Temp.Contract-Agency Staff,Housing Advice,Pay
29/05/2018,Jtt Contracting Ltd,665145,1811,Sub-Contractors,Footpaths Maint - Assets,Premises
29/05/2018,Jtt Contracting Ltd,665376,1971.69,Sub-Contractors,Signs & Sundries - Assets,Premises
29/05/2018,Kendall Kingscott Ltd,665357,4760.05,Consultants Fees,Museum Projects,Supplies & Services
29/05/2018,Kendall Kingscott Ltd,665357,865.16,Consultants Fees,Ramm Roof,Supplies & Services
29/05/2018,King And Mcgaw Ltd,666121,430,Goods For Resale,Museum Shop,Supplies & Services
29/05/2018,Mears Ltd,665873,109.21,Blocks Of Flat Repairs,General Maintenance,Premises
29/05/2018,Mears Ltd,665875,147.72,Blocks Of Flat Repairs,General Maintenance,Premises
29/05/2018,Mears Ltd,665876,65.09,Blocks Of Flat Repairs,General Maintenance,Premises
29/05/2018,Mears Ltd,665882,55.8,Blocks Of Flat Repairs,General Maintenance,Premises
29/05/2018,Mears Ltd,665875,67.66,General Maintenance,Elec Testing/Reactive,Premises
29/05/2018,Mears Ltd,665876,174.31,General Maintenance,Elec Testing/Reactive,Premises
29/05/2018,Mears Ltd,665877,199.73,General Maintenance,Elec Testing/Reactive,Premises
29/05/2018,Mears Ltd,665879,43.41,General Maintenance,Elec Testing/Reactive,Premises
29/05/2018,Mears Ltd,665873,1414.05,General Maintenance,General Maintenance,Premises
29/05/2018,Mears Ltd,665874,4750.94,General Maintenance,General Maintenance,Premises
29/05/2018,Mears Ltd,665875,1845.51,General Maintenance,General Maintenance,Premises
29/05/2018,Mears Ltd,665876,470.96,General Maintenance,General Maintenance,Premises
29/05/2018,Mears Ltd,665877,1175.05,General Maintenance,General Maintenance,Premises
29/05/2018,Mears Ltd,665879,445.13,General Maintenance,General Maintenance,Premises
29/05/2018,Mears Ltd,665882,506.54,General Maintenance,General Maintenance,Premises
29/05/2018,Meridian Business Support,665993,1074.93,Temp.Contract-Agency Staff,Affordable Housing Development,Pay
29/05/2018,Morgan Hunt Uk Ltd,665780,3662.95,Temp.Contract-Agency Staff,Procurement,Pay
29/05/2018,Purchase Power,664475,2026,Postage/Stamps,Mail,Supplies & Services
29/05/2018,Recruitment Solutions (Sw) Ltd,665424,1812.45,Casuals Waged-Agency Staff,Waste Agency Costs,Pay
29/05/2018,Southern Electric,665932,1105.8,Electricity,Exeter Corn Exchange,Premises
29/05/2018,Therm-Eco Ewi Ltd,662607,1610,Grants Issued,Disabled Facilities Grants,Supplies & Services
29/05/2018,Therm-Eco Ewi Ltd,664044,1590,Grants Issued,Disabled Facilities Grants,Supplies & Services
29/05/2018,Therm-Eco Ewi Ltd,664046,2000,Grants Issued,Disabled Facilities Grants,Supplies & Services
29/05/2018,Therm-Eco Ewi Ltd,664049,1650,Grants Issued,Disabled Facilities Grants,Supplies & Services
29/05/2018,Toye Kenning & Spencer Ltd,665401,2524.95,Equipment Tools And Materials,Mayoralty,Supplies & Services
29/05/2018,Trowers & Hamlins Llp,665726,1200,Consultants Fees,Exeter City Grp Business Cases,Supplies & Services
29/05/2018,Ustigate Ltd,665198,2904,Sub-Contractors,Childrens Play Areas - Assets,Premises
29/05/2018,W B Employment Ltd,662849,447.86,Casuals Waged-Agency Staff,Waste Agency Costs,Pay
29/05/2018,W B Employment Ltd,664685,631.91,Casuals Waged-Agency Staff,Waste Agency Costs,Pay
29/05/2018,W B Employment Ltd,664819,723.93,Casuals Waged-Agency Staff,Waste Agency Costs,Pay
29/05/2018,W B Employment Ltd,664848,815.96,Casuals Waged-Agency Staff,Waste Agency Costs,Pay
29/05/2018,Whistl Uk Ltd,664316,1004.23,Postage/Stamps,Mail,Supplies & Services
29/05/2018,Whistl Uk Ltd,665354,589.51,Postage/Stamps,Mail,Supplies & Services
29/05/2018,Wise Employment,665701,971.88,Casuals Waged-Agency Staff,Waste Agency Costs,Pay
30/05/2018,Berry Recruitment,665697,428.83,Casuals Waged-Agency Staff,Do Not Use - Use C059,Pay
30/05/2018,Berry Recruitment,665725,428.83,Casuals Waged-Agency Staff,Other Street Sweeping,Pay
30/05/2018,Berry Recruitment,665704,541.97,Casuals Waged-Agency Staff,Public Conveniences,Pay
30/05/2018,Bristol Street Motors,662892,871.59,Reactive Repairs,Housing Cleansing Round,Transport
30/05/2018,D R Jones (Yeovil) Ltd,665186,5003.73,Contract Payments,Kitchen Replacements,Supplies & Services
30/05/2018,Devon County Council,665405,83943.46,Devon County Council Consult.,Get Active Exeter,Supplies & Services
30/05/2018,Devon Tree Services Ltd (Do Not Use See 22174,666089,1920,Sub-Contractors,Arboricultural,Premises
30/05/2018,Devon Tree Services Ltd (Do Not Use See 22174,666107,476.8,Sub-Contractors,Arboricultural - Assets,Premises
30/05/2018,Devon Tree Services Ltd (Do Not Use See 22174,666108,715.2,Sub-Contractors,Arboricultural - Assets,Premises
30/05/2018,Dx Network Services Ltd,665539,2338.74,Hays Dx / Britdocs Subscript.,Legal Services,Supplies & Services
30/05/2018,E.On   (Electricity),665382,6673.64,Electricity,Ramm,Premises
30/05/2018,Egbert H Taylor & Co Ltd,665034,3840,Bulk Containers - Purchase,Cleansing Overheads,Supplies & Services
30/05/2018,Exeter Coachworks Ltd,662567,496.1,Accident Repairs,Cleansing Overheads,Transport
30/05/2018,Exeter Coachworks Ltd,663449,569.36,Accident Repairs,Cleansing Overheads,Transport
30/05/2018,Exeter Coachworks Ltd,663300,463,Accident Repairs,Parks And Playing Fields,Transport
30/05/2018,F K Commercials Ltd,662744,2222.65,Reactive Repairs,Refuse Collection,Transport
30/05/2018,F K Commercials Ltd,662747,749.65,Reactive Repairs,Refuse Collection,Transport
30/05/2018,F K Commercials Ltd,662748,753.02,Reactive Repairs,Refuse Collection,Transport
30/05/2018,F K Commercials Ltd,662756,578.24,Reactive Repairs,Refuse Collection,Transport
30/05/2018,F K Commercials Ltd,664114,895.87,Reactive Repairs,Refuse Collection,Transport
30/05/2018,F K Commercials Ltd,664115,433.59,Reactive Repairs,Refuse Collection,Transport
30/05/2018,F K Commercials Ltd,664149,447.09,Reactive Repairs,Refuse Collection,Transport
30/05/2018,F K Commercials Ltd,664152,1234.63,Reactive Repairs,Refuse Collection,Transport
30/05/2018,F K Commercials Ltd,664614,792.43,Reactive Repairs,Refuse Collection,Transport
30/05/2018,F K Commercials Ltd,664623,485.7,Reactive Repairs,Refuse Collection,Transport
30/05/2018,Gap Personnel,665421,176.25,Casuals Waged-Agency Staff,Bid Cleansing Project,Pay
30/05/2018,Gap Personnel,665421,188,Casuals Waged-Agency Staff,Other Street Sweeping,Pay
30/05/2018,Gap Personnel,665694,346.63,Casuals Waged-Agency Staff,Other Street Sweeping,Pay
30/05/2018,Gap Personnel,665421,499.38,Casuals Waged-Agency Staff,Parks And Playing Fields,Pay
30/05/2018,Gap Personnel,665694,927.02,Casuals Waged-Agency Staff,Parks And Playing Fields,Pay
30/05/2018,Haymarket Media  Ltd,665709,1460,Advertising Of Posts,Planning,Pay
30/05/2018,Holt Jcb Ltd,663926,590.56,Reactive Repairs,Materials & Goods For Resale,Transport
30/05/2018,Holt Jcb Ltd,665171,1216.2,Reactive Repairs,Materials Reclamation Facility,Transport
30/05/2018,Holt Jcb Ltd,664659,915,Routine Maintenance,Materials & Goods For Resale,Transport
30/05/2018,Holt Jcb Ltd,663070,1095.98,Routine Maintenance,Materials Reclamation Facility,Transport
30/05/2018,Mears Ltd,665715,54.46,Blocks Of Flat Repairs,General Maintenance,Premises
30/05/2018,Mears Ltd,665878,145.32,Blocks Of Flat Repairs,General Maintenance,Premises
30/05/2018,Mears Ltd,665715,30.63,General Maintenance,Elec Testing/Reactive,Premises
30/05/2018,Mears Ltd,665717,70,General Maintenance,Elec Testing/Reactive,Premises
30/05/2018,Mears Ltd,665878,247.83,General Maintenance,Elec Testing/Reactive,Premises
30/05/2018,Mears Ltd,665715,474.24,General Maintenance,General Maintenance,Premises
30/05/2018,Mears Ltd,665717,455,General Maintenance,General Maintenance,Premises
30/05/2018,Mears Ltd,665878,1869.44,General Maintenance,General Maintenance,Premises
30/05/2018,Mgb Plastics Ltd,665332,6272,Bins & Recycling Boxes,Green Waste Collection Service,Supplies & Services
30/05/2018,Mgb Plastics Ltd,665333,3235,Bins & Recycling Boxes,Green Waste Collection Service,Supplies & Services
30/05/2018,North Devon Tyres Ltd,663254,442.4,Tyres,Refuse Collection,Transport
30/05/2018,Northgate Public Services (Uk) Ltd,665526,3018.25,Software Licences/Support,Strata Susp - Inv Paid By Ecc,Supplies & Services
30/05/2018,Parkins Industrial Supplies,665419,1410.27,Reactive Repairs,Cemeteries - Operational,Transport
30/05/2018,Parkins Industrial Supplies,665415,815,Reactive Repairs,Parks And Playing Fields,Transport
30/05/2018,Physical Culture Association Cic,665911,7391.4,Event Promotion,Exeter Corn Exchange,Supplies & Services
30/05/2018,Purchase Power,665973,1107.13,Postage/Stamps,Exeter Corn Exchange,Supplies & Services
30/05/2018,Renault Trucks Commercial Ltd,663556,6607.6,Reactive Repairs,Car Park Sweeping,Transport
30/05/2018,Robert Heath Heating Ltd,665520,622.7,Service & Maint Agreements,Psl Properties,Premises
30/05/2018,Southern Electric,665749,732.95,Electricity,Car Parks - Assets,Premises
30/05/2018,Southern Electric,665751,990.85,Electricity,Car Parks - Assets,Premises
30/05/2018,Southern Electric,665755,741.5,Electricity,Car Parks - Assets,Premises
30/05/2018,Southern Electric,665756,1151.06,Electricity,Car Parks - Assets,Premises
30/05/2018,Southern Electric,665747,606.25,Electricity,Older Persons Accommodation,Premises
30/05/2018,T H White Ltd Crane Division,665179,435.89,Reactive Repairs,Recycling Round,Transport
30/05/2018,Tolchards Ltd,665909,1207.67,Drinks,Exeter Corn Exchange,Supplies & Services
30/05/2018,Turntable Furniture Project,665359,636.74,Recycling Credits,Materials & Goods For Resale,Supplies & Services
30/05/2018,Uk Container Maintenance Ltd,665331,2789.67,Bulk Containers - Repairs,Trade Refuse & Recycling,Supplies & Services
30/05/2018,W B Employment Ltd,664852,417.18,Casuals Waged-Agency Staff,Do Not Use - Use C059,Pay
31/05/2018,Bartlett Refrigeration,664624,7819,Contract Payments,Belle Isle Temporary Facilitie,Supplies & Services
31/05/2018,Cobwebs,666239,686,General Maintenance,Repairs To Void Properties,Premises
31/05/2018,Devon Commercial Stationers Ltd,666252,6804,Purchase Of Furniture,Customer Service Centre,Supplies & Services
31/05/2018,Devon County Council,665409,4239.46,Special Works,Canal - Assets,Premises
31/05/2018,H F X Ltd,666249,850,Sub-Contractors,Civic Centre,Premises
31/05/2018,M W Gozna Services Ltd,666396,4732.42,Grants Issued,Disabled Facilities Grants,Supplies & Services
31/05/2018,Secureforce Uk Ltd,663745,2703.23,Equipment Tools And Materials,"The Ark Museum Store, Exton Rd",Supplies & Services
31/05/2018,South West Water Business,662023,3704.36,Rechargeable Repairs,Parks And Open Spaces M'Ment,Premises
01/06/2018,C R Wood Electrical,666406,1518,Equipment Tools And Materials,Older Persons Accommodation,Supplies & Services
01/06/2018,Cis Window Cleaning,666295,2510,Maintenance Of Equipment,Civic Centre,Supplies & Services
01/06/2018,Concept Staffing Ltd,666279,563.34,Temp.Contract-Agency Staff,Planning,Pay
01/06/2018,Devon Tree Services Ltd (Do Not Use See 22174,666416,10800,Hra Shrubs & Trees - Communal,Estate Maintenance,Premises
01/06/2018,Exeter Coachworks Ltd,666129,1012.5,Accident Repairs,Dog Bins,Transport
01/06/2018,F K Commercials Ltd,666142,673.5,Reactive Repairs,Reactive Team,Transport
01/06/2018,F K Commercials Ltd,666138,940.82,Reactive Repairs,Refuse Collection,Transport
01/06/2018,F K Commercials Ltd,666145,1345.68,Reactive Repairs,Refuse Collection,Transport
01/06/2018,Franks And Franks,666423,3200,Marketing,Comms & Marketing Activity,Supplies & Services
01/06/2018,James Andrews Recruitment Solutions Ltd,665786,525.09,Temp.Contract-Agency Staff,Planning,Pay
01/06/2018,Ks Engineering,666400,523,General Maintenance,General Maintenance,Premises
01/06/2018,Ks Engineering,666403,484,Knights Place Repairs & Maint,Knights Place,Premises
01/06/2018,Ks Engineering,666404,484,Knights Place Repairs & Maint,Knights Place,Premises
01/06/2018,Libraries Unlimited South West,666444,8000,Grants Issued,Grants And Contributions,Supplies & Services
01/06/2018,Morgan Hunt Uk Ltd,665781,1287.5,Temp.Contract-Agency Staff,Revenues Recovery,Pay
01/06/2018,Morgan Hunt Uk Ltd,665783,1042.88,Temp.Contract-Agency Staff,Revenues Recovery,Pay
01/06/2018,Renault Trucks Commercial Ltd,665972,549.23,Reactive Repairs,Cemeteries - Operational,Transport
01/06/2018,Renault Trucks Commercial Ltd,665963,876.72,Reactive Repairs,Public Conveniences,Transport
01/06/2018,Ross & Roberts,665931,18.57,Bailiffs Fees,Canal,Supplies & Services
01/06/2018,Ross & Roberts,665931,1000,Bailiffs Fees,Livestock/Matford Centre,Supplies & Services
01/06/2018,Ross & Roberts,666111,0,Bailiffs Fees,Nndr Collection,Supplies & Services
01/06/2018,Ross & Roberts,665927,0,Bailiffs Fees,Revenues Recovery,Supplies & Services
01/06/2018,Ross & Roberts,665928,310,Bailiffs Fees,Revenues Recovery,Supplies & Services
01/06/2018,Royal Mail,666413,1352.03,Postage/Stamps,District Council Elections,Supplies & Services
01/06/2018,Rt Screen & Design Ltd,665901,3036,Equipment Tools And Materials,Car Parks,Supplies & Services
01/06/2018,Whistl Uk Ltd,666233,614.72,Postage/Stamps,Mail,Supplies & Services
04/06/2018,Cobwebs,666152,16122.82,Hra Routine Cleaning Contract,Customer Relations,Premises
04/06/2018,Digital Id Picture Systems,666625,464.95,Equipment Tools And Materials,Civic Centre,Supplies & Services
04/06/2018,Dodd Group (South) Ltd,666564,22396.47,Electrical Works - Domestic,Prog'D Elec Re-Wiring General,Supplies & Services
04/06/2018,G & L Consultancy Ltd,665579,1230,Asbestos Surveys,Asbestos,Premises
04/06/2018,Isca Ensemble,666418,1567.5,Travel & Attraction Tickets,Exeter Visitor Information,Supplies & Services
04/06/2018,James Andrews Recruitment Solutions Ltd,665703,1110.74,Temp.Contract-Agency Staff,Human Resources,Pay
04/06/2018,M W Gozna Services Ltd,666578,500,Contract Payments,Adaptations,Supplies & Services
04/06/2018,Market Carpets,665764,1302.5,Contract Payments,Estate Improvements,Supplies & Services
04/06/2018,Mears Ltd,666548,44,Asbestos Removal,Asbestos,Premises
04/06/2018,Mears Ltd,666525,51.96,Blocks Of Flat Repairs,General Maintenance,Premises
04/06/2018,Mears Ltd,666527,568.23,Blocks Of Flat Repairs,General Maintenance,Premises
04/06/2018,Mears Ltd,666530,93.52,Blocks Of Flat Repairs,General Maintenance,Premises
04/06/2018,Mears Ltd,666533,89.35,Blocks Of Flat Repairs,General Maintenance,Premises
04/06/2018,Mears Ltd,666535,71.84,Blocks Of Flat Repairs,General Maintenance,Premises
04/06/2018,Mears Ltd,666536,31.69,Blocks Of Flat Repairs,General Maintenance,Premises
04/06/2018,Mears Ltd,666537,71.44,Blocks Of Flat Repairs,General Maintenance,Premises
04/06/2018,Mears Ltd,666538,21.68,Blocks Of Flat Repairs,General Maintenance,Premises
04/06/2018,Mears Ltd,666539,49.24,Blocks Of Flat Repairs,General Maintenance,Premises
04/06/2018,Mears Ltd,666542,224.42,Blocks Of Flat Repairs,General Maintenance,Premises
04/06/2018,Mears Ltd,666544,21.68,Blocks Of Flat Repairs,General Maintenance,Premises
04/06/2018,Mears Ltd,666551,21.73,Blocks Of Flat Repairs,General Maintenance,Premises
04/06/2018,Mears Ltd,666552,61.02,Blocks Of Flat Repairs,General Maintenance,Premises
04/06/2018,Mears Ltd,666553,52.37,Blocks Of Flat Repairs,General Maintenance,Premises
04/06/2018,Mears Ltd,666554,114.57,Blocks Of Flat Repairs,General Maintenance,Premises
04/06/2018,Mears Ltd,666555,145.46,Blocks Of Flat Repairs,General Maintenance,Premises
04/06/2018,Mears Ltd,666556,67.98,Blocks Of Flat Repairs,General Maintenance,Premises
04/06/2018,Mears Ltd,666561,65.14,Blocks Of Flat Repairs,General Maintenance,Premises
04/06/2018,Mears Ltd,666563,29.36,Blocks Of Flat Repairs,General Maintenance,Premises
04/06/2018,Mears Ltd,666567,468.84,Blocks Of Flat Repairs,General Maintenance,Premises
04/06/2018,Mears Ltd,666569,327.59,Blocks Of Flat Repairs,General Maintenance,Premises
04/06/2018,Mears Ltd,666559,668.15,Contract Payments,Adaptations,Supplies & Services
04/06/2018,Mears Ltd,666567,374.96,Contract Payments,Fire Prevention Work,Supplies & Services
04/06/2018,Mears Ltd,666535,59.9,Contract Payments,Fire Risk Assessment Works,Supplies & Services
04/06/2018,Mears Ltd,666567,338.98,Contract Payments,Fire Risk Assessment Works,Supplies & Services
04/06/2018,Mears Ltd,666527,492.43,Flat Roofs,General Maintenance,Premises
04/06/2018,Mears Ltd,666523,21.68,General Maintenance,Elec Testing/Reactive,Premises
04/06/2018,Mears Ltd,666527,63.42,General Maintenance,Elec Testing/Reactive,Premises
04/06/2018,Mears Ltd,666530,140.43,General Maintenance,Elec Testing/Reactive,Premises
04/06/2018,Mears Ltd,666533,49.03,General Maintenance,Elec Testing/Reactive,Premises
04/06/2018,Mears Ltd,666535,239.06,General Maintenance,Elec Testing/Reactive,Premises
04/06/2018,Mears Ltd,666536,98.43,General Maintenance,Elec Testing/Reactive,Premises
04/06/2018,Mears Ltd,666538,34.68,General Maintenance,Elec Testing/Reactive,Premises
04/06/2018,Mears Ltd,666544,106.63,General Maintenance,Elec Testing/Reactive,Premises
04/06/2018,Mears Ltd,666546,23.7,General Maintenance,Elec Testing/Reactive,Premises
04/06/2018,Mears Ltd,666551,94.66,General Maintenance,Elec Testing/Reactive,Premises
04/06/2018,Mears Ltd,666552,31.75,General Maintenance,Elec Testing/Reactive,Premises
04/06/2018,Mears Ltd,666555,91.22,General Maintenance,Elec Testing/Reactive,Premises
04/06/2018,Mears Ltd,666556,21.68,General Maintenance,Elec Testing/Reactive,Premises
04/06/2018,Mears Ltd,666561,23.7,General Maintenance,Elec Testing/Reactive,Premises
04/06/2018,Mears Ltd,666563,38.88,General Maintenance,Elec Testing/Reactive,Premises
04/06/2018,Mears Ltd,666571,85.71,General Maintenance,Elec Testing/Reactive,Premises
04/06/2018,Mears Ltd,666523,1048.3,General Maintenance,General Maintenance,Premises
04/06/2018,Mears Ltd,666525,1701.75,General Maintenance,General Maintenance,Premises
04/06/2018,Mears Ltd,666527,1665.48,General Maintenance,General Maintenance,Premises
04/06/2018,Mears Ltd,666528,462.95,General Maintenance,General Maintenance,Premises
04/06/2018,Mears Ltd,666529,813.02,General Maintenance,General Maintenance,Premises
04/06/2018,Mears Ltd,666530,472.55,General Maintenance,General Maintenance,Premises
04/06/2018,Mears Ltd,666533,1553.45,General Maintenance,General Maintenance,Premises
04/06/2018,Mears Ltd,666534,1182.54,General Maintenance,General Maintenance,Premises
04/06/2018,Mears Ltd,666535,477.1,General Maintenance,General Maintenance,Premises
04/06/2018,Mears Ltd,666536,621.47,General Maintenance,General Maintenance,Premises
04/06/2018,Mears Ltd,666537,3023.95,General Maintenance,General Maintenance,Premises
04/06/2018,Mears Ltd,666538,750.77,General Maintenance,General Maintenance,Premises
04/06/2018,Mears Ltd,666539,993.42,General Maintenance,General Maintenance,Premises
04/06/2018,Mears Ltd,666541,870.58,General Maintenance,General Maintenance,Premises
04/06/2018,Mears Ltd,666542,466.33,General Maintenance,General Maintenance,Premises
04/06/2018,Mears Ltd,666544,779.44,General Maintenance,General Maintenance,Premises
04/06/2018,Mears Ltd,666546,786.32,General Maintenance,General Maintenance,Premises
04/06/2018,Mears Ltd,666548,3004.56,General Maintenance,General Maintenance,Premises
04/06/2018,Mears Ltd,666550,1211.78,General Maintenance,General Maintenance,Premises
04/06/2018,Mears Ltd,666551,1144.25,General Maintenance,General Maintenance,Premises
04/06/2018,Mears Ltd,666552,742.02,General Maintenance,General Maintenance,Premises
04/06/2018,Mears Ltd,666553,1248.28,General Maintenance,General Maintenance,Premises
04/06/2018,Mears Ltd,666554,1281.99,General Maintenance,General Maintenance,Premises
04/06/2018,Mears Ltd,666555,461.2,General Maintenance,General Maintenance,Premises
04/06/2018,Mears Ltd,666556,445.73,General Maintenance,General Maintenance,Premises
04/06/2018,Mears Ltd,666561,718.71,General Maintenance,General Maintenance,Premises
04/06/2018,Mears Ltd,666562,673.57,General Maintenance,General Maintenance,Premises
04/06/2018,Mears Ltd,666563,554.23,General Maintenance,General Maintenance,Premises
04/06/2018,Mears Ltd,666567,3261.22,General Maintenance,General Maintenance,Premises
04/06/2018,Mears Ltd,666569,801.55,General Maintenance,General Maintenance,Premises
04/06/2018,Mears Ltd,666571,3104.21,General Maintenance,General Maintenance,Premises
04/06/2018,Mears Ltd,664466,3385.38,General Maintenance,Repairs To Void Properties,Premises
04/06/2018,Mears Ltd,666560,4550.77,General Maintenance,Repairs To Void Properties,Premises
04/06/2018,Mears Ltd,666534,370.28,Glazing,General Maintenance,Premises
04/06/2018,Mears Ltd,666536,130.31,Glazing,General Maintenance,Premises
04/06/2018,Mears Ltd,666567,406.54,Glazing,General Maintenance,Premises
04/06/2018,Mears Ltd,666563,35,Knights Place Repairs & Maint,Knights Place,Premises
04/06/2018,Mears Ltd,666571,29.86,Knights Place Repairs & Maint,Knights Place,Premises
04/06/2018,Mears Ltd,666531,464.67,Reactive Repairs To Property,Psl Properties,Premises
04/06/2018,Mears Ltd,666555,22.46,Reactive Repairs To Property,Premises,Premises
